Workbook

Sheet Introduction
B2: GACMO version 2.01 | I2: Current step | J2: 1
B3: Welcome to the Greenhouse gas Abatement Cost MOdel - GACMO
B4: The GACMO tool was developed by the UNEP Copenhagen Climate Centre In case of questions or feedback on GACMO, please contact Aiymgul Kerimray (aiymgul.kerimray@un.org) or Denis Desgain (denis.desgain@un.org)
B6: What is GACMO?
B7: The GACMO (Greenhouse Gas Abatement Cost Model) tool is a GHG emissions bottom-up modelling tool developed by the UNEP Copenhagen Climate Centre (UNEP-CCC) over more than 20 years. The GACMO tool allows countries to carry out rapid but accurate evaluations of the GHG emissions impacts of a variety of mitigation options. The tool is used to calculate the GHG emissions reductions resulting from specific mitigation actions and to establish a mitigation scenario built on the specific mitigation actions compared to a BAU scenario. It must be noted that GACMO does not integrate the interactions among measures assessed simultaneously. The GACMO tool can thus support technical experts and decision-makers to assess and understand the GHG emissions impacts of climate mitigation actions. This version of the GACMO tool includes 9 spreadsheets with technical data that the user needs to consider following a stepwise approach. The interface of the tool is made so that the user is taken from the first spreadsheet to the last spreadsheet following a logical order. The calculations and the generation of graphs are done in an automated way. This means that the user, who has the data required to use GACMO, does not need to be familiar with the calculations themselves in order to use the tool, but only with how to enter the inputs, as well as interpret the results. The formulas included in the GACMO tool are based on the mitigation methodologies proposed under the Clean Development Mechanism (CDM) as well as on the IPCC methodologies. Therefore, GACMO is in line with the most recent internationally approved GHG emission calculation methodologies. | G7: •
B8: The GACMO tool includes a series of default values, that are already pre-loaded in the tool and that the user does not have to update unless the user has better inputs and wants to make more precise estimates. These default values are all visible and accessible by the user. The first group of data with default values are those of key mitigation parameters, such as the IPCC database of emission factors (2006 IPCC Guidelines) and the global warming potential (GWP). In the case of GWP, GACMO uses by default the most recent values of those parameters established by the IPCC, although previous GWP values are also available in GACMO. The second group of data with default values are those for the mitigation potential parameters and economic-financial parameters of each mitigation option and their corresponding reference option in the baseline situation. In this case, GACMO uses by default, average values calculated from relevant CDM projects available on the CDM website and summarized in the project pipeline developed at UNEP-CCC. Experience has shown that the use of default values for data related to baseline and mitigation options works well in GACMO. However, it is possible for a GACMO user to modify those default values for data related to the mitigation and reference options to replace them with values specific to their case (country, city region, industrial activity). This allows the user to get more accurate results out of the GACMO application. The main data required to use GACMO are those of the energy balance for a specific year (considered as the start year), that is the data of the sectoral energy consumption of fossil fuels and electricity of a country, as well as the GHG emissions for the other non-energy sectors for the same year (taken for example from a national GHG inventory report). From these data, GACMO calculates the GHG emissions for the start year, that is, for the year in which the data were collected (generally the most recent year for which the necessary data is available). Then, applying growth factors for each sector (these factors are specific to the country and are estimated and entered in GACMO by the user), GACMO will project the GHG emissions to build a reference scenario also called baseline scenario (or Business as Usual - BAU), towards the years 2025, 2030, 2035 and/or 2050. To build the GHG mitigation scenario, GACMO proposes a list of 119 mitigation options for the different sectors. These mitigation options are organized into 26 categories of activities, such as agriculture, biomass energy, energy efficiency in homes, forestry, as well as geothermal, hydroelectric, solar, wind energy, among others. Once the mitigation options of interest have been selected by the user, the tool projects the emissions based on the previous growth factors and establishes a mitigation scenario for the years 2025, 2030, 2035, and/or 2050. GACMO calculates also the GHG emissions reductions and an approximation of the investment costs, as well as operation and maintenance costs, which result from each selected mitigation action. In summary, the key data used as inputs and required for running GACMO are:
B9: • Basic data about the country, such as the local currency, the exchange rate with the dollar, the discount rate; • Cost and technical data related to the different fossil fuels and electricity; • Energy balance data in the start year, that is, the production/consumption data of fossil fuels and electricity for a country; • Data on the GHG emissions for the key non-energy sectors in the start year: Agriculture, Forests, Waste, and Industrial processes; • Growth factors estimated over specific time periods for different sectors of activities; • The number of units of each mitigation option (selected by the user) penetrating toward the years 2025, 2030, 2035, and/or 2050.
B10: Finally, the GACMO tool can also be used to monitor the GHG emission reductions achieved through the effective implementation of mitigation options. Therefore, GACMO can be used additionally as a tool for tracking the progress made in implementing climate change mitigation options. The GACMO tool can be used at the national level (country level) but can also be adapted to be used at sub-national level (region or city). GACMO can be very useful for the preparation of national reports such as National Communications, Biennial Update Reports (BURs), Biennial Transparency Reports (BTRs), or for the preparation and update of Nationally Determined Contributions (NDCs).
B11: What is the structure of GACMO?
B12: This version of the GACMO tool includes different spreadsheets contained in an Excel file that the user needs to consider following a stepwise approach. The interface of the tool is made so that the user is taken from the first spreadsheet to the last spreadsheet following a logical order. The two first sheets are the Introduction and the Guidance. We strongly recommend the user to read these two sheets before starting using the tool. The tool includes seven technical sheets: Assumptions, Energy Balance, GHG Balance, Growth, BAU projected Energy Balances, BAU projected GHG Balances, and Mitigation Options. These sheets include a series of tables that the user needs to consider and where the user will have to introduce the data inputs required to run the GACMO tool. Each sheet starts with an introductory text explaining the purpose of the sheet and what data and inputs need to be considered by the user. The next sheet Results includes all the results and graphics resulting from the application of the GACMO tool run by the user. Each sheet starts with an introductory text describing the results found on the sheet. Note that a button is also provided to the user to automatically produce a summary of the results as a PDF document.
B13: The last sheet Tracking progress is the sheet that can be used by the user to monitor the progress made in implementing each mitigation action. The Tracking progress sheet is thus used ex-post, that is, once the mitigation options are under implementation or have been implemented, to estimate and monitor the effective reductions of GHG emissions. Finally, GACMO includes a long list of technology sheets, including "Agriculture", "Biomass Energy", "CCS", "Cement", "Coalmine CH4", "EE households", "EE Industry", "EE own generation", "EE service", "EE supply side", "E distribution", "Forestry", "Fossil fuel switch" …. These sheets include the tables with the specific cost and technical data of each mitigation option, as well as the corresponding reference option. Note that these sheets are hidden by default, but the user can access those sheets and the data table of each mitigation option by clicking on the name of the mitigation option in the Mitigation Options sheet.
B14: GACMO has around 40 spreadsheets contained in an Excel file. These sheets can be divided into 3 large groups: • Sheets of data or inputs, including "Start year balance", "Growth", "Assumptions", "Main 25/30/50". These are the sheets in which the user enters the data required to define the particular inputs of the case under study; • Sheets of outputs or results, including "Growth", "Graph". These are the sheets in which the main results are found; • Technology sheets, including "Agriculture", "Biomass Energy", "CCS", "Cement", "Coalmine CH4", "EE households", "EE Industry", "EE own generation", "EE service", "EE supply side", "E distribution", "Forestry", "Fossil fuel switch",…. These are the sheets in which the specific data of each mitigation option, as well as of the corresponding reference option, are found. The appendixes 1 and 2 list respectively all the categories of activities and all the mitigation options included in GACMO. In addition, GACMO includes a spreadsheet called “MRV” in which the progress in implementing each mitigation action selected by the user can be monitored. This sheet is used ex-post, that is, once the mitigation options have been implemented, to estimate and monitor the effective reductions of the GHG emissions.
B16: GACMO COPYRIGHTS
B17: The GACMO tool has been developed by the UNEP Copenhagen Climate Centre (UNEP-CCC). Note that the tool is regularly updated. The last version of GACMO is always made available on the UNEP-CCC website at https://unepccc.org/gacmo-tool/ All the versions of the GACMO tool can be downloaded and used free of charge by any user and can be installed on a personal computer. However, it is not allowed to make any commercial use of the GACMO tool without the prior authorization of UNEP-CCC. For any inquiries and authorization requests, please contact UNEP-CCC at unep-ccc@un.org.
B19: This version of the tool has been developed under the Initiative for Climate Action Transparency (ICAT).

Sheet Print Guide (hidden)
B2: Quick step by step guidance for using GACMO:
B4: How to start
B5: This version of the GACMO tool includes different spreadsheets contained in an Excel file that the user needs to consider following a stepwise approach. The interface of the tool is made so that the user is taken from the first spreadsheet to the last spreadsheet following a logical order. The two first sheets are the Introduction and the Guidance. We strongly recommend the user to read these two sheets before starting using the tool. The tool includes seven technical sheets: Assumptions, Energy Balance, GHG Balance, Growth, BAU projected Energy Balances, BAU projected GHG Balances, and Mitigation Options. These sheets include a series of tables that the user needs to consider and where the user will have to introduce the data inputs required to run the GACMO tool. Each sheet starts with an introductory text explaining the purpose of the sheet and what data and inputs need to be considered by the user. The next sheet Results includes all the results and graphics resulting from the application of the GACMO tool run by the user. Each sheet starts with an introductory text describing the results found on the sheet. Note that a button is also provided to the user to automatically produce a summary of the results as a PDF document.
B8: The last sheet Tracking progress is the sheet that can be used by the user to monitor the progress made in implementing each mitigation action. The Tracking progress sheet is thus used ex-post, that is, once the mitigation options are under implementation or have been implemented, to estimate and monitor the effective reductions of GHG emissions. Finally, GACMO includes a long list of technology sheets, including "Agriculture", "Biomass Energy", "CCS", "Cement", "Coalmine CH4", "EE households", "EE Industry", "EE own generation", "EE service", "EE supply side", "E distribution", "Forestry", "Fossil fuel switch",…. These sheets include the tables with the specific cost and technical data of each mitigation option, as well as the corresponding reference option. Note that these sheets are hidden by default, but the user can access those sheets and the data table of each mitigation option by clicking on the name of the mitigation option in the Mitigation Options sheet. A more detailed guidance for the use of each sheet is provided below. This guidance can also be opened in PDF and printed by clicking on the two buttons located in the upper-right corner of this Guidance sheet.
B12: Step 1: Assumptions
B13: The Assumption sheet includes all the basic country, cost, and technical data that the GACMO tool needs as inputs for the calculations. First, in the Basic country information table, the user must introduce:
B14: • • • • • | C14: The name of the country. The start year = the year in which the data of the energy balance and GHG emissions of non-energy sectors are collected. This is generally the most recent year for which the necessary data are available. The currency = the system of money in general use in the country The exchange rate used (1US$=) = the price of the country's money in relation to the US dollar. Discount rate = the interest rate used to determine the present value of future cash flows in a discounted cash flow analysis.
B15: Second, in the Energy prices used for the entire future period and Fuel prices (all in 2020 prices) tables, the user must introduce:
B16: • | C16: The Energy prices in US$/unit for crude oil, all distillates, coal, lignite, and natural gas used in the energy mix of the country. The model uses the historical relationship between the price of crude oil/liter and the price of distillate/liter. These prices can be entered as constant fuel prices estimated for the future.
B17: Third, in the Electricity table, the user must introduce:
B18: • • • | C18: US$/kWh = The price of electricity in US$/kWh Combined Margin (CM) Other = the grid emission factor or CO2 emission factor for electricity production. Note that the value for the Electricity grid losses & own consumption is calculated by the GACMO tool and imported from the Energy Balance sheet.
B19: Fourth, in the Sector specific Emission factors (kg GHG/GJ) table, the user must introduce:
B20: • | C20: The greenhouse gas emission factor for all the fossil fuels. It has to be noted that average default values for those fuel emissions factors are provided by GACMO, but the user can adjust them if national values are available for the same fuels.
B21: Fifth, in the Global warming potentials tables, the user must introduce:
B22: • | C22: The Global Warming Potential (GWP) for methane (CH4) and for nitrous oxide (N2O). GACMO provides the IPCC GWP as default values. It has to be noted that the GWP of PFC gas is also included in GACMO but it is at the level of the "HFC PFC SF6 technology sheet"
B23: Finally, in the Population and GDP in Start year table, the user must introduce:
B24: • | C24: The Population and the Gross Domestic Product in the start year
B25: ONCE THE DATA HAVE BEEN INSERTED IN THE ASSUMPTION SHEET, YOU CAN CLICK “GO TO STEP 2: ENERGY BALANCE”.
B27: Step 2: Energy Balance
B28: The Energy Balance sheet includes the energy data disaggregated by sector of activity for the start year. In the two first tables Energy balance in TJ – Country X - Base year and Base year energy balance in mega tonnes and million cubic meters, the balance contains columns for all the fossil fuels, and rows for all the normal sectors of the energy balance.
B29: • | C29: For the fossil fuels used in the country's energy mix at the start year, the user must include the amounts of the different fuels used by each normal sector of activity. Usually, the input unit for this energy balance is TJ. However, the user can choose to insert the data in units of mass or volume (mega tonnes and million cubic meters). The user can select either one or another input by clicking the button “Select unit for input (TJ or Mass/volume)”.
B30: Once the user has included the energy balance data in TJ or mass/volume units, GACMO automatically calculates the energy balance in ktoe unit. For those calculations, GACMO uses the default IPCC emission factors in tCO2/toe, and calorific values in toe/(ton or m3). The table with the energy balance calculated in ktoe can be shown (or hidden) by clicking the button “Show/Hide table in ktoe values”. Finally, in the last table Base year electricity balance in GWh, the user must include:
B31: • • | C31: Electricity consumption data = amounts of electricity (in GWh unit) used by each normal sector of activity Electricity production data = amounts of electricity (in GWh unit) produced with each fossil fuel or renewable energy source
B32: ONCE THE DATA HAVE BEEN INSERTED IN THE ENERGY BALANCE SHEET, YOU CAN CLICK “GO TO STEP 3: GHG BALANCE”.
B34: Step 3: GHG Balance
B35: The GHG Balance sheet includes the GHG emissions data disaggregated by sector of activity for the start year. The first table CO2 Emissions – Country X - Start year includes the balance for the CO2 emissions at the start year expressed in ktCO2 equivalents unit. GACMO automatically calculates the data in this table. The user should not insert or modify the data in this table. In the second table Non-CO2 emissions, non-fuel combustion sectors, the user must include:
B36: • | C36: The CH4 and N2O data, expressed in ktCO2 equivalent units for each sector/sub-sector as defined by the IPCC. Those data can be found in the greenhouse gas national inventory of the country calculated for the start year. If no data are available for the start year, the user can alternatively take the data for the year closest to the start year.
B37: ONCE THE DATA HAVE BEEN INSERTED IN THE GHG BALANCE SHEET, YOU CAN CLICK “GO TO STEP 4: GROWTH FACTORS”.
B39: Step 4: Growth factors
B40: The Growth sheet includes the expected growth in energy consumption for the different sectors of activity for different periods of time. In the table Growth from the start year – Country X, the user must include:
B41: • • | C41: The Population growth, estimated for the different periods: start year-2025, 2025-2030, 2030-2035, and 2030-2050. The GDP growth, estimated for the different periods: start year-2025, 2025-2030, 2030-2035, and 2030-2050.
B42: Note that these two parameters Population growth and GDP growth are only used by GACMO to calculate the GHG emissions of the country expressed per capita or per GDP units.
B43: • | C43: The annual growth in energy consumption estimated for each sector of activity for the different periods: start year-2025, 2025-2030, and 2030-2050. It must be noted that those data can be estimated from the historical values of each sector of activity. Alternatively, those estimations can eventually be found in national or sectoral documents (for example energy plan of the country) or can be estimated by national experts to the best of their knowledge.
B44: GACMO automatically calculates the percentage increase from the start year to 2025, 2030, 2035, and 2050.
B45: ONCE THE DATA HAVE BEEN INSERTED IN THE GROWTH SHEET, YOU CAN CLICK “GO TO STEP 5: BAU ENERGY BALANCES”. Note that after the user clicks on “Go to Step 5”, the sheets Steps 1-4 will be hidden. This is because Step 4 finishes the process of input data collection for the Start Year and for the BAU scenario. The next steps depict the results for the BAU scenario (Steps 5-6) and the calculations for building the Mitigation Scenario (Step 7). If the user needs to change the input data, it is possible to go back to the initial sheets at any moment by clicking on “Go back to Step 1-4”.
B47: Step 5: BAU Energy balances
B48: The BAU projected energy balances sheet includes the future energy balances for the years 2025, 2030, 2035, and 2050. Based on the energy balance data for the start year and on the growth factors introduced by the user, GACMO calculates the data for the Fossil fuel balance and for the Electricity balance projected for the future years 2025, 2030, 2035, and 2050. The user can navigate between the energy balance tables for the different years (2025, 2030, 2035, 2050) expressed in TJ or ktoe units by clicking the corresponding buttons in the upper part of this sheet. It must be noted that the user should not modify any of the data calculated by GACMO shown in the tables Fossil fuel balance – year – Country X and Electricity balance – year. However, a user may exceptionally decide to modify a specific data in one of these tables in the case that the user would like to reflect a change in the energy matrix which is not taken into account by the projections made by GACMO. The user should only make such a change if he/she is completely familiar with those types of data as the change will have an impact on the emissions scenarios and results obtained.
B49: ONCE YOU HAVE REVIEWED THE TABLES OF THE BAU PROJECTED ENERGY BALANCES SHEET, YOU CAN CLICK “GO TO STEP 6: BAU GHG BALANCES”.
B51: Step 6: BAU projected GHG balances
B52: The BAU projected GHG balances sheet includes the future greenhouse gas emissions balances for the years 2025, 2030, 2035, and 2050. Based on the greenhouse gas balance data for the start year and on the growth factors introduced by the user, GACMO calculates the data for the greenhouse gas balances projected for the future years 2025, 2030, 2035, and 2050. These data are shown in two tables respectively for the CO2 balance and for the CH4 and N20 balances expressed in ktCO2e. The user can navigate between the greenhouse gas balance tables for the different years (2025, 2030, 2035, 2050) by clicking the corresponding buttons in the upper part of this sheet.
B53: It must be noted that the user should not modify any of the data calculated by GACMO shown in the tables CO2 balance and CH4 and N20 balances. However, a user may exceptionally decide to modify a specific data in one of these tables in the case that the user would like to reflect a change in the greenhouse gas balance which is not taken into account by the projections made by GACMO. The user should only make such a change if he/she is completely familiar with those types of data as the change will have an impact on the emissions scenarios and results obtained. In this BAU projected GHG balances sheet, GACMO calculates the total greenhouse gas emissions for the future years 2025, 2030, 2035, and 2050 in the BAU scenario. By connecting the points corresponding to those emissions in the start year, 2025, 2030, 2035, and 2050, GACMO draws a greenhouse gas emissions curve corresponding to the BAU scenario. This curve can be seen in a graph in the Results sheet.
B54: ONCE YOU HAVE REVIEWED THE TABLES OF THE BAU PROJECTED GHG BALANCES SHEET, YOU CAN CLICK “GO TO STEP 7: MITIGATION OPTIONS”.
B56: Step 7: Mitigations Options
B57: The Mitigation Options sheet includes the mitigation options that will be under implementation in the country by the years 2025, 2030, 2035, and 2050. This sheet is used by GACMO to build the greenhouse gas mitigation scenario. GACMO includes 119 mitigation options (Reduction options in column C) grouped by category or activity types (Type in column B). All 119 mitigation options are shown by default for the years 2025, 2030, 2035, and 2050. The user can shift between each year by clicking the corresponding year button in the upper part of the sheet. In addition, if the user wants to see only the mitigation options for a specific group of category or activity types, the user can select the corresponding category/ies or activity/ies by clicking the button Select reduction option sector/type in the upper part of the sheet. If the user notices that a specific mitigation option relevant to the country is not included in GACMO, the user can contact UNEP-CCC using the email mentioned in the Introduction sheet, and we will try to include the missing mitigation option.
B58: For each year 2025, 2030, 2035, and 2050, the user has to consider the mitigation options that are relevant to the national context and that will be included in the greenhouse gas mitigation scenario. Then for each mitigation option considered, in column I (Units penetrating in 2025/2030/2035/2050) the user needs to indicate the number of units expected to be under implementation by the year 2025 (/2030/2035/2050). For each mitigation option, the number introduced by the user in column I has to take into account the sub-type unit described in column E. This can for example be in “ha” in the case of mitigation options in agriculture, in ”MW” in the case of mitigation options in the energy power sector, in “number of bulbs” in the case of mitigation options in lighting, etc. The number in column I has also to take into account the value already included in the sub-type unit described in column E. For example, for the mitigation option “Efficient lighting with LEDs” (line 33), the value of the sub-type unit is “1000 bulbs”. In this example, if the user expects to have 1 million LED bulbs under implementation by 2025, the number that will be included in column I is 1000, as 1000 x 1000 bulbs = 1 million. Finally, it has to be noted that the numbers indicated for the years 2025, 2030, 2035, and 2050 are total numbers (and not cumulative numbers). In our LEDs example, if the user expects to have 1 million LED bulbs under implementation by 2025 and 2 million LED bulbs under implementation by 2030, the numbers that will be included in column I are 1000 for 2025 (as 1000 x 1000 bulbs = 1 million) and 2000 for 2030 (as 2000 x 1000 bulbs = 2 million). Remember that the user only needs to indicate a number in column I for the mitigation options considered relevant in a certain year as per the country's national context. For the mitigation options that are not considered relevant, the corresponding cells in column I are left blank.
B59: In the table of the Mitigation Options sheet, GACMO provides also other information or data for each mitigation option, in many cases calculated from the number of penetrating units included in the column I by the user. These additional information or data are found in the columns D, F, G, H, J, K, L, M, N, O, and P.
B60: • • • • • • • • • • | C60: Column D = abatement cost reduction in US$/ton CO2e. Column F = GHG emissions reduction in tCO2 equivalent per unit of the mitigation option as defined in column E. Column G = total investment cost in Millions of US$ for the mitigation option, as additional cost compared to the total investment cost of the reference option. Column H = total annual operational cost in Millions of US$/year for the mitigation option, as additional cost compared to the total annual operational cost of the reference option. ______________ Column J = total GHG emissions reduction in ktco2 equivalent achieved by the implementation of the number of units of the mitigation option penetrating by the year 2025/2030/2035/2050 (as per column I). Column K = cumulative GHG emissions reduction in ktco2 equivalent achieved by the implementation of the number of units of all the mitigation options penetrating by the year 2025/2030/2035/2050 (as per column I). Column L = cumulative GHG emissions reduction as the % of the total reduction achieved in the year 2025/2030/2035/2050 in comparison to the baseline emissions for this year, by the implementation of the number of units of all the mitigation options penetrating by the year. Columns M, N = savings of diesel and gasoline, which cannot be replaced by biodiesel and bioethanol. Column O = the reduction (savings) in electricity consumption in GWh achieved by the implementation of the number of units of the mitigation option penetrating by the year 2025/2030/2035/2050 (as per column I). Column P = electricity produced in GWh by the implementation of the number of units of the mitigation option penetrating by the year 2025/2030/2035/2050 (as per column I).
B61: In this Mitigation Options sheet, GACMO calculates thus the total greenhouse gas emissions for the future years 2025, 2030, 2035, and 2050 in the mitigation scenario, that is including the implementation of the mitigation options considered by the user. By connecting the points corresponding to those emissions in the start year, 2025, 2030, 2035, and 2050, GACMO draws a greenhouse gas emissions curve corresponding to the mitigation scenario. This curve can be seen in a graph in the Results sheet.
B62: It must be noted that all the calculations for emissions reductions and costs made by GACMO use default technical and cost values specific to each mitigation option. These default values have been calculated as average values out of the CDM projects pipeline developed at UNEP-CCC. The use of these average default values for emissions reductions and cost data constitutes a good approximation and allows the user to get good results out of GACMO. If the user wishes to have access to the default technical and cost values for a specific mitigation option, he/she can click on the name of the corresponding mitigation option in column C of the Mitigation Options sheet. This will bring the user to a table including all the technical and cost data of the specific mitigation option used in the calculations (please refer to the next section Technology Sheets in case you would like to learn more about these mitigation options table).
B63: ONCE THE DATA HAVE BEEN INSERTED IN THE MITIGATION OPTIONS SHEET AND ONCE YOU HAVE REVIEWED THE TABLES OF THE TECHNOLOGY SHEETS FOR EACH MITIGATION OPTION (see step Technology Sheets below), YOU CAN CLICK “GO TO STEP 8: RESULTS”.
B65: Step - Technology Sheets
B66: All the calculations for emissions reductions and costs made by GACMO use default technical and cost values specific to each mitigation option. These default values have been calculated as average values out of the CDM projects pipeline developed at UNEP-CCC. The use of these average default values for emissions reductions and cost data constitutes a good approximation and allows the user to get good results out of GACMO. To access the table with the default technical and cost values for a specific mitigation option, the user can click on the name of the corresponding mitigation option in column C of the Mitigation Options sheet. This will bring the user to a Technology sheet grouping all the mitigation options of the same category and to a table including all the technical and cost data of the specific mitigation option used in the calculations. Once the user is done reviewing the table in the Technology sheet, click on “Return to Mitigation options” to go back to the Mitigation Options sheet.
B67: It is always recommended that the user takes the time to review the tables including all the default values for technical and cost data of the relevant mitigation options. If the user has values specific to the country's national context for some of the technical and cost data of the relevant mitigation options, the user can replace the corresponding default values with these specific values. By doing so, the user will increase the quality of the results out of GACMO. All the tables including the technical and cost data of the specific mitigation options in the Technology sheets are built in the same way:
B68: • • • • • • • • • • | C68: The top line contains the name of the mitigation option. The upper left table contains the economic calculation with a column for the reduction option (or mitigation option), a column for the reference option (without the implementation of the mitigation action), and a column with the cost impact (can be positive or negative) between the reduction and the reference options. The next line in this part contains the investment in US$ for the reduction and for the reference option (sometimes only the induced increase of the reduction option compared to the reference option, i.e. only the additionality, appears in the table). first column). The next line shows the project life, that is the number of years corresponding to the average life of the reduction or the reference option. The next line shows the annual payment (= levelized cost) of the investment according to the discount rate used (shown in the general inputs table on the right) and the project life. The following lines show the annual cost of operation and maintenance, fuel costs, and, in some cases, material costs. The last line in this part shows the total costs. The lower left table contains the GHG emission calculations with a column for the reduction option, a column for the reference option, and a column with the GHG reduction, that is, the difference between both options. Below this, the resulting abatement cost (also referred to as average abatement cost) in US$/ton CO2 equivalent is calculated. At the bottom, some notes explaining the option/action, if applicable, are displayed. Here the user will often see that an MDL PDD has been used to make the default data.
B69: To make calculations transparent, a table indicating all inputs is displayed on the right.
B70: • • • | C70: The upper part shows the general inputs used for the reference and reduction options. Several of these are taken from the Assumptions sheet. Below this part are the entries for the reduction option, including technical characteristics and unit costs. Below this part are the entries for the reference option.
B72: Step 8: Result sheet
B73: The Results sheet includes all the final results for the greenhouse gas emissions reductions and for the cost calculations. The sheet also displays the graphical results from the data analysis. In the Results sheet, the user will find the following information:
B74: • | C74: A Marginal Abatement Revenue Curve (MAR curve) comparing the relevant mitigation options for the years 2025, 2030, 2035, or 2050.
B75: A MAR curve corresponds to an inverted marginal abatement costs curve. The MAR curve is calculated based on the cost (investment and operational costs) of a mitigation option for reducing one unit of greenhouse gas emission – in US$/tCO2 equivalent - (y-axis), and on the total greenhouse gas emission reduction achieved by the same mitigation option per year – in ktCO2 equivalent/year - (x-axis). For a specific mitigation option, the MAR curve provides a graphical representation of the reduction potential of the option versus its cost. By integrating all the relevant mitigation options, the MAR curve compares the potential reductions among all the options versus their costs. Therefore, the MAR curve provides a very easy and quick way for the user, to identify the “win-win” mitigation options, that is the options that allow reducing the greenhouse gas emissions while having positive savings compared to their reference option. It must be noted that in the case of the MAR curve, the “win-win” mitigation options are located above the x-axis.
B76: • • • • • | C76: A table with the total greenhouse gas emissions levels reached in the different years (start year, 2025, 2030, 2035, and 2050) for the BAU scenario and for the mitigation scenario. The graph showing the curves for the total emissions in the BAU and the mitigation scenarios. A table showing the sectoral split of the emissions in the different years (start year, 2025, 2030, 2035, and 2050) for the BAU scenario. The graph showing the curves for the sectoral emissions in the BAU scenario. A table showing the sectoral split of the emissions in the different years (start year, 2025, 2030, 2035, and 2050) for the mitigation scenario.
B77: IN CASE THE USER WOULD LIKE TO USE GACMO FOR TRACKING PURPOSES, THAT IS FOR EX-POST ESTIMATIONS, CLICK “GO TO STEP 9: TRACKING PROGRESS".
B79: Step 9: Tracking Progress
B80: The Tracking progress sheet is used by the user to monitor the progress made in implementing each mitigation action. The Tracking progress sheet is thus used ex-post, that is, once the mitigation options are under implementation or have been implemented, to estimate and monitor the effective reductions of GHG emissions. The sheet includes a table with a structure similar to the table found in the Mitigation Options sheet. The table includes the 119 mitigation options (Reduction options in column C) grouped by category or activity types (Type in column B). All 119 mitigation options are shown by default. If the user wants to see only the mitigation options for a specific group of category or activity types, the user can select the corresponding category/ies or activity/ies by clicking the button "Select sector/type for Tracking input" in the upper part of the sheet.
B81: For the relevant mitigation options, the user has to introduce the number of units which has been effectively installed or implemented at the end of each year. The number of units inserted by the user has to take into account the value already included in the sub-type unit described in column D (as explained in the section about the Mitigation Options sheet). Once the number of units of a specific mitigation option has been introduced in the column of a specific year, GACMO automatically calculates the total greenhouse gas emissions reduction achieved by the implementation of the corresponding units (in ktCO2 equivalent/year). These results can thus be used to monitor the real greenhouse gas emissions reduction achieved by a country by implementing a specific mitigation option or a group of options. In addition, GACMO includes three additional columns (AC, AD, and AE) where the user can introduce information related to the sources of finance used to implement the options and other information such as the entity responsible for implementing the option.

Sheet Guidance (hidden)
B2: Quick step by step guidance for using GACMO: | S2: Guidance sheet headings! | U2: Start row | V2: End row
S3: How to Start | U3: 11 | V3: 16
B4: All cells in the worksheets where inputs are needed are | D4: yellow. | S4: Assumptions | U4: 19 | V4: 31
B5: Most of these cells contain default values. Those can be modified where appropriate. | S5: Energy Balance | U5: =V4+3 -> 34 | V5: 38
S6: GHG Balance | U6: =V5+3 -> 41 | V6: 43
S7: Growth | U7: =V6+3 -> 46 | V7: 51
S8: BAU projected energy balances | U8: 54 | V8: 55
S9: BAU projected GHG balances | U9: 58 | V9: 60
B10: How to start | S10: Mitigations Options | U10: 63 | V10: 69
B11: This version of the GACMO tool includes different spreadsheets contained in an Excel file that the user needs to consider following a stepwise approach. The interface of the tool is made so that the user is taken from the first spreadsheet to the last spreadsheet following a logical order. The two first sheets are the Introduction and the Guidance. We strongly recommend the user to read these two sheets before starting using the tool. The tool includes seven technical sheets: Assumptions, Energy Balance, GHG Balance, Growth, BAU projected Energy Balances, BAU projected GHG Balances, and Mitigation Options. These sheets include a series of tables that the user needs to consider and where the user will have to introduce the data inputs required to run the GACMO tool. Each sheet starts with an introductory text explaining the purpose of the sheet and what data and inputs need to be considered by the user. The next sheet Results includes all the results and graphics resulting from the application of the GACMO tool run by the user. Each sheet starts with an introductory text describing the results found on the sheet. Note that a button is also provided to the user to automatically produce a summary of the results as a PDF document. | S11: Technology sheets (optional step) | U11: 72 | V11: 76
S12: Results | U12: 79 | V12: 83
S13: MRV | U13: 86 | V13: 87
B14: The last sheet Tracking progress is the sheet that can be used by the user to monitor the progress made in implementing each mitigation action. The Tracking progress sheet is thus used ex-post, that is, once the mitigation options are under implementation or have been implemented, to estimate and monitor the effective reductions of GHG emissions. Finally, GACMO includes a long list of technology sheets, including "Agriculture", "Biomass Energy", "CCS", "Cement", "Coalmine CH4", "EE households", "EE Industry", "EE own generation", "EE service", "EE supply side", "E distribution", "Forestry", "Fossil fuel switch",…. These sheets include the tables with the specific cost and technical data of each mitigation option, as well as the corresponding reference option. Note that these sheets are hidden by default, but the user can access those sheets and the data table of each mitigation option by clicking on the name of the mitigation option in the Mitigation Options sheet. A more detailed guidance for the use of each sheet is provided below. This guidance can also be opened in PDF and printed by clicking on the two buttons located in the upper-right corner of this Guidance sheet.
B18: Step 1: Assumptions
B19: The Assumption sheet includes all the basic country, cost, and technical data that the GACMO tool needs as inputs for the calculations. First, in the Basic country information table, the user must introduce:
B20: • • • • • | C20: The name of the country. The start year = the year in which the data of the energy balance and GHG emissions of non-energy sectors are collected. This is generally the most recent year for which the necessary data are available. The currency = the system of money in general use in the country The exchange rate used (1US$=) = the price of the country's money in relation to the US dollar. Discount rate = the interest rate used to determine the present value of future cash flows in a discounted cash flow analysis.
B21: Second, in the Energy prices used for the entire future period and Fuel prices for the entire future period tables, the user must introduce:
B22: • | C22: The Energy prices in US$/unit for crude oil, all distillates, coal, lignite, and natural gas used in the energy mix of the country. The model uses the historical relationship between the price of crude oil/liter and the price of distillate/liter. These prices can be entered as constant fuel prices estimated for the future.
B23: Third, in the Electricity and in the Grid Emission Factor tables, the user must introduce:
B24: • • • | C24: US$/kWh = The price of electricity in US$/kWh Combined Margin (CM) Other = the grid emission factor or CO2 emission factor for electricity production. Note that the value for the Electricity grid losses & own consumption is calculated by the GACMO tool and imported from the Energy Balance sheet.
B25: Fourth, in the Sector specific Emission factors (kg GHG/GJ) table, the user must introduce:
B26: • | C26: The greenhouse gas emission factor for all the fossil fuels. It has to be noted that average default values for those fuel emissions factors are provided by GACMO, but the user can adjust them if national values are available for the same fuels.
B27: Fifth, in the Global warming potentials tables, the user must introduce:
B28: • | C28: The Global Warming Potential (GWP) for methane (CH4) and for nitrous oxide (N2O). GACMO provides the IPCC GWP as default values. It has to be noted that the GWP of PFC gas is also included in GACMO but it is at the level of the "HFC PFC SF6 technology sheet"
B29: Finally, in the Population and GDP in Start year table, the user must introduce:
B30: • | C30: The Population and the Gross Domestic Product in the start year
B31: ONCE THE DATA HAVE BEEN INSERTED IN THE ASSUMPTION SHEET, YOU CAN CLICK “GO TO STEP 2: ENERGY BALANCE”.
B33: Step 2: Energy Balance
B34: The Energy Balance sheet includes the energy data disaggregated by sector of activity for the start year. In the two first tables Energy balance in TJ – Country X - Base year and Base year energy balance in mega tonnes and million cubic meters, the balance contains columns for all the fossil fuels, and rows for all the normal sectors of the energy balance.
B35: • | C35: For the fossil fuels used in the country's energy mix at the start year, the user must include the amounts of the different fuels used by each normal sector of activity. Usually, the input unit for this energy balance is TJ. However, the user can choose to insert the data in units of mass or volume (mega tonnes and million cubic meters). The user can select either one or another input by clicking the button “Select unit for input (TJ or Mass/volume)”.
B36: Once the user has included the energy balance data in TJ or mass/volume units, GACMO automatically calculates the energy balance in ktoe unit. For those calculations, GACMO uses the default IPCC emission factors in tCO2/toe, and calorific values in toe/(ton or m3). The table with the energy balance calculated in ktoe can be shown (or hidden) by clicking the button “Show/Hide table in ktoe values”. Finally, in the last table Base year electricity balance in GWh, the user must include:
B37: • • | C37: Electricity consumption data = amounts of electricity (in GWh unit) used by each normal sector of activity Electricity production data = amounts of electricity (in GWh unit) produced with each fossil fuel or renewable energy source
B38: ONCE THE DATA HAVE BEEN INSERTED IN THE ENERGY BALANCE SHEET, YOU CAN CLICK “GO TO STEP 3: GHG BALANCE”.
B40: Step 3: GHG Balance
B41: The GHG Balance sheet includes the GHG emissions data disaggregated by sector of activity for the start year. The first table CO2 Emissions – Country X - Start year includes the balance for the CO2 emissions at the start year expressed in ktCO2 equivalents unit. GACMO automatically calculates the data in this table. The user should not insert or modify the data in this table. In the second table Non-CO2 emissions, non-fuel combustion sectors, the user must include:
B42: • | C42: The CH4 and N2O data, expressed in ktCO2 equivalent units for each sector/sub-sector as defined by the IPCC. Those data can be found in the greenhouse gas national inventory of the country calculated for the start year. If no data are available for the start year, the user can alternatively take the data for the year closest to the start year.
B43: ONCE THE DATA HAVE BEEN INSERTED IN THE GHG BALANCE SHEET, YOU CAN CLICK “GO TO STEP 4: GROWTH FACTORS”.
B45: Step 4: Growth factors
B46: The Growth sheet includes the expected growth in energy consumption for the different sectors of activity for different periods of time. In the table Growth from the start year – Country X, the user must include:
B47: • • | C47: The Population growth, estimated for the different periods: start year-2025, 2025-2030, 2030-2035, and 2030-2050. The GDP growth, estimated for the different periods: start year-2025, 2025-2030, 2030-2035, and 2030-2050.
B48: Note that these two parameters Population growth and GDP growth are only used by GACMO to calculate the GHG emissions of the country expressed per capita or per GDP units.
B49: • | C49: The annual growth in energy consumption estimated for each sector of activity for the different periods: start year-2025, 2025-2030, and 2030-2050. It must be noted that those data can be estimated from the historical values of each sector of activity. Alternatively, those estimations can eventually be found in national or sectoral documents (for example energy plan of the country) or can be estimated by national experts to the best of their knowledge.
B50: GACMO automatically calculates the percentage increase from the start year to 2025, 2030, 2035, and 2050.
B51: ONCE THE DATA HAVE BEEN INSERTED IN THE GROWTH SHEET, YOU CAN CLICK “GO TO STEP 5: BAU ENERGY BALANCES”. Note that after the user clicks on “Go to Step 5”, the sheets Steps 1-4 will be hidden. This is because Step 4 finishes the process of input data collection for the Start Year and for the BAU scenario. The next steps depict the results for the BAU scenario (Steps 5-6) and the calculations for building the Mitigation Scenario (Step 7). If the user needs to change the input data, it is possible to go back to the initial sheets at any moment by clicking on “Go back to Step 1-4”.
B53: Step 5: BAU Energy balances
B54: The BAU projected energy balances sheet includes the future energy balances for the years 2025, 2030, 2035, and 2050. Based on the energy balance data for the start year and on the growth factors introduced by the user, GACMO calculates the data for the Fossil fuel balance and for the Electricity balance projected for the future years 2025, 2030, 2035, and 2050. The user can navigate between the energy balance tables for the different years (2025, 2030, 2035, 2050) expressed in TJ or ktoe units by clicking the corresponding buttons in the upper part of this sheet. It must be noted that the user should not modify any of the data calculated by GACMO shown in the tables Fossil fuel balance – year – Country X and Electricity balance – year. However, a user may exceptionally decide to modify a specific data in one of these tables in the case that the user would like to reflect a change in the energy matrix which is not taken into account by the projections made by GACMO. The user should only make such a change if he/she is completely familiar with those types of data as the change will have an impact on the emissions scenarios and results obtained.
B55: ONCE YOU HAVE REVIEWED THE TABLES OF THE BAU PROJECTED ENERGY BALANCES SHEET, YOU CAN CLICK “GO TO STEP 6: BAU GHG BALANCES”.
B57: Step 6: BAU projected GHG balances
B58: The BAU projected GHG balances sheet includes the future greenhouse gas emissions balances for the years 2025, 2030, 2035, and 2050. Based on the greenhouse gas balance data for the start year and on the growth factors introduced by the user, GACMO calculates the data for the greenhouse gas balances projected for the future years 2025, 2030, 2035, and 2050. These data are shown in two tables respectively for the CO2 balance and for the CH4 and N20 balances expressed in ktCO2e. The user can navigate between the greenhouse gas balance tables for the different years (2025, 2030, 2035, 2050) by clicking the corresponding buttons in the upper part of this sheet.
B59: It must be noted that the user should not modify any of the data calculated by GACMO shown in the tables CO2 balance and CH4 and N20 balances. However, a user may exceptionally decide to modify a specific data in one of these tables in the case that the user would like to reflect a change in the greenhouse gas balance which is not taken into account by the projections made by GACMO. The user should only make such a change if he/she is completely familiar with those types of data as the change will have an impact on the emissions scenarios and results obtained. In this BAU projected GHG balances sheet, GACMO calculates the total greenhouse gas emissions for the future years 2025, 2030, 2035, and 2050 in the BAU scenario. By connecting the points corresponding to those emissions in the start year, 2025, 2030, 2035, and 2050, GACMO draws a greenhouse gas emissions curve corresponding to the BAU scenario. This curve can be seen in a graph in the Results sheet.
B60: ONCE YOU HAVE REVIEWED THE TABLES OF THE BAU PROJECTED GHG BALANCES SHEET, YOU CAN CLICK “GO TO STEP 7: MITIGATION OPTIONS”.
B62: Step 7: Mitigations Options
B63: The Mitigation Options sheet includes the mitigation options that will be under implementation in the country by the years 2025, 2030, 2035, and 2050. This sheet is used by GACMO to build the greenhouse gas mitigation scenario. GACMO includes 119 mitigation options (Reduction options in column C) grouped by category or activity types (Type in column B). All 119 mitigation options are shown by default for the years 2025, 2030, 2035, and 2050. The user can shift between each year by clicking the corresponding year button in the upper part of the sheet. In addition, if the user wants to see only the mitigation options for a specific group of category or activity types, the user can select the corresponding category/ies or activity/ies by clicking the button Select reduction option sector/type in the upper part of the sheet. If the user notices that a specific mitigation option relevant to the country is not included in GACMO, the user can contact UNEP-CCC using the email mentioned in the Introduction sheet, and we will try to include the missing mitigation option.
B64: For each year 2025, 2030, 2035, and 2050, the user has to consider the mitigation options that are relevant to the national context and that will be included in the greenhouse gas mitigation scenario. Then for each mitigation option considered, in column I (Units penetrating in 2025/2030/2035/2050) the user needs to indicate the number of units expected to be under implementation by the year 2025 (/2030/2035/2050). For each mitigation option, the number introduced by the user in column I has to take into account the sub-type unit described in column E. This can for example be in “ha” in the case of mitigation options in agriculture, in ”MW” in the case of mitigation options in the energy power sector, in “number of bulbs” in the case of mitigation options in lighting, etc. The number in column I has also to take into account the value already included in the sub-type unit described in column E. For example, for the mitigation option “Efficient lighting with LEDs” (line 33), the value of the sub-type unit is “1000 bulbs”. In this example, if the user expects to have 1 million LED bulbs under implementation by 2025, the number that will be included in column I is 1000, as 1000 x 1000 bulbs = 1 million. Finally, it has to be noted that the numbers indicated for the years 2025, 2030, 2035, and 2050 are total numbers (and not cumulative numbers). In our LEDs example, if the user expects to have 1 million LED bulbs under implementation by 2025 and 2 million LED bulbs under implementation by 2030, the numbers that will be included in column I are 1000 for 2025 (as 1000 x 1000 bulbs = 1 million) and 2000 for 2030 (as 2000 x 1000 bulbs = 2 million). Remember that the user only needs to indicate a number in column I for the mitigation options considered relevant in a certain year as per the country's national context. For the mitigation options that are not considered relevant, the corresponding cells in column I are left blank.
B65: In the table of the Mitigation Options sheet, GACMO provides also other information or data for each mitigation option, in many cases calculated from the number of penetrating units included in the column I by the user. These additional information or data are found in the columns D, F, G, H, J, K, L, M, N, O, and P.
B66: • • • • • • • • • • | C66: Column D = abatement cost reduction in US$/ton CO2e. Column F = GHG emissions reduction in tCO2 equivalent per unit of the mitigation option as defined in column E. Column G = total investment cost in Millions of US$ for the mitigation option, as additional cost compared to the total investment cost of the reference option. Column H = total annual operational cost in Millions of US$/year for the mitigation option, as additional cost compared to the total annual operational cost of the reference option. ______________ Column J = total GHG emissions reduction in ktco2 equivalent achieved by the implementation of the number of units of the mitigation option penetrating by the year 2025/2030/2035/2050 (as per column I). Column K = cumulative GHG emissions reduction in ktco2 equivalent achieved by the implementation of the number of units of all the mitigation options penetrating by the year 2025/2030/2035/2050 (as per column I). Column L = cumulative GHG emissions reduction as the % of the total reduction achieved in the year 2025/2030/2035/2050 in comparison to the baseline emissions for this year, by the implementation of the number of units of all the mitigation options penetrating by the year. Columns M, N = savings of diesel and gasoline, which cannot be replaced by biodiesel and bioethanol. Column O = the reduction (savings) in electricity consumption in GWh achieved by the implementation of the number of units of the mitigation option penetrating by the year 2025/2030/2035/2050 (as per column I). Column P = electricity produced in GWh by the implementation of the number of units of the mitigation option penetrating by the year 2025/2030/2035/2050 (as per column I).
B67: In this Mitigation Options sheet, GACMO calculates thus the total greenhouse gas emissions for the future years 2025, 2030, 2035, and 2050 in the mitigation scenario, that is including the implementation of the mitigation options considered by the user. By connecting the points corresponding to those emissions in the start year, 2025, 2030, 2035, and 2050, GACMO draws a greenhouse gas emissions curve corresponding to the mitigation scenario. This curve can be seen in a graph in the Results sheet.
B68: It must be noted that all the calculations for emissions reductions and costs made by GACMO use default technical and cost values specific to each mitigation option. These default values have been calculated as average values out of the CDM projects pipeline developed at UNEP-CCC. The use of these average default values for emissions reductions and cost data constitutes a good approximation and allows the user to get good results out of GACMO. If the user wishes to have access to the default technical and cost values for a specific mitigation option, he/she can click on the name of the corresponding mitigation option in column C of the Mitigation Options sheet. This will bring the user to a table including all the technical and cost data of the specific mitigation option used in the calculations (please refer to the next section Technology Sheets in case you would like to learn more about these mitigation options table).
B69: ONCE THE DATA HAVE BEEN INSERTED IN THE MITIGATION OPTIONS SHEET AND ONCE YOU HAVE REVIEWED THE TABLES OF THE TECHNOLOGY SHEETS FOR EACH MITIGATION OPTION (see step Technology Sheets below), YOU CAN CLICK “GO TO STEP 8: RESULTS”.
B71: Step - Technology Sheets
B72: All the calculations for emissions reductions and costs made by GACMO use default technical and cost values specific to each mitigation option. These default values have been calculated as average values out of the CDM projects pipeline developed at UNEP-CCC. The use of these average default values for emissions reductions and cost data constitutes a good approximation and allows the user to get good results out of GACMO. To access the table with the default technical and cost values for a specific mitigation option, the user can click on the name of the corresponding mitigation option in column C of the Mitigation Options sheet. This will bring the user to a Technology sheet grouping all the mitigation options of the same category and to a table including all the technical and cost data of the specific mitigation option used in the calculations. Once the user is done reviewing the table in the Technology sheet, click on “Return to Mitigation options” to go back to the Mitigation Options sheet.
B73: It is always recommended that the user takes the time to review the tables including all the default values for technical and cost data of the relevant mitigation options. If the user has values specific to the country's national context for some of the technical and cost data of the relevant mitigation options, the user can replace the corresponding default values with these specific values. By doing so, the user will increase the quality of the results out of GACMO. All the tables including the technical and cost data of the specific mitigation options in the Technology sheets are built in the same way:
B74: • • • • • • • • • • | C74: The top line contains the name of the mitigation option. The upper left table contains the economic calculation with a column for the reduction option (or mitigation option), a column for the reference option (without the implementation of the mitigation action), and a column with the cost impact (can be positive or negative) between the reduction and the reference options. The next line in this part contains the investment in US$ for the reduction and for the reference option (sometimes only the induced increase of the reduction option compared to the reference option, i.e. only the additionality, appears in the table). first column). The next line shows the project life, that is the number of years corresponding to the average life of the reduction or the reference option. The next line shows the annual payment (= levelized cost) of the investment according to the discount rate used (shown in the general inputs table on the right) and the project life. The following lines show the annual cost of operation and maintenance, fuel costs, and, in some cases, material costs. The last line in this part shows the total costs. The lower left table contains the GHG emission calculations with a column for the reduction option, a column for the reference option, and a column with the GHG reduction, that is, the difference between both options. Below this, the resulting abatement cost (also referred to as average abatement cost) in US$/ton CO2 equivalent is calculated. At the bottom, some notes explaining the option/action, if applicable, are displayed. Here the user will often see that an MDL PDD has been used to make the default data.
B75: To make calculations transparent, a table indicating all inputs is displayed on the right.
B76: • • • | C76: The upper part shows the general inputs used for the reference and reduction options. Several of these are taken from the Assumptions sheet. Below this part are the entries for the reduction option, including technical characteristics and unit costs. Below this part are the entries for the reference option.
B78: Step 8: Results
B79: The Results sheet includes all the final results for the greenhouse gas emissions reductions and for the cost calculations. The sheet also displays the graphical results from the data analysis. In the Results sheet, the user will find the following information:
B80: • | C80: A Marginal Abatement Revenue Curve (MAR curve) comparing the relevant mitigation options for the years 2025, 2030, 2035, or 2050.
B81: A MAR curve corresponds to an inverted marginal abatement costs curve. The MAR curve is calculated based on the cost (investment and operational costs) of a mitigation option for reducing one unit of greenhouse gas emission – in US$/tCO2 equivalent - (y-axis), and on the total greenhouse gas emission reduction achieved by the same mitigation option per year – in ktCO2 equivalent/year - (x-axis). For a specific mitigation option, the MAR curve provides a graphical representation of the reduction potential of the option versus its cost. By integrating all the relevant mitigation options, the MAR curve compares the potential reductions among all the options versus their costs. Therefore, the MAR curve provides a very easy and quick way for the user, to identify the “win-win” mitigation options, that is the options that allow reducing the greenhouse gas emissions while having positive savings compared to their reference option. It must be noted that in the case of the MAR curve, the “win-win” mitigation options are located above the x-axis.
B82: • • • • • | C82: A table with the total greenhouse gas emissions levels reached in the different years (start year, 2025, 2030, 2035, and 2050) for the BAU scenario and for the mitigation scenario._____________ The graph showing the curves for the total emissions in the BAU and the mitigation scenarios. A table showing the sectoral split of the emissions in the different years (start year, 2025, 2030, 2035, and 2050) for the BAU scenario. The graph showing the curves for the sectoral emissions in the BAU scenario. A table showing the sectoral split of the emissions in the different years (start year, 2025, 2030, 2035, and 2050) for the mitigation scenario.
B83: IN CASE THE USER WOULD LIKE TO USE GACMO FOR TRACKING PURPOSES, THAT IS FOR EX-POST ESTIMATIONS, CLICK “GO TO STEP 9: TRACKING PROGRESS".
B85: Step 9: Tracking progress
B86: The Tracking progress sheet is used by the user to monitor the progress made in implementing each mitigation action. The Tracking progress sheet is thus used ex-post, that is, once the mitigation options are under implementation or have been implemented, to estimate and monitor the effective reductions of GHG emissions. The sheet includes a table with a structure similar to the table found in the Mitigation Options sheet. The table includes the 119 mitigation options (Reduction options in column C) grouped by category or activity types (Type in column B). All 119 mitigation options are shown by default. If the user wants to see only the mitigation options for a specific group of category or activity types, the user can select the corresponding category/ies or activity/ies by clicking the button "Select sector/type for Tracking input" in the upper part of the sheet.
B87: For the relevant mitigation options, the user has to introduce the number of units which has been effectively installed or implemented at the end of each year. The number of units inserted by the user has to take into account the value already included in the sub-type unit described in column D (as explained in the section about the Mitigation Options sheet). Once the number of units of a specific mitigation option has been introduced in the column of a specific year, GACMO automatically calculates the total greenhouse gas emissions reduction achieved by the implementation of the corresponding units (in ktCO2 equivalent/year). These results can thus be used to monitor the real greenhouse gas emissions reduction achieved by a country by implementing a specific mitigation option or a group of options. In addition, GACMO includes three additional columns (AC, AD, and AE) where the user can introduce information related to the sources of finance used to implement the options and other information such as the entity responsible for implementing the option.

Sheet Assumptions (hidden)
B1: Step 1 - Assumptions
B8: Basic country information | F8: The Assumptions sheet includes all the basic country, cost, and technical data that the GACMO tool needs as inputs for the calculations. This sheet must be filled in by the user. All the cells in the eight tables displayed on the sheet must be considered by the user. Some of these cells may already include default values for some data, but the user can adjust those values if national values are available. Please refer to the Guidance for further details on the data included in this sheet and on how to fill it in. Once all the data have been inserted in the Assumptions sheet, you can click “Go to step 2: Energy balance”. | T8: Guidance sheet headings! | V8: Start row | W8: End row
B9: Country: | C9: Country X | S9: 1 | T9: How to Start | V9: 11 | W9: 16
B10: Start year (latest inventory): | C10: 2015 | S10: 2 | T10: Assumptions | V10: 19 | W10: 29
B11: Currency: | C11: Currency Y | S11: 3 | T11: Energy Balance | V11: 32 | W11: 36
B12: Exchange rate used (1US$=): | C12: 4 | D12: =IF(Currency="Currency Y","",Currency) ->  | S12: 4 | T12: GHG Balance | V12: =W11+3 -> 39 | W12: 41
B13: Discount rate = | C13: 0.07 | S13: 5 | T13: Growth | V13: =W12+3 -> 44 | W13: 49
S14: 6 | T14: BAU projected energy balances | V14: 52 | W14: 53
S15: 7 | T15: BAU projected GHG balances | V15: 56 | W15: 58
B16: Energy prices used for the entire future period: | S16: 8 | T16: Mitigations Options | V16: 61 | W16: 67
B17: Crude oil | C17: 50 | D17: US$/bbl | S17: 9 | T17: Technology sheets (optional step) | V17: 70 | W17: 74
B18: Crude oil | C18: =C17/159 -> 0.3144654088 | D18: US$/litre | S18: 10 | T18: Results | V18: 77 | W18: 81
B19: LNG | C19: 3.25 | D19: US$/MBTU | S19: 11 | T19: MRV | V19: 84 | W19: 85
B20: Natural gas | C20: =C19/1.055 -> 3.08056872 | D20: US$/GJ
B21: Coal | C21: 50 | D21: US$/ton
B25: Fuel prices for the entire future period & fuel physical-chemical properties
C26: LPG | D26: Gasoline | E26: Bioethanol | F26: Jet Fuel | G26: Diesel oil | H26: Biodiesel | I26: Heavy Fuel Oil | J26: Kerosene | K26: Coal | L26: Coke | M26: Petroleum coke | N26: Lignite | O26: Natural Gas
B27: Distillate price/crude oil price (litre/litre) | C27: 0.9 | D27: 1.4 | F27: 1.4 | G27: 1.2 | I27: 0.8 | J27: 1.4
B28: Fuel price (US$/liter) | C28: =$C$18*C27 -> 0.2830188679 | D28: =$C$18*D27 -> 0.4402515723 | E28: 0.83 | F28: =$C$18*F27 -> 0.4402515723 | G28: =$C$18*G27 -> 0.3773584906 | H28: 1.2 | I28: =$C$18*I27 -> 0.251572327 | J28: =$C$18*J27 -> 0.4402515723
B29: Fuel price (US$/GJ) | C29: =C28*1000/C31/C30 -> 11.08052885 | D29: =D28*1000/D31/D30 -> 13.10272537 | F29: =(F28*1000/F30)/F31 -> 12.34165655 | G29: =G28*1000/G31/G30 -> 10.36778902 | I29: =(I28*1000/I30)/I31 -> 6.387321626 | J29: =(J28*1000/J30)/J31 -> 12.29752995 | K29: =C21/K31 -> 2.003205128 | L29: =K29 -> 2.003205128 | M29: =L29 -> 2.003205128 | O29: =+C20 -> 3.08056872
B30: Fuel density (t/m3) | C30: 0.54 | D30: 0.75 | E30: =1/(D76/1000) -> 0.7552870091 | F30: 0.8 | G30: 0.84 | H30: =1/(D77/1000) -> 0.8833922261 | I30: 0.98 | J30: 0.8 | O30: (MJ/Nm3)
B31: Fuel calorific value (GJ/t) | C31: 47.3 | D31: 44.8 | E31: =+F76 -> 26.79552 | F31: 44.59 | G31: 43.33 | H31: =+F76 -> 26.79552 | I31: 40.19 | J31: 44.75 | K31: 24.96 | L31: 28 | M31: 31 | N31: 18.3 | O31: 39
B33: Electricity
B34: Electricity price and grid information | C34: Grid 1
B35: US$/kWh | C35: 0.2
B37: Grid Emission Factor (tCO2/MWh)
B38: Combined Margin (CM) Solar & Wind | C38: 0.4855
B39: Combined Margin (CM) Other | C39: 0.4855
B40: Electricity grid losses & own consumption | C40: ='Energy Balance'!H103 -> 0.1708768646 | D40: This value will be imported from step 2
B43: Sector specific Emission factors (kg GHG/GJ)
B44: Sector | C44: Emission factors | D44: CO2 | E44: CH4 | F44: N2O
B45: Power plant | C45: Fuel oil | D45: =21.1*44/12 -> 77.36666667 | E45: 0.003 | F45: 0.0006
C46: Diesel oil | D46: =20.2*44/12 -> 74.06666667 | E46: 0.003 | F46: 0.0006
C47: Gasoline | D47: =18.9*44/12 -> 69.3 | E47: 0.003 | F47: 0.0006
C48: Jet fuel | D48: =19.5*44/12 -> 71.5 | E48: 0.003 | F48: 0.0006
C49: Kerosene | D49: =19.6*44/12 -> 71.86666667 | E49: 0.003 | F49: 0.0006
C50: LPG | D50: =17.2*44/12 -> 63.06666667 | E50: 0.001 | F50: 0.0001
C51: Natural gas | D51: 56.1 | E51: 0.001 | F51: 0.0001
C52: Coal | D52: =25.8*44/12 -> 94.6 | E52: 0.001 | F52: 0.0014
C53: Lignite | D53: =27.6*44/12 -> 101.2 | E53: =+E52 -> 0.001 | F53: 0.0014
B54: Industry | C54: Oil | D54: as above | E54: 0.002 | F54: 0.0006
C55: Natural gas | E55: 0.005 | F55: 0.0001
C56: Coal | E56: 0.01 | F56: 0.0014
C57: Charcoal | E57: 0.2 | F57: 0.004
B58: Residential | C58: Oil | D58: as above | E58: 0.01 | F58: 0.0006
C59: Natural gas | E59: 0.005 | F59: 0.0001
C60: Coal | E60: 0.3 | F60: 0.0014
C61: Charcoal | E61: 0.2 | F61: 0.004
B63: Global warming potentials: | C63: SAR | D63: AR4 | E63: AR5 | F63: GWP used | G63: Unit | H63: TAR
B64: 1 Ton CH4 = | C64: 21 | D64: 25 | E64: 28 | F64: =+E64 -> 28 | G64: Ton CO2 | H64: 23
B65: 1 Ton N2O = | C65: 310 | D65: 298 | E65: 265 | F65: =+E65 -> 265 | G65: Ton CO2 | H65: 296
B67: Population and GDP in start year | C67: =C10 -> 2015
B68: Population (thousands) | C68: 1877
B69: GDP (Current MUS$) | C69: 141
B72: Source:
B73: http://www.iisd.org/gsi/sites/default/files/bf_uk_fqdmodel.pdf
B74: CONVERSION FACTORS
C75: Tonnes | D75: Litres | E75: TOE | F75: GJ
B76: Ethanol | C76: 1 | D76: 1324 | E76: 0.64 | F76: =E76*D$86 -> 26.79552
B77: Biodiesel | C77: 1 | D77: 1132 | E77: 0.86 | F77: =E77*D$86 -> 36.00648
B78: Diesel | C78: 1 | D78: =1/0.84*1000 -> 1190.47619 | E78: =43.33/41.868 -> 1.03491927 | F78: =E78*D$86 -> 43.33
B79: Gasoline | C79: 1 | D79: =1/0.75*1000 -> 1333.333333 | E79: =44.8/41.868 -> 1.070029617 | F79: =E79*D$86 -> 44.8
C80: Tonnes
B81: Ethanol | C81: 1
B82: Biodiesel | C82: 1 | G82: 1 toe costs | H82: =+D77/E77*H28 -> 1579.534884 | I82: US $
B83: Diesel | C83: 1
B84: Gasoline | C84: 1
C86: 1 toe = | D86: 41.868 | E86: GJ
C88: LPG | D88: Gasoline | E88: Jet Fuel | F88: Diesel | G88: HFO | H88: Kerosene and other | I88: Total oil products | J88: Coal | K88: Lignite | L88: Natural Gas | M88: Coke | N88: Petrocoke | O88: Total energy (fossil)
C89: =C31 -> 47.3 | D89: =D31 -> 44.8 | E89: =F31 -> 44.59 | F89: =G31 -> 43.33 | G89: =I31 -> 40.19 | H89: =J31 -> 44.75 | J89: =K31 -> 24.96 | K89: =N31 -> 18.3 | L89: =O31 -> 39 | M89: =L31 -> 28 | N89: =M31 -> 31

Sheet Energy Balance (hidden)
B2: Step 2 - Input start year energy balance
B4: The Energy Balance sheet includes the energy data disaggregated by sector of activity for the start year. This sheet must be filled in by the user. The user has to fill in one of the two first tables (Energy balance in TJ – Country X - Start year or Start year energy balance in mega tonnes and million cubic meters) corresponding to the fossil fuels balance for the start year expressed in TJ or in mass/volume units). Once the user has included the energy balance data in TJ or mass/volume units, GACMO automatically calculates the energy balance in ktoe unit. Then, the user has to fill in the table Start year electricity balance in GWh, corresponding to the electricity balance for the start year in GWh. Please refer to the Guidance for further details on the data included in this sheet and on how to fill in it. Once all the data have been inserted in the Energy Balance sheet, you can click “Go to step 3: GHG balance”.
B15: ="Energy balance in TJ - "&Assumptions!C9&" - Start year - "&Assumptions!$C$10 -> Energy balance in TJ - Country X - Start year - 2015
B16: Fossil fuel energy balance in TJ | D16: LPG | E16: Gasoline | F16: Jet Fuel | G16: Diesel | H16: HFO | I16: Kerosene and other | J16: Total oil products | K16: Coal | L16: Lignite | M16: Natural Gas | N16: Coke | O16: Petrocoke | P16: Total energy (fossil)
B17: Unit | D17: TJ | E17: TJ | F17: TJ | G17: TJ | H17: TJ | I17: TJ | J17: TJ | K17: TJ | L17: TJ | M17: TJ | N17: TJ | O17: TJ | P17: TJ
B18: Total all energy consumption | D18: =+D19+D20 -> 188963.5 | E18: 90854.4 | F18: 58814.21 | G18: 872276.23 | H18: 18808.92 | I18: 2595.5 | J18: 1232312.76 | K18: 705444.48 | L18: 1032229.8 | M18: 1735812 | N18: 138180 | O18: 126852 | P18: =SUM(J18:O18) -> 4970831.04
B19: Fossil power plants | D19: =D47*Assumptions!C$89*1000 -> 0 | E19: =E47*Assumptions!D$89*1000 -> 0 | F19: =F47*Assumptions!E$89*1000 -> 0 | G19: =G47*Assumptions!F$89*1000 -> 10312.54 | H19: =H47*Assumptions!G$89*1000 -> 9123.13 | I19: =I47*Assumptions!H$89*1000 -> 0 | J19: =SUM(D19:I19) -> 19435.67 | K19: =K47*Assumptions!J$89*1000 -> 401132.16 | L19: =L47*Assumptions!K$89*1000 -> 901220.1 | M19: =M47*Assumptions!L$89 -> 764673 | N19: =N47*Assumptions!M$89*1000 -> 0 | O19: =O47*Assumptions!N$89*1000 -> 0 | P19: 2086460.93
B20: Final sector consumption | D20: =SUM(D21:D40) -> 188963.5 | E20: 90854.4 | F20: 58814.21 | G20: 861963.69 | H20: 9685.79 | I20: 2595.5 | J20: 1212877.09 | K20: 304312.32 | L20: 131009.7 | M20: 971139 | N20: 138180 | O20: 126852 | P20: 2884370.11
B21: Industry - steel | D21: =D49*Assumptions!C$89*1000 -> 0 | E21: =E49*Assumptions!D$89*1000 -> 0 | F21: =F49*Assumptions!E$89*1000 -> 0 | G21: =G49*Assumptions!F$89*1000 -> 736.61 | H21: =H49*Assumptions!G$89*1000 -> 0 | I21: =I49*Assumptions!H$89*1000 -> 0 | J21: =SUM(D21:I21) -> 736.61 | K21: =K49*Assumptions!J$89*1000 -> 424.32 | L21: =L49*Assumptions!K$89*1000 -> 475.8 | M21: =M49*Assumptions!L$89 -> 8970 | N21: =N49*Assumptions!M$89*1000 -> 0 | O21: =O49*Assumptions!N$89*1000 -> 0 | P21: 10606.73
B22: Industry - chemical | D22: =D50*Assumptions!C$89*1000 -> 425.7 | E22: =E50*Assumptions!D$89*1000 -> 0 | F22: =F50*Assumptions!E$89*1000 -> 0 | G22: =G50*Assumptions!F$89*1000 -> 173.32 | H22: =H50*Assumptions!G$89*1000 -> 120.57 | I22: =I50*Assumptions!H$89*1000 -> 0 | J22: 719.59 | K22: =K50*Assumptions!J$89*1000 -> 9834.24 | L22: =L50*Assumptions!K$89*1000 -> 5947.5 | M22: =M50*Assumptions!L$89 -> 101010 | N22: =N50*Assumptions!M$89*1000 -> 0 | O22: =O50*Assumptions!N$89*1000 -> 0 | P22: 117511.33
B23: Industry - non metallic mineral | D23: =D51*Assumptions!C$89*1000 -> 141.9 | E23: =E51*Assumptions!D$89*1000 -> 0 | F23: =F51*Assumptions!E$89*1000 -> 0 | G23: =G51*Assumptions!F$89*1000 -> 1039.92 | H23: =H51*Assumptions!G$89*1000 -> 723.42 | I23: =I51*Assumptions!H$89*1000 -> 0 | J23: 1905.24 | K23: =K51*Assumptions!J$89*1000 -> 82542.72 | L23: =L51*Assumptions!K$89*1000 -> 25729.8 | M23: =M51*Assumptions!L$89 -> 73476 | N23: =N51*Assumptions!M$89*1000 -> 0 | O23: =O51*Assumptions!N$89*1000 -> 126635 | P23: 310288.76
B24: Industry - food processing and beverage | D24: =D52*Assumptions!C$89*1000 -> 946 | E24: =E52*Assumptions!D$89*1000 -> 0 | F24: =F52*Assumptions!E$89*1000 -> 0 | G24: =G52*Assumptions!F$89*1000 -> 259.98 | H24: =H52*Assumptions!G$89*1000 -> 1487.03 | I24: =I52*Assumptions!H$89*1000 -> 0 | J24: 2693.01 | K24: =K52*Assumptions!J$89*1000 -> 5690.88 | L24: =L52*Assumptions!K$89*1000 -> 14402.1 | M24: =M52*Assumptions!L$89 -> 38298 | N24: =N52*Assumptions!M$89*1000 -> 1372 | O24: =O52*Assumptions!N$89*1000 -> 217 | P24: 62672.99
B25: Industry - construction | D25: =D53*Assumptions!C$89*1000 -> 0 | E25: =E53*Assumptions!D$89*1000 -> 0 | F25: =F53*Assumptions!E$89*1000 -> 0 | G25: =G53*Assumptions!F$89*1000 -> 6369.51 | H25: =H53*Assumptions!G$89*1000 -> 0 | I25: =I53*Assumptions!H$89*1000 -> 0 | J25: 6369.51 | K25: =K53*Assumptions!J$89*1000 -> 24.96 | L25: =L53*Assumptions!K$89*1000 -> 54.9 | M25: =M53*Assumptions!L$89 -> 14040 | N25: =N53*Assumptions!M$89*1000 -> 0 | O25: =O53*Assumptions!N$89*1000 -> 0 | P25: 20489.37
B26: Industry - mining | D26: =D54*Assumptions!C$89*1000 -> 0 | E26: =E54*Assumptions!D$89*1000 -> 0 | F26: =F54*Assumptions!E$89*1000 -> 0 | G26: =G54*Assumptions!F$89*1000 -> 16292.08 | H26: =H54*Assumptions!G$89*1000 -> 0 | I26: =I54*Assumptions!H$89*1000 -> 0 | J26: =SUM(D26:I26) -> 16292.08 | K26: =K54*Assumptions!J$89*1000 -> 474.24 | L26: =L54*Assumptions!K$89*1000 -> 1720.2 | M26: =M54*Assumptions!L$89 -> 5070 | N26: =N54*Assumptions!M$89*1000 -> 0 | O26: =O54*Assumptions!N$89*1000 -> 0 | P26: 23556.52
B27: Industry - machinery | D27: =D55*Assumptions!C$89*1000 -> 236.5 | E27: =E55*Assumptions!D$89*1000 -> 0 | F27: =F55*Assumptions!E$89*1000 -> 0 | G27: =G55*Assumptions!F$89*1000 -> 129.99 | H27: =H55*Assumptions!G$89*1000 -> 0 | I27: =I55*Assumptions!H$89*1000 -> 0 | J27: 366.49 | K27: =K55*Assumptions!J$89*1000 -> 74.88 | L27: =L55*Assumptions!K$89*1000 -> 311.1 | M27: =M55*Assumptions!L$89 -> 2691 | N27: =N55*Assumptions!M$89*1000 -> 0 | O27: =O55*Assumptions!N$89*1000 -> 0 | P27: =SUM(J27:O27) -> 3443.47
B28: Industry - non ferrous metals | D28: =D56*Assumptions!C$89*1000 -> 1750.1 | E28: =E56*Assumptions!D$89*1000 -> 0 | F28: =F56*Assumptions!E$89*1000 -> 0 | G28: =G56*Assumptions!F$89*1000 -> 563.29 | H28: =H56*Assumptions!G$89*1000 -> 0 | I28: =I56*Assumptions!H$89*1000 -> 0 | J28: 2313.39 | K28: =K56*Assumptions!J$89*1000 -> 27106.56 | L28: =L56*Assumptions!K$89*1000 -> 1244.4 | M28: =M56*Assumptions!L$89 -> 80223 | N28: =N56*Assumptions!M$89*1000 -> 135464 | O28: =O56*Assumptions!N$89*1000 -> 0 | P28: 246351.35
B29: Industry - paper and pulp | D29: =D57*Assumptions!C$89*1000 -> 47.3 | E29: =E57*Assumptions!D$89*1000 -> 0 | F29: =F57*Assumptions!E$89*1000 -> 0 | G29: =G57*Assumptions!F$89*1000 -> 433.3 | H29: =H57*Assumptions!G$89*1000 -> 0 | I29: =I57*Assumptions!H$89*1000 -> 0 | J29: 480.6 | K29: =K57*Assumptions!J$89*1000 -> 1073.28 | L29: =L57*Assumptions!K$89*1000 -> 3696.6 | M29: =M57*Assumptions!L$89 -> 8658 | N29: =N57*Assumptions!M$89*1000 -> 0 | O29: =O57*Assumptions!N$89*1000 -> 0 | P29: 13908.48
B30: Industry - transport equipment | D30: =D58*Assumptions!C$89*1000 -> 1087.9 | E30: =E58*Assumptions!D$89*1000 -> 0 | F30: =F58*Assumptions!E$89*1000 -> 0 | G30: =G58*Assumptions!F$89*1000 -> 303.31 | H30: =H58*Assumptions!G$89*1000 -> 0 | I30: =I58*Assumptions!H$89*1000 -> 0 | J30: 1391.21 | K30: =K58*Assumptions!J$89*1000 -> 0 | L30: =L58*Assumptions!K$89*1000 -> 146.4 | M30: =M58*Assumptions!L$89 -> 6942 | N30: =N58*Assumptions!M$89*1000 -> 0 | O30: =O58*Assumptions!N$89*1000 -> 0 | P30: 8479.61
B31: Industry - textile and leather | D31: =D59*Assumptions!C$89*1000 -> 567.6 | E31: =E59*Assumptions!D$89*1000 -> 0 | F31: =F59*Assumptions!E$89*1000 -> 0 | G31: =G59*Assumptions!F$89*1000 -> 259.98 | H31: =H59*Assumptions!G$89*1000 -> 0 | I31: =I59*Assumptions!H$89*1000 -> 0 | J31: 827.58 | K31: =K59*Assumptions!J$89*1000 -> 8860.8 | L31: =L59*Assumptions!K$89*1000 -> 19873.8 | M31: =M59*Assumptions!L$89 -> 46722 | N31: =N59*Assumptions!M$89*1000 -> 0 | O31: =O59*Assumptions!N$89*1000 -> 0 | P31: 76284.18
B32: Industry - miscellaneous | D32: =D60*Assumptions!C$89*1000 -> 0 | E32: =E60*Assumptions!D$89*1000 -> 0 | F32: =F60*Assumptions!E$89*1000 -> 0 | G32: =G60*Assumptions!F$89*1000 -> 0 | H32: =H60*Assumptions!G$89*1000 -> 0 | I32: =I60*Assumptions!H$89*1000 -> 0 | J32: 0 | K32: =K60*Assumptions!J$89*1000 -> 0 | L32: =L60*Assumptions!K$89*1000 -> 18.3 | M32: =M60*Assumptions!L$89 -> 24219 | N32: =N60*Assumptions!M$89*1000 -> 0 | O32: =O60*Assumptions!N$89*1000 -> 0 | P32: 24237.3
B33: Transport - road | D33: =D61*Assumptions!C$89*1000 -> 145163.7 | E33: =E61*Assumptions!D$89*1000 -> 90854.4 | F33: =F61*Assumptions!E$89*1000 -> 0 | G33: =G61*Assumptions!F$89*1000 -> 711825.24 | H33: =H61*Assumptions!G$89*1000 -> 0 | I33: =I61*Assumptions!H$89*1000 -> 0 | J33: 947843.34 | K33: =K61*Assumptions!J$89*1000 -> 0 | L33: =L61*Assumptions!K$89*1000 -> 0 | M33: =M61*Assumptions!L$89 -> 3354 | N33: =N61*Assumptions!M$89*1000 -> 0 | O33: =O61*Assumptions!N$89*1000 -> 0 | P33: 951197.34
B34: Transport - rail | D34: =D62*Assumptions!C$89*1000 -> 0 | E34: =E62*Assumptions!D$89*1000 -> 0 | F34: =F62*Assumptions!E$89*1000 -> 0 | G34: =G62*Assumptions!F$89*1000 -> 5849.55 | H34: =H62*Assumptions!G$89*1000 -> 0 | I34: =I62*Assumptions!H$89*1000 -> 0 | J34: 5849.55 | K34: =K62*Assumptions!J$89*1000 -> 0 | L34: =L62*Assumptions!K$89*1000 -> 0 | M34: =M62*Assumptions!L$89 -> 0 | N34: =N62*Assumptions!M$89*1000 -> 0 | O34: =O62*Assumptions!N$89*1000 -> 0 | P34: 5849.55
B35: Transport - domestic air | D35: =D63*Assumptions!C$89*1000 -> 0 | E35: =E63*Assumptions!D$89*1000 -> 0 | F35: =F63*Assumptions!E$89*1000 -> 58814.21 | G35: =G63*Assumptions!F$89*1000 -> 0 | H35: =H63*Assumptions!G$89*1000 -> 0 | I35: =I63*Assumptions!H$89*1000 -> 0 | J35: 58814.21 | K35: =K63*Assumptions!J$89*1000 -> 0 | L35: =L63*Assumptions!K$89*1000 -> 0 | M35: =M63*Assumptions!L$89 -> 0 | N35: =N63*Assumptions!M$89*1000 -> 0 | O35: =O63*Assumptions!N$89*1000 -> 0 | P35: 58814.21
B36: Transport - navigation | D36: =D64*Assumptions!C$89*1000 -> 0 | E36: =E64*Assumptions!D$89*1000 -> 0 | F36: =F64*Assumptions!E$89*1000 -> 0 | G36: =G64*Assumptions!F$89*1000 -> 0 | H36: =H64*Assumptions!G$89*1000 -> 7354.77 | I36: =I64*Assumptions!H$89*1000 -> 0 | J36: 7354.77 | K36: =K64*Assumptions!J$89*1000 -> 0 | L36: =L64*Assumptions!K$89*1000 -> 0 | M36: =M64*Assumptions!L$89 -> 0 | N36: =N64*Assumptions!M$89*1000 -> 0 | O36: =O64*Assumptions!N$89*1000 -> 0 | P36: 7354.77
B37: Households | D37: =D65*Assumptions!C$89*1000 -> 11588.5 | E37: =E65*Assumptions!D$89*1000 -> 0 | F37: =F65*Assumptions!E$89*1000 -> 0 | G37: =G65*Assumptions!F$89*1000 -> 0 | H37: =H65*Assumptions!G$89*1000 -> 0 | I37: =I65*Assumptions!H$89*1000 -> 2595.5 | J37: 14184 | K37: =K65*Assumptions!J$89*1000 -> 37839.36 | L37: =L65*Assumptions!K$89*1000 -> 42565.8 | M37: =M65*Assumptions!L$89 -> 429000 | N37: =N65*Assumptions!M$89*1000 -> 0 | O37: =O65*Assumptions!N$89*1000 -> 0 | P37: 523589.16
B38: Services | D38: =D66*Assumptions!C$89*1000 -> 27008.3 | E38: =E66*Assumptions!D$89*1000 -> 0 | F38: =F66*Assumptions!E$89*1000 -> 0 | G38: =G66*Assumptions!F$89*1000 -> 0 | H38: =H66*Assumptions!G$89*1000 -> 0 | I38: =I66*Assumptions!H$89*1000 -> 0 | J38: 27008.3 | K38: =K66*Assumptions!J$89*1000 -> 130366.08 | L38: =L66*Assumptions!K$89*1000 -> 14823 | M38: =M66*Assumptions!L$89 -> 123279 | N38: =N66*Assumptions!M$89*1000 -> 1344 | O38: =O66*Assumptions!N$89*1000 -> 0 | P38: 296820.38
B39: Agriculture & Fishery | D39: =D67*Assumptions!C$89*1000 -> 0 | E39: =E67*Assumptions!D$89*1000 -> 0 | F39: =F67*Assumptions!E$89*1000 -> 0 | G39: =G67*Assumptions!F$89*1000 -> 117727.61 | H39: =H67*Assumptions!G$89*1000 -> 0 | I39: =I67*Assumptions!H$89*1000 -> 0 | J39: 117727.61 | K39: =K67*Assumptions!J$89*1000 -> 0 | L39: =L67*Assumptions!K$89*1000 -> 0 | M39: =M67*Assumptions!L$89 -> 5187 | N39: =N67*Assumptions!M$89*1000 -> 0 | O39: =O67*Assumptions!N$89*1000 -> 0 | P39: 122914.61
B40: Non energy - chemical feedstocs | D40: =D68*Assumptions!C$89*1000 -> 0 | E40: =E68*Assumptions!D$89*1000 -> 0 | F40: =F68*Assumptions!E$89*1000 -> 0 | G40: =G68*Assumptions!F$89*1000 -> 0 | H40: =H68*Assumptions!G$89*1000 -> 0 | I40: =I68*Assumptions!H$89*1000 -> 0 | J40: 0 | K40: =K68*Assumptions!J$89*1000 -> 0 | L40: =L68*Assumptions!K$89*1000 -> 0 | M40: =M68*Assumptions!L$89 -> 0 | N40: =N68*Assumptions!M$89*1000 -> 0 | O40: =O68*Assumptions!N$89*1000 -> 0 | P40: 0
B43: Start year energy balance in mega tonnes and million cubic meters
B44: Fossil fuel energy balance in mass and volume | D44: LPG | E44: Gasoline | F44: Jet Fuel | G44: Diesel | H44: HFO | I44: Kerosene and other | J44: Total oil products | K44: Coal | L44: Lignite | M44: Gas | N44: Coke | O44: Petrocoke
B45: Unit | D45: Mega tonnes | E45: Mega tonnes | F45: Mega tonnes | G45: Mega tonnes | H45: Mega tonnes | I45: Mega tonnes | J45: Mega tonnes | K45: Mega tonnes | L45: Mega tonnes | M45: Million m3 | N45: Mega tonnes | O45: Mega tonnes
B46: Total all energy consumption | D46: =+D47+D48 -> 3.995 | E46: =+E47+E48 -> 2.028 | F46: 1.319 | G46: 20.131 | H46: 0.468 | I46: 0.058 | J46: 27.999 | K46: 28.263 | L46: 56.406 | M46: 44508 | N46: 4.935 | O46: 4.092
B47: Fossil power plants | G47: 0.238 | H47: 0.227 | J47: =SUM(D47:I47) -> 0.465 | K47: 16.071 | L47: =48.755+0.492 -> 49.247 | M47: 19607
B48: Final sector consumption | D48: =SUM(D49:D68) -> 3.995 | E48: =SUM(E49:E68) -> 2.028 | F48: 1.319 | G48: 19.893 | H48: 0.241 | I48: 0.058 | J48: 27.534 | K48: 12.192 | L48: 7.159 | M48: 24901 | N48: 4.935 | O48: 4.092
B49: Industry - steel | G49: =0.016+0.001 -> 0.017 | J49: =SUM(D49:I49) -> 0.017 | K49: =0.017 -> 0.017 | L49: 0.026 | M49: =203+27 -> 230
B50: Industry - chemical | D50: 0.009 | G50: 0.004 | H50: 0.003 | J50: 0.016 | K50: 0.394 | L50: 0.325 | M50: 2590
B51: Industry - non metallic mineral | D51: 0.003 | G51: 0.024 | H51: 0.018 | J51: 0.045 | K51: 3.307 | L51: =1.106+0.3 -> 1.406 | M51: 1884 | O51: 4.085
B52: Industry - food processing and beverage | D52: 0.02 | G52: 0.006 | H52: 0.037 | J52: 0.063 | K52: 0.228 | L52: 0.787 | M52: 982 | N52: 0.049 | O52: 0.007
B53: Industry - construction | G53: 0.147 | J53: 0.147 | K53: 0.001 | L53: 0.003 | M53: 360
B54: Industry - mining | G54: 0.376 | J54: 0.376 | K54: 0.019 | L54: 0.094 | M54: 130
B55: Industry - machinery | D55: 0.005 | G55: 0.003 | J55: 0.008 | K55: 0.003 | L55: 0.017 | M55: 69
B56: Industry - non ferrous metals | D56: 0.037 | G56: 0.013 | J56: 0.05 | K56: 1.086 | L56: 0.068 | M56: 2057 | N56: 4.838
B57: Industry - paper and pulp | D57: 0.001 | G57: 0.01 | J57: 0.011 | K57: 0.043 | L57: 0.202 | M57: 222
B58: Industry - transport equipment | D58: 0.023 | G58: 0.007 | J58: 0.03 | L58: 0.008 | M58: 178
B59: Industry - textile and leather | D59: 0.012 | G59: 0.006 | J59: 0.018 | K59: 0.355 | L59: 1.086 | M59: 1198
B60: Industry - miscellaneous | J60: 0 | L60: 0.001 | M60: 621
B61: Transport - road | D61: 3.069 | E61: 2.028 | G61: 16.428 | J61: 21.525 | M61: 86
B62: Transport - rail | G62: 0.135 | J62: 0.135
B63: Transport - domestic air | F63: 1.319 | J63: 1.319
B64: Transport - navigation | H64: 0.183 | J64: 0.183
B65: Households | D65: 0.245 | I65: 0.058 | J65: 0.303 | K65: 1.516 | L65: =2.084+0.242 -> 2.326 | M65: 11000
B66: Services | D66: 0.571 | J66: 0.571 | K66: 5.223 | L66: 0.81 | M66: 3161 | N66: 0.048
B67: Agriculture & Fishery | G67: 2.717 | J67: 2.717 | M67: 133
B68: Non energy - chemical feedstocs | J68: 0
B74: Fossil fuel energy balance balance in ktoe (1 ktoe = 41.868 TJ) | D74: LPG | E74: Gasoline | F74: Jet Fuel | G74: Diesel | H74: HFO | I74: Kerosene and other | J74: Total oil products | K74: Coal | L74: Lignite | M74: Natural Gas | N74: Coke | O74: Petrocoke | P74: Total
B75: Total consumption | D75: =+D76+D77 -> 4513.315659 | E75: =+E76+E77 -> 2170.020063 | F75: 1404.753272 | G75: 20833.95983 | H75: 449.2433362 | I75: 61.99245247 | J75: 29433.28461 | K75: 16849.25193 | L75: 24654.38521 | M75: 41459.15735 | N75: 3300.3726 | O75: 3029.807968 | P75: 118726.2597
B76: Fossil power plants | D76: =D19*(1/41.868) -> 0 | E76: 0 | F76: 0 | G76: 246.3107863 | H76: 217.9022165 | I76: 0 | J76: =SUM(D76:I76) -> 464.2130028 | K76: =K19*(1/41.868) -> 9580.877042 | L76: =L19*(1/41.868) -> 21525.27228 | M76: =M19*(1/41.868) -> 18263.90083 | N76: =N19*(1/41.868) -> 0 | O76: =O19*(1/41.868) -> 0 | P76: =SUM(J76:O76) -> 49834.26316
B77: FINAL CONSUMPTION | D77: =SUM(D78:D97) -> 4513.315659 | E77: 2170.020063 | F77: 1404.753272 | G77: =SUM(G78:G97) -> 20587.64904 | H77: 231.3411197 | I77: 61.99245247 | J77: 28969.07161 | K77: 7268.374893 | L77: 3129.112926 | M77: 23195.25652 | N77: 3300.3726 | O77: 3029.807968 | P77: 68891.99651
B78: Industry - steel | D78: =D21*(1/41.868) -> 0 | E78: =E21*(1/41.868) -> 0 | F78: 0 | G78: 17.59362759 | H78: 0 | I78: 0 | J78: =SUM(D78:I78) -> 17.59362759 | K78: =K21*(1/41.868) -> 10.13470909 | L78: 11.36428776 | M78: 214.2447693 | N78: 0 | O78: 0 | P78: 253.3373937
B79: Industry - chemical | D79: =D22*(1/41.868) -> 10.16766982 | E79: 0 | F79: 0 | G79: 4.13967708 | H79: 2.879764976 | I79: 0 | J79: =SUM(D79:I79) -> 17.18711188 | K79: 234.886787 | L79: 142.053597 | M79: 2412.582402 | N79: 0 | O79: 0 | P79: 2806.709898
B80: Industry - non metallic mineral | D80: 3.389223273 | E80: 0 | F80: 0 | G80: 24.83806248 | H80: 17.27858985 | I80: 0 | J80: 45.50587561 | K80: 1971.498997 | L80: 614.5457151 | M80: 1754.94411 | N80: 0 | O80: 3024.625012 | P80: 7411.11971
B81: Industry - food processing and beverage | D81: 22.59482182 | E81: 0 | F81: 0 | G81: 6.209515621 | H81: 35.51710137 | I81: 0 | J81: 64.32143881 | K81: 135.9243336 | L81: 343.9882488 | M81: 914.7320149 | N81: 32.76965702 | O81: 5.182955957 | P81: 1496.918649
B82: Industry - construction | D82: 0 | E82: 0 | F82: 0 | G82: 152.1331327 | H82: 0 | I82: 0 | J82: 152.1331327 | K82: 0.596159358 | L82: 1.311263972 | M82: 335.3396389 | N82: 0 | O82: 0 | P82: 489.3801949
B83: Industry - mining | D83: 0 | E83: 0 | F83: 0 | G83: 389.1296456 | H83: 0 | I83: 0 | J83: 389.1296456 | K83: 11.3270278 | L83: 41.08627114 | M83: 121.0948696 | N83: 0 | O83: 0 | P83: 562.6378141
B84: Industry - machinery | D84: 5.648705455 | E84: 0 | F84: 0 | G84: 3.10475781 | H84: 0 | I84: 0 | J84: 8.753463266 | K84: 1.788478074 | L84: 7.430495844 | M84: 64.27343078 | N84: 0 | O84: 0 | P84: 82.24586797
B85: Industry - non ferrous metals | D85: 41.80042037 | E85: 0 | F85: 0 | G85: 13.45395051 | H85: 0 | I85: 0 | J85: 55.25437088 | K85: 647.4290628 | L85: 29.72198338 | M85: 1916.093437 | N85: 3235.502054 | O85: 0 | P85: 5884.000908
B86: Industry - paper and pulp | D86: 1.129741091 | E86: 0 | F86: 0 | G86: 10.3491927 | H86: 0 | I86: 0 | J86: 11.47893379 | K86: 25.63485239 | L86: 88.29177415 | M86: 206.7927773 | N86: 0 | O86: 0 | P86: 332.1983376
B87: Industry - transport equipment | D87: 25.98404509 | E87: 0 | F87: 0 | G87: 7.244434891 | H87: 0 | I87: 0 | J87: 33.22847998 | K87: 0 | L87: 3.496703927 | M87: 165.8068214 | N87: 0 | O87: 0 | P87: 202.5320054
B88: Industry - textile and leather | D88: =D31*(1/41.868) -> 13.55689309 | E88: 0 | F88: 0 | G88: 6.209515621 | H88: 0 | I88: 0 | J88: 19.76640871 | K88: =K31*(1/41.868) -> 211.6365721 | L88: 474.677558 | M88: 1115.935798 | N88: 0 | O88: 0 | P88: 1822.016337
B89: Industry - miscellaneous | D89: 0 | E89: 0 | F89: 0 | G89: 0 | H89: 0 | I89: 0 | J89: 0 | K89: 0 | L89: 0.4370879908 | M89: 578.460877 | N89: 0 | O89: 0 | P89: 578.897965
B90: Transport - road | D90: 3467.175408 | E90: 2170.020063 | F90: 0 | G90: 17001.65377 | H90: 0 | I90: 0 | J90: 22638.84924 | K90: 0 | L90: 0 | M90: 80.10891373 | N90: 0 | O90: 0 | P90: 22718.95815
B91: Transport - rail | D91: 0 | E91: 0 | F91: 0 | G91: 139.7141015 | H91: 0 | I91: 0 | J91: 139.7141015 | K91: 0 | L91: 0 | M91: 0 | N91: 0 | O91: 0 | P91: 139.7141015
B92: Transport - domestic air | D92: 0 | E92: 0 | F92: 1404.753272 | G92: 0 | H92: 0 | I92: 0 | J92: 1404.753272 | K92: 0 | L92: 0 | M92: 0 | N92: 0 | O92: 0 | P92: 1404.753272
B93: Transport - navigation | D93: 0 | E93: 0 | F93: 0 | G93: 0 | H93: 175.6656635 | I93: 0 | J93: 175.6656635 | K93: 0 | L93: 0 | M93: 0 | N93: 0 | O93: 0 | P93: 175.6656635
B94: Households | D94: 276.7865673 | E94: 0 | F94: 0 | G94: 0 | H94: 0 | I94: 61.99245247 | J94: 338.7790198 | K94: 903.7775867 | L94: 1016.666667 | M94: 10246.48897 | N94: 0 | O94: 0 | P94: 12505.71224
B95: Services | D95: 645.082163 | E95: 0 | F95: 0 | G95: 0 | H95: 0 | I95: 0 | J95: 645.082163 | K95: 3113.740327 | L95: 354.0412726 | M95: 2944.468329 | N95: 32.10088851 | O95: 0 | P95: 7089.43298
B96: Agriculture & Fishery | D96: 0 | E96: 0 | F96: 0 | G96: 2811.875657 | H96: 0 | I96: 0 | J96: 2811.875657 | K96: 0 | L96: 0 | M96: 123.8893666 | N96: 0 | O96: 0 | P96: 2935.765023
B97: Non energy - chemical feedstocs | D97: 0 | E97: 0 | F97: 0 | G97: 0 | H97: 0 | I97: 0 | J97: 0 | K97: 0 | L97: 0 | M97: 0 | N97: 0 | O97: 0 | P97: 0
B100: Start year electricity balance in GWh
B101: Electricity consumption | D101: GWh | F101: Electricity production | G101: GWh | H101: Share of production | I101: Efficiency
B102: Total consumption | D102: =SUM(D103:D122) -> 217052 | F102: Total | G102: =+G104+G111 -> 261785
B103: Industry - steel | D103: =1418+115 -> 1533 | F103: Losses | G103: =G102-D102 -> 44733 | H103: =IF(G$102=0,1,G103/G$102) -> 0.1708768646
B104: Industry - chemical | D104: 15155 | F104: Fossil | G104: =SUM(G105:G110) -> 177609 | H104: =SUM(H105:H110) -> 0.6784536929
B105: Industry - non metallic mineral | D105: 18543 | F105: Lignite | G105: =31336+1079 -> 32415 | H105: =IF(G$102=0,1,G105/G$102) -> 0.1238229845 | I105: =IF(L76>0,G105/11.63/L76,0) -> 0.1294844622
B106: Industry - food processing and beverage | D106: 7100 | F106: Coal | G106: 43751 | H106: 0.1671256947 | I106: =IF( K76>0,G106/11.63/K76,0) -> 0.3926476501
B107: Industry - construction | D107: 2866 | F107: Oil | G107: =980+1244 -> 2224 | H107: 0.008495521134 | I107: =IF( J76>0,G107/11.63/J76,0) -> 0.4119436068
B108: Industry - mining | D108: 2205 | F108: Natural Gas | G108: 99219 | H108: 0.3790094925 | I108: =IF( M76>0,G108/11.63/M76,0) -> 0.4671126089
B109: Industry - machinery | D109: 2154 | F109: Nuclear | H109: 0
B110: Industry - non ferrous metals | D110: 25263 | F110: Net import | G110: =G119-G120 -> 0 | H110: 0
B111: Industry - paper and pulp | D111: 4018 | F111: Renewables | G111: =SUM(G112:G116) -> 84176 | H111: =SUM(H112:H116) -> 0.3215463071
B112: Industry - transport equipment | D112: 2656 | F112: Hydro | G112: 67146 | H112: =IF(G$102=0,1,G112/G$102) -> 0.2564929236
B113: Industry - textile and leather | D113: 17371 | F113: Wind | G113: 11653 | H113: =IF(G$102=0,1,G113/G$102) -> 0.0445136276
B114: Industry - miscellaneous | D114: 4669 | F114: Solar | G114: 194 | H114: =IF(G$102=0,1,G114/G$102) -> 0.0007410661421
B115: Transport - road | F115: Biomass | G115: 1758 | H115: =IF(G$102=0,1,G115/G$102) -> 0.006715434421
B116: Transport - rail | D116: 803 | F116: Geothermal | G116: 3425 | H116: =IF(G$102=0,1,G116/G$102) -> 0.01308325534
B117: Transport - domestic air
B118: Transport - navigation | F118: Electricy import and export | G118: GWh
B119: Households | D119: 47901 | F119: Import
B120: Services | D120: 59934 | F120: Export
B121: Agriculture & Fishery | D121: 4881
B122: Non energy - chemical feedstocs

Sheet GHG Balance (hidden)
B2: Step 3 - GHG Balance
B4: The GHG Balance sheet includes the GHG emissions data disaggregated by sector of activity for the start year. The first table CO2 balance – Country X - Base year includes the balance for the CO2 emissions at the start year expressed in ktCO2 equivalents unit. GACMO automatically calculates the data in this table. The user should not insert or modify the data in this table. The user has to fill in the second table Non-CO2 emissions, non-fuel combustion sectors corresponding to the CH4 and N2O emissions, and CO2 emissions from non-fuel combustion sectors expressed in ktCO2 equivalents unit for each sector/sub-sector as defined by the IPCC. Please refer to the Guidance for further details on the data included in this sheet and on how to fill it in. Once all the data have been inserted in the GHG balance sheet, you can click “Go to step 4: Growth factors”.
B11: Indsæt land og basisår I tabel titler I stedet! Også på Energy balances
B12: ="CO2 Balance - "&Assumptions!C9&" - Start year - "&Assumptions!$C$10 -> CO2 Balance - Country X - Start year - 2015
B13: Unit : ktCO2-equivalents | D13: LPG | E13: Gasoline | F13: Jet Fuel | G13: Diesel | H13: HFO | I13: Kerosene and other | J13: Total oil products | K13: Coal | L13: Lignite | M13: Natural Gas | N13: Coke | O13: Petrocoke | P13: Total
B14: Ton CO2/Toe (IPCC): | D14: =41.868*Assumptions!D50/1000 -> 2.6404752 | E14: =41.868*Assumptions!D47/1000 -> 2.9014524 | F14: =41.868*Assumptions!D48/1000 -> 2.993562 | G14: =41.868*Assumptions!D46/1000 -> 3.1010232 | H14: =41.868*Assumptions!D45/1000 -> 3.2391876 | I14: =41.868*Assumptions!D49/1000 -> 3.0089136 | K14: =41.868*Assumptions!D52/1000 -> 3.9607128 | L14: =41.868*Assumptions!D53/1000 -> 4.2370416 | M14: =41.868*Assumptions!D51/1000 -> 2.3487948 | N14: =41.868*108.2/1000 -> 4.5301176 | O14: =41.868*100.3/1000 -> 4.1993604
B15: Total | D15: =+D16+D17 -> 11917.29807 | E15: 6296.20992 | F15: 4205.216015 | G15: 64606.59277 | H15: 1455.183444 | I15: 186.5299333 | J15: 88667.03015 | K15: 66735.04781 | L15: 104461.6558 | M15: 97379.0532 | N15: 14951.076 | O15: 12723.2556 | P15: 384917.1185
B16: Fossil power plants | D16: ='Energy Balance'!D76*D$14 -> 0 | E16: ='Energy Balance'!E76*E$14 -> 0 | F16: ='Energy Balance'!F76*F$14 -> 0 | G16: ='Energy Balance'!G76*G$14 -> 763.8154627 | H16: ='Energy Balance'!H76*H$14 -> 705.8261577 | I16: ='Energy Balance'!I76*I$14 -> 0 | J16: =SUM(D16:I16) -> 1469.64162 | K16: ='Energy Balance'!K76*K$14 -> 37947.10234 | L16: ='Energy Balance'!L76*L$14 -> 91203.47412 | M16: ='Energy Balance'!M76*M$14 -> 42898.1553 | N16: ='Energy Balance'!N76*N$14 -> 0 | O16: ='Energy Balance'!O76*O$14 -> 0 | P16: =SUM(J16:O16) -> 173518.3734
B17: FINAL CONSUMPTION | D17: =SUM(D18:D37) -> 11917.29807 | E17: 6296.20992 | F17: 4205.216015 | G17: 63842.77731 | H17: 749.3572863 | I17: 186.5299333 | J17: 87197.38853 | K17: 28787.94547 | L17: 13258.18164 | M17: 54480.8979 | N17: 14951.076 | O17: 12723.2556 | P17: 211398.7451
B18: Industry - steel | D18: ='Energy Balance'!D78*D$14 -> 0 | E18: ='Energy Balance'!E78*E$14 -> 0 | F18: ='Energy Balance'!F78*F$14 -> 0 | G18: ='Energy Balance'!G78*G$14 -> 54.55824733 | H18: ='Energy Balance'!H78*H$14 -> 0 | I18: ='Energy Balance'!I78*I$14 -> 0 | J18: =SUM(D18:I18) -> 54.55824733 | K18: ='Energy Balance'!K78*K$14 -> 40.140672 | L18: ='Energy Balance'!L78*L$14 -> 48.15096 | M18: ='Energy Balance'!M78*M$14 -> 503.217 | N18: ='Energy Balance'!N78*N$14 -> 0 | O18: ='Energy Balance'!O78*O$14 -> 0 | P18: 646.0668793
B19: Industry - chemical | D19: ='Energy Balance'!D79*D$14 -> 26.84748 | E19: ='Energy Balance'!E79*E$14 -> 0 | F19: ='Energy Balance'!F79*F$14 -> 0 | G19: ='Energy Balance'!G79*G$14 -> 12.83723467 | H19: ='Energy Balance'!H79*H$14 -> 9.328099 | I19: ='Energy Balance'!I79*I$14 -> 0 | J19: 49.01281367 | K19: ='Energy Balance'!K79*K$14 -> 930.319104 | L19: ='Energy Balance'!L79*L$14 -> 601.887 | M19: ='Energy Balance'!M79*M$14 -> 5666.661 | N19: ='Energy Balance'!N79*N$14 -> 0 | O19: ='Energy Balance'!O79*O$14 -> 0 | P19: 7247.879918
B20: Industry - non metallic mineral | D20: ='Energy Balance'!D80*D$14 -> 8.94916 | E20: ='Energy Balance'!E80*E$14 -> 0 | F20: ='Energy Balance'!F80*F$14 -> 0 | G20: ='Energy Balance'!G80*G$14 -> 77.023408 | H20: ='Energy Balance'!H80*H$14 -> 55.968594 | I20: ='Energy Balance'!I80*I$14 -> 0 | J20: 141.941162 | K20: ='Energy Balance'!K80*K$14 -> 7808.541312 | L20: ='Energy Balance'!L80*L$14 -> 2603.85576 | M20: ='Energy Balance'!M80*M$14 -> 4122.0036 | N20: ='Energy Balance'!N80*N$14 -> 0 | O20: ='Energy Balance'!O80*O$14 -> 12701.4905 | P20: 27377.83233
B21: Industry - food processing and beverage | D21: ='Energy Balance'!D81*D$14 -> 59.66106667 | E21: ='Energy Balance'!E81*E$14 -> 0 | F21: ='Energy Balance'!F81*F$14 -> 0 | G21: ='Energy Balance'!G81*G$14 -> 19.255852 | H21: ='Energy Balance'!H81*H$14 -> 115.0465543 | I21: ='Energy Balance'!I81*I$14 -> 0 | J21: 193.963473 | K21: ='Energy Balance'!K81*K$14 -> 538.357248 | L21: ='Energy Balance'!L81*L$14 -> 1457.49252 | M21: ='Energy Balance'!M81*M$14 -> 2148.5178 | N21: ='Energy Balance'!N81*N$14 -> 148.4504 | O21: ='Energy Balance'!O81*O$14 -> 21.7651 | P21: 4508.546541
B22: Industry - construction | D22: ='Energy Balance'!D82*D$14 -> 0 | E22: ='Energy Balance'!E82*E$14 -> 0 | F22: ='Energy Balance'!F82*F$14 -> 0 | G22: ='Energy Balance'!G82*G$14 -> 471.768374 | H22: ='Energy Balance'!H82*H$14 -> 0 | I22: ='Energy Balance'!I82*I$14 -> 0 | J22: 471.768374 | K22: ='Energy Balance'!K82*K$14 -> 2.361216 | L22: ='Energy Balance'!L82*L$14 -> 5.55588 | M22: ='Energy Balance'!M82*M$14 -> 787.644 | N22: ='Energy Balance'!N82*N$14 -> 0 | O22: ='Energy Balance'!O82*O$14 -> 0 | P22: 1267.32947
B23: Industry - mining | D23: ='Energy Balance'!D83*D$14 -> 0 | E23: ='Energy Balance'!E83*E$14 -> 0 | F23: ='Energy Balance'!F83*F$14 -> 0 | G23: ='Energy Balance'!G83*G$14 -> 1206.700059 | H23: ='Energy Balance'!H83*H$14 -> 0 | I23: ='Energy Balance'!I83*I$14 -> 0 | J23: 1206.700059 | K23: ='Energy Balance'!K83*K$14 -> 44.863104 | L23: ='Energy Balance'!L83*L$14 -> 174.08424 | M23: ='Energy Balance'!M83*M$14 -> 284.427 | N23: ='Energy Balance'!N83*N$14 -> 0 | O23: ='Energy Balance'!O83*O$14 -> 0 | P23: 1710.074403
B24: Industry - machinery | D24: ='Energy Balance'!D84*D$14 -> 14.91526667 | E24: ='Energy Balance'!E84*E$14 -> 0 | F24: ='Energy Balance'!F84*F$14 -> 0 | G24: ='Energy Balance'!G84*G$14 -> 9.627926 | H24: ='Energy Balance'!H84*H$14 -> 0 | I24: ='Energy Balance'!I84*I$14 -> 0 | J24: 24.54319267 | K24: ='Energy Balance'!K84*K$14 -> 7.083648 | L24: ='Energy Balance'!L84*L$14 -> 31.48332 | M24: ='Energy Balance'!M84*M$14 -> 150.9651 | N24: ='Energy Balance'!N84*N$14 -> 0 | O24: ='Energy Balance'!O84*O$14 -> 0 | P24: 214.0752607
B25: Industry - non ferrous metals | D25: ='Energy Balance'!D85*D$14 -> 110.3729733 | E25: ='Energy Balance'!E85*E$14 -> 0 | F25: ='Energy Balance'!F85*F$14 -> 0 | G25: ='Energy Balance'!G85*G$14 -> 41.72101267 | H25: ='Energy Balance'!H85*H$14 -> 0 | I25: ='Energy Balance'!I85*I$14 -> 0 | J25: 152.093986 | K25: ='Energy Balance'!K85*K$14 -> 2564.280576 | L25: ='Energy Balance'!L85*L$14 -> 125.93328 | M25: ='Energy Balance'!M85*M$14 -> 4500.5103 | N25: ='Energy Balance'!N85*N$14 -> 14657.2048 | O25: ='Energy Balance'!O85*O$14 -> 0 | P25: 22000.02294
B26: Industry - paper and pulp | D26: ='Energy Balance'!D86*D$14 -> 2.983053333 | E26: ='Energy Balance'!E86*E$14 -> 0 | F26: ='Energy Balance'!F86*F$14 -> 0 | G26: ='Energy Balance'!G86*G$14 -> 32.09308667 | H26: ='Energy Balance'!H86*H$14 -> 0 | I26: ='Energy Balance'!I86*I$14 -> 0 | J26: 35.07614 | K26: ='Energy Balance'!K86*K$14 -> 101.532288 | L26: ='Energy Balance'!L86*L$14 -> 374.09592 | M26: ='Energy Balance'!M86*M$14 -> 485.7138 | N26: ='Energy Balance'!N86*N$14 -> 0 | O26: ='Energy Balance'!O86*O$14 -> 0 | P26: 996.418148
B27: Industry - transport equipment | D27: ='Energy Balance'!D87*D$14 -> 68.61022667 | E27: ='Energy Balance'!E87*E$14 -> 0 | F27: ='Energy Balance'!F87*F$14 -> 0 | G27: ='Energy Balance'!G87*G$14 -> 22.46516067 | H27: ='Energy Balance'!H87*H$14 -> 0 | I27: ='Energy Balance'!I87*I$14 -> 0 | J27: 91.07538733 | K27: ='Energy Balance'!K87*K$14 -> 0 | L27: ='Energy Balance'!L87*L$14 -> 14.81568 | M27: ='Energy Balance'!M87*M$14 -> 389.4462 | N27: ='Energy Balance'!N87*N$14 -> 0 | O27: ='Energy Balance'!O87*O$14 -> 0 | P27: 495.3372673
B28: Industry - textile and leather | D28: ='Energy Balance'!D88*D$14 -> 35.79664 | E28: ='Energy Balance'!E88*E$14 -> 0 | F28: ='Energy Balance'!F88*F$14 -> 0 | G28: ='Energy Balance'!G88*G$14 -> 19.255852 | H28: ='Energy Balance'!H88*H$14 -> 0 | I28: ='Energy Balance'!I88*I$14 -> 0 | J28: 55.052492 | K28: ='Energy Balance'!K88*K$14 -> 838.23168 | L28: ='Energy Balance'!L88*L$14 -> 2011.22856 | M28: ='Energy Balance'!M88*M$14 -> 2621.1042 | N28: ='Energy Balance'!N88*N$14 -> 0 | O28: ='Energy Balance'!O88*O$14 -> 0 | P28: 5525.616932
B29: Industry - miscellaneous | D29: ='Energy Balance'!D89*D$14 -> 0 | E29: ='Energy Balance'!E89*E$14 -> 0 | F29: ='Energy Balance'!F89*F$14 -> 0 | G29: ='Energy Balance'!G89*G$14 -> 0 | H29: ='Energy Balance'!H89*H$14 -> 0 | I29: ='Energy Balance'!I89*I$14 -> 0 | J29: 0 | K29: ='Energy Balance'!K89*K$14 -> 0 | L29: ='Energy Balance'!L89*L$14 -> 1.85196 | M29: ='Energy Balance'!M89*M$14 -> 1358.6859 | N29: ='Energy Balance'!N89*N$14 -> 0 | O29: ='Energy Balance'!O89*O$14 -> 0 | P29: 1360.53786
B30: Transport - road | D30: ='Energy Balance'!D90*D$14 -> 9154.99068 | E30: ='Energy Balance'!E90*E$14 -> 6296.20992 | F30: ='Energy Balance'!F90*F$14 -> 0 | G30: ='Energy Balance'!G90*G$14 -> 52722.52278 | H30: ='Energy Balance'!H90*H$14 -> 0 | I30: ='Energy Balance'!I90*I$14 -> 0 | J30: 68173.72338 | K30: ='Energy Balance'!K90*K$14 -> 0 | L30: ='Energy Balance'!L90*L$14 -> 0 | M30: ='Energy Balance'!M90*M$14 -> 188.1594 | N30: ='Energy Balance'!N90*N$14 -> 0 | O30: ='Energy Balance'!O90*O$14 -> 0 | P30: 68361.88278
B31: Transport - rail | D31: ='Energy Balance'!D91*D$14 -> 0 | E31: ='Energy Balance'!E91*E$14 -> 0 | F31: ='Energy Balance'!F91*F$14 -> 0 | G31: ='Energy Balance'!G91*G$14 -> 433.25667 | H31: ='Energy Balance'!H91*H$14 -> 0 | I31: ='Energy Balance'!I91*I$14 -> 0 | J31: 433.25667 | K31: ='Energy Balance'!K91*K$14 -> 0 | L31: ='Energy Balance'!L91*L$14 -> 0 | M31: ='Energy Balance'!M91*M$14 -> 0 | N31: ='Energy Balance'!N91*N$14 -> 0 | O31: ='Energy Balance'!O91*O$14 -> 0 | P31: 433.25667
B32: Transport - domestic air | D32: ='Energy Balance'!D92*D$14 -> 0 | E32: ='Energy Balance'!E92*E$14 -> 0 | F32: ='Energy Balance'!F92*F$14 -> 4205.216015 | G32: ='Energy Balance'!G92*G$14 -> 0 | H32: ='Energy Balance'!H92*H$14 -> 0 | I32: ='Energy Balance'!I92*I$14 -> 0 | J32: 4205.216015 | K32: ='Energy Balance'!K92*K$14 -> 0 | L32: ='Energy Balance'!L92*L$14 -> 0 | M32: ='Energy Balance'!M92*M$14 -> 0 | N32: ='Energy Balance'!N92*N$14 -> 0 | O32: ='Energy Balance'!O92*O$14 -> 0 | P32: 4205.216015
B33: Transport - navigation | D33: ='Energy Balance'!D93*D$14 -> 0 | E33: ='Energy Balance'!E93*E$14 -> 0 | F33: ='Energy Balance'!F93*F$14 -> 0 | G33: ='Energy Balance'!G93*G$14 -> 0 | H33: ='Energy Balance'!H93*H$14 -> 569.014039 | I33: ='Energy Balance'!I93*I$14 -> 0 | J33: 569.014039 | K33: ='Energy Balance'!K93*K$14 -> 0 | L33: ='Energy Balance'!L93*L$14 -> 0 | M33: ='Energy Balance'!M93*M$14 -> 0 | N33: ='Energy Balance'!N93*N$14 -> 0 | O33: ='Energy Balance'!O93*O$14 -> 0 | P33: 569.014039
B34: Households | D34: ='Energy Balance'!D94*D$14 -> 730.8480667 | E34: ='Energy Balance'!E94*E$14 -> 0 | F34: ='Energy Balance'!F94*F$14 -> 0 | G34: ='Energy Balance'!G94*G$14 -> 0 | H34: ='Energy Balance'!H94*H$14 -> 0 | I34: ='Energy Balance'!I94*I$14 -> 186.5299333 | J34: 917.378 | K34: ='Energy Balance'!K94*K$14 -> 3579.603456 | L34: ='Energy Balance'!L94*L$14 -> 4307.65896 | M34: ='Energy Balance'!M94*M$14 -> 24066.9 | N34: ='Energy Balance'!N94*N$14 -> 0 | O34: ='Energy Balance'!O94*O$14 -> 0 | P34: 32871.54042
B35: Services | D35: ='Energy Balance'!D95*D$14 -> 1703.323453 | E35: ='Energy Balance'!E95*E$14 -> 0 | F35: ='Energy Balance'!F95*F$14 -> 0 | G35: ='Energy Balance'!G95*G$14 -> 0 | H35: ='Energy Balance'!H95*H$14 -> 0 | I35: ='Energy Balance'!I95*I$14 -> 0 | J35: 1703.323453 | K35: ='Energy Balance'!K95*K$14 -> 12332.63117 | L35: ='Energy Balance'!L95*L$14 -> 1500.0876 | M35: ='Energy Balance'!M95*M$14 -> 6915.9519 | N35: ='Energy Balance'!N95*N$14 -> 145.4208 | O35: ='Energy Balance'!O95*O$14 -> 0 | P35: 22597.41492
B36: Agriculture & Fishery | D36: ='Energy Balance'!D96*D$14 -> 0 | E36: ='Energy Balance'!E96*E$14 -> 0 | F36: ='Energy Balance'!F96*F$14 -> 0 | G36: ='Energy Balance'!G96*G$14 -> 8719.691647 | H36: ='Energy Balance'!H96*H$14 -> 0 | I36: ='Energy Balance'!I96*I$14 -> 0 | J36: 8719.691647 | K36: ='Energy Balance'!K96*K$14 -> 0 | L36: ='Energy Balance'!L96*L$14 -> 0 | M36: ='Energy Balance'!M96*M$14 -> 290.9907 | N36: ='Energy Balance'!N96*N$14 -> 0 | O36: ='Energy Balance'!O96*O$14 -> 0 | P36: 9010.682347
B37: Non energy - chemical feedstocs | D37: ='Energy Balance'!D97*D$14 -> 0 | E37: ='Energy Balance'!E97*E$14 -> 0 | F37: ='Energy Balance'!F97*F$14 -> 0 | G37: ='Energy Balance'!G97*G$14 -> 0 | H37: ='Energy Balance'!H97*H$14 -> 0 | I37: ='Energy Balance'!I97*I$14 -> 0 | J37: 0 | K37: ='Energy Balance'!K97*K$14 -> 0 | L37: ='Energy Balance'!L97*L$14 -> 0 | M37: ='Energy Balance'!M97*M$14 -> 0 | N37: ='Energy Balance'!N97*N$14 -> 0 | O37: ='Energy Balance'!O97*O$14 -> 0 | P37: 0
B40: Non-CO2 emissions, non-fuel combustion sectors | D40: ktCO2e
B41: CH4 from energy combustion | D41: 5061
B42: N2O from energy combustion | D42: 3875
B43: Total Agriculture | D43: =SUM(D44:D48) -> 56612
B44: Enteric fermentation | D44: 26888
B45: Manure management | D45: 6304
B46: Rice cultivation | D46: 200
B47: N2O from agricultural soils | D47: 22878
B48: Burning of agricultural residues | D48: 342
B49: Fugitive (CH4) | D49: 4131
B50: Forestry | D50: -64020
B51: Waste - solid | D51: 16880
B52: Waste - liquid
B53: Industrial processes | D53: 60720
B54: Total Non-CO2 emissions, non-fuel combustion sectors | D54: =D41+D42+D43+D49+D50+D51+D52+D53 -> 83259
B55: Total GHG emissions | D55: =P15+D41+D42+D43+D49+D50+D51+D52+D53 -> 468176.1185

Sheet Growth (hidden)
B2: Step 4 - Growth
B4: The Growth sheet includes the expected growth in energy consumption for the different sectors of activity for different periods of time. This sheet must be filled in by the user. The user has to fill in the table Growth from the start year – Country X, including the Population growth factor, the GDP growth factor, and the annual growth in energy consumption estimated for each sector of activity for the different periods: start year-2025, 2025-2030, 2030-2035, and 2035-2050. Please refer to the Guidance for further details on the data included in this sheet and on how to fill it in. Once all the data have been inserted in the Growth sheet, you can click “Go to step 5: BAU energy balances”.
B13: ="Growth from the start year - "&Assumptions!C9 -> Growth from the start year - Country X
B14: Growth and multiplication factors | D14: Annual % increase in the period | H14: % increase from start year values
B15: Socioeconomic growth factors | D15: =Assumptions!$C$10&" to 2025" -> 2015 to 2025 | E15: 2025 to 2030 | F15: 2030 to 2035 | G15: 2030 to 2050 | H15: 2025 | I15: 2030 | J15: 2035 | K15: 2050
B16: Population growth | D16: 0.0083 | E16: 0.0083 | F16: 0.0083 | G16: 0.005 | H16: =(1+D16)^(2025-Assumptions!$C$10)-1 -> 0.08616967106 | I16: =(1+H16)*(1+E16)^5-1 -> 0.1320002111 | J16: =(1+I16)*(1+F16)^5-1 -> 0.1797645543 | K16: =(1+J16)*(1+G16)^15-1 -> 0.2714118946
B17: GDP growth | D17: 0.041 | E17: 0.041 | F17: 0.041 | G17: 0.03 | H17: =(1+D17)^(2025-Assumptions!$C$10)-1 -> 0.4945391468 | I17: =(1+H17)*(1+E17)^5-1 -> 0.8270942155 | J17: =(1+I17)*(1+F17)^5-1 -> 1.233647261 | K17: =(1+J17)*(1+G17)^15-1 -> 2.479949653
B18: Industrial energy growth factors | D18: =Assumptions!$C$10&" to 2025" -> 2015 to 2025 | E18: 2025 to 2030 | F18: 2030 to 2035 | G18: 2030 to 2050 | H18: 2025 | I18: 2030 | J18: 2035 | K18: 2050
B19: Industry - fuel in steel | D19: 0.06 | E19: 0.06 | F19: 0.06 | G19: 0.02 | H19: =(1+D19)^(2025-Assumptions!$C$10)-1 -> 0.7908476965 | I19: =(1+H19)*(1+E19)^5-1 -> 1.396558193 | J19: =(1+I19)*(1+F19)^5-1 -> 2.207135472 | K19: =(1+J19)*(1+G19)^15-1 -> 3.316382089
B20: Industry - fuel in chemical | D20: 0.06 | E20: 0.06 | F20: 0.06 | G20: 0.02 | H20: =(1+D20)^(2025-Assumptions!$C$10)-1 -> 0.7908476965 | I20: 1.396558193 | J20: =(1+I20)*(1+F20)^5-1 -> 2.207135472 | K20: =(1+J20)*(1+G20)^15-1 -> 3.316382089
B21: Industry - fuel in non metallic mineral | D21: 0.06 | E21: 0.06 | F21: 0.06 | G21: 0.02 | H21: =(1+D21)^(2025-Assumptions!$C$10)-1 -> 0.7908476965 | I21: 1.396558193 | J21: 2.207135472 | K21: 3.316382089
B22: Industry - fuel in food and beverage | D22: 0.06 | E22: 0.06 | F22: 0.06 | G22: 0.02 | H22: =(1+D22)^(2025-Assumptions!$C$10)-1 -> 0.7908476965 | I22: 1.396558193 | J22: 2.207135472 | K22: 3.316382089
B23: Industry - fuel in construction | D23: 0.06 | E23: 0.06 | F23: 0.06 | G23: 0.02 | H23: =(1+D23)^(2025-Assumptions!$C$10)-1 -> 0.7908476965 | I23: 1.396558193 | J23: 2.207135472 | K23: 3.316382089
B24: Industry - fuel in mining | D24: 0.06 | E24: 0.06 | F24: 0.06 | G24: 0.02 | H24: =(1+D24)^(2025-Assumptions!$C$10)-1 -> 0.7908476965 | I24: 1.396558193 | J24: 2.207135472 | K24: 3.316382089
B25: Industry - fuel in machinery | D25: 0.06 | E25: 0.06 | F25: 0.06 | G25: 0.02 | H25: =(1+D25)^(2025-Assumptions!$C$10)-1 -> 0.7908476965 | I25: 1.396558193 | J25: 2.207135472 | K25: 3.316382089
B26: Industry - fuel in non ferrous metals | D26: 0.06 | E26: 0.06 | F26: 0.06 | G26: 0.02 | H26: =(1+D26)^(2025-Assumptions!$C$10)-1 -> 0.7908476965 | I26: 1.396558193 | J26: 2.207135472 | K26: 3.316382089
B27: Industry - fuel in paper and pulp | D27: 0.06 | E27: 0.06 | F27: 0.06 | G27: 0.02 | H27: =(1+D27)^(2025-Assumptions!$C$10)-1 -> 0.7908476965 | I27: 1.396558193 | J27: 2.207135472 | K27: 3.316382089
B28: Industry - fuel in transport equipment | D28: 0.06 | E28: 0.06 | F28: 0.06 | G28: 0.02 | H28: =(1+D28)^(2025-Assumptions!$C$10)-1 -> 0.7908476965 | I28: 1.396558193 | J28: 2.207135472 | K28: 3.316382089
B29: Industry - fuel in textile and leather | D29: 0.06 | E29: 0.06 | F29: 0.06 | G29: 0.02 | H29: =(1+D29)^(2025-Assumptions!$C$10)-1 -> 0.7908476965 | I29: 1.396558193 | J29: 2.207135472 | K29: 3.316382089
B30: Industry - fuel in miscellaneous | D30: 0.06 | E30: 0.06 | F30: 0.06 | G30: 0.02 | H30: =(1+D30)^(2025-Assumptions!$C$10)-1 -> 0.7908476965 | I30: 1.396558193 | J30: 2.207135472 | K30: 3.316382089
B31: Industry - electricity consumption | D31: 0.06 | E31: 0.06 | F31: 0.06 | G31: 0.02 | H31: =(1+D31)^(2025-Assumptions!$C$10)-1 -> 0.7908476965 | I31: 1.396558193 | J31: 2.207135472 | K31: 3.316382089
B32: Industrial processes | D32: 0 | E32: 0 | F32: 0 | G32: 0 | H32: =(1+D32)^(2025-Assumptions!$C$10)-1 -> 0 | I32: 0 | J32: 0 | K32: 0
B33: Transport energy growth factors | D33: =Assumptions!$C$10&" to 2025" -> 2015 to 2025 | E33: 2025 to 2030 | F33: 2030 to 2035 | G33: 2030 to 2050 | H33: 2025 | I33: 2030 | J33: 2035 | K33: 2050
B34: Transport - fuel in road | D34: 0.06 | E34: 0.06 | F34: 0.06 | G34: 0.02 | H34: =(1+D34)^(2025-Assumptions!$C$10)-1 -> 0.7908476965 | I34: =(1+H34)*(1+E34)^5-1 -> 1.396558193 | J34: 2.207135472 | K34: 3.316382089
B35: Transport - fuel in rail | D35: 0.06 | E35: 0.06 | F35: 0.06 | G35: 0.02 | H35: =(1+D35)^(2025-Assumptions!$C$10)-1 -> 0.7908476965 | I35: =(1+H35)*(1+E35)^5-1 -> 1.396558193 | J35: 2.207135472 | K35: 3.316382089
B36: Transport - fuel in air | D36: 0.06 | E36: 0.06 | F36: 0.06 | G36: 0.02 | H36: =(1+D36)^(2025-Assumptions!$C$10)-1 -> 0.7908476965 | I36: =(1+H36)*(1+E36)^5-1 -> 1.396558193 | J36: 2.207135472 | K36: 3.316382089
B37: Transport - fuel in navigation | D37: 0.06 | E37: 0.06 | F37: 0.06 | G37: 0.02 | H37: =(1+D37)^(2025-Assumptions!$C$10)-1 -> 0.7908476965 | I37: =(1+H37)*(1+E37)^5-1 -> 1.396558193 | J37: 2.207135472 | K37: 3.316382089
B38: Transport - electricity consumption | D38: 0.06 | E38: 0.06 | F38: 0.06 | G38: 0.02 | H38: =(1+D38)^(2025-Assumptions!$C$10)-1 -> 0.7908476965 | I38: =(1+H38)*(1+E38)^5-1 -> 1.396558193 | J38: 2.207135472 | K38: 3.316382089
B39: Household energy growth factors | D39: =Assumptions!$C$10&" to 2025" -> 2015 to 2025 | E39: 2025 to 2030 | F39: 2030 to 2035 | G39: 2030 to 2050 | H39: 2025 | I39: 2030 | J39: 2035 | K39: 2050
B40: Households - LPG | D40: 0.06 | E40: 0.06 | F40: 0.06 | G40: 0.02 | H40: =(1+D40)^(2025-Assumptions!$C$10)-1 -> 0.7908476965 | I40: =(1+H40)*(1+E40)^5-1 -> 1.396558193 | J40: 2.207135472 | K40: 3.316382089
B41: Households - Kerosene | D41: 0.06 | E41: 0.06 | F41: 0.06 | G41: 0.02 | H41: =(1+D41)^(2025-Assumptions!$C$10)-1 -> 0.7908476965 | I41: =(1+H41)*(1+E41)^5-1 -> 1.396558193 | J41: 2.207135472 | K41: 3.316382089
B42: Households - electricity consumption | D42: 0.06 | E42: 0.06 | F42: 0.06 | G42: 0.02 | H42: =(1+D42)^(2025-Assumptions!$C$10)-1 -> 0.7908476965 | I42: =(1+H42)*(1+E42)^5-1 -> 1.396558193 | J42: 2.207135472 | K42: 3.316382089
B43: Service sector energy growth factors | D43: =Assumptions!$C$10&" to 2025" -> 2015 to 2025 | E43: 2025 to 2030 | F43: 2030 to 2035 | G43: 2030 to 2050 | H43: 2025 | I43: 2030 | J43: 2035 | K43: 2050
B44: Services - fuel | D44: 0.06 | E44: 0.06 | F44: 0.06 | G44: 0.02 | H44: =(1+D44)^(2025-Assumptions!$C$10)-1 -> 0.7908476965 | I44: =(1+H44)*(1+E44)^5-1 -> 1.396558193 | J44: 2.207135472 | K44: 3.316382089
B45: Services - electricity consumption | D45: 0.06 | E45: 0.06 | F45: 0.06 | G45: 0.02 | H45: =(1+D45)^(2025-Assumptions!$C$10)-1 -> 0.7908476965 | I45: =(1+H45)*(1+E45)^5-1 -> 1.396558193 | J45: 2.207135472 | K45: 3.316382089
B46: Agriculture energy/emission growth factors | D46: =Assumptions!$C$10&" to 2025" -> 2015 to 2025 | E46: 2025 to 2030 | F46: 2030 to 2035 | G46: 2030 to 2050 | H46: 2025 | I46: 2030 | J46: 2035 | K46: 2050
B47: Agriculture - fuel | D47: 0.06 | E47: 0.06 | F47: 0.06 | G47: 0.02 | H47: =(1+D47)^(2025-Assumptions!$C$10)-1 -> 0.7908476965 | I47: =(1+H47)*(1+E47)^5-1 -> 1.396558193 | J47: 2.207135472 | K47: 3.316382089
B48: Agriculture - electricity consumption | D48: 0.06 | E48: 0.06 | F48: 0.06 | G48: 0.02 | H48: =(1+D48)^(2025-Assumptions!$C$10)-1 -> 0.7908476965 | I48: 1.396558193 | J48: 2.207135472 | K48: 3.316382089
B49: Non energy - fuel in chemical feedstocs | D49: 0.06 | E49: 0.06 | F49: 0.06 | G49: 0.02 | H49: =(1+D49)^(2025-Assumptions!$C$10)-1 -> 0.7908476965 | I49: 1.396558193 | J49: 2.207135472 | K49: 3.316382089
B50: Livestock emissions | D50: 0.03 | E50: 0.03 | F50: 0.03 | G50: 0.01 | H50: =(1+D50)^(2025-Assumptions!$C$10)-1 -> 0.3439163793 | I50: 0.5579674166 | J50: 0.8061112347 | K50: 1.096839073
B51: Rice emissions | D51: 0.03 | E51: 0.03 | F51: 0.03 | G51: 0.01 | H51: =(1+D51)^(2025-Assumptions!$C$10)-1 -> 0.3439163793 | I51: 0.5579674166 | J51: 0.8061112347 | K51: 1.096839073
B52: N2O from agricultural soils | D52: 0.03 | E52: 0.03 | F52: 0.03 | G52: 0.01 | H52: =(1+D52)^(2025-Assumptions!$C$10)-1 -> 0.3439163793 | I52: 0.5579674166 | J52: 0.8061112347 | K52: 1.096839073
B53: Biomass burning | D53: 0.03 | E53: 0.03 | F53: 0.03 | G53: 0.01 | H53: =(1+D53)^(2025-Assumptions!$C$10)-1 -> 0.3439163793 | I53: 0.5579674166 | J53: 0.8061112347 | K53: 1.096839073
B54: Forestry emission | D54: 0 | E54: 0 | F54: 0 | G54: 0 | H54: =(1+D54)^(2025-Assumptions!$C$10)-1 -> 0 | I54: 0 | J54: 0 | K54: 0
B55: Waste sector emission growth factors | D55: =Assumptions!$C$10&" to 2025" -> 2015 to 2025 | E55: 2025 to 2030 | F55: 2030 to 2035 | G55: 2030 to 2050 | H55: 2025 | I55: 2030 | J55: 2035 | K55: 2050
B56: Solid waste emissions | D56: 0 | E56: 0 | F56: 0 | G56: 0 | H56: =(1+D56)^(2025-Assumptions!$C$10)-1 -> 0 | I56: =(1+H56)*(1+E56)^5-1 -> 0 | J56: 0 | K56: =(1+J56)*(1+G56)^15-1 -> 0
B57: Liquid waste emissions | D57: 0 | E57: 0 | F57: 0 | G57: 0 | H57: =(1+D57)^(2025-Assumptions!$C$10)-1 -> 0 | I57: =(1+H57)*(1+E57)^5-1 -> 0 | J57: 0 | K57: 0

Sheet BAU projected Energy Balances (hidden)
B2: Step 5: BAU projected Energy Balances for year 2025, 2030, 2035, and 2050 | U2: Year
B4: Select year to display: | J4: The BAU projected energy balances sheet includes the future energy balances for the years 2025, 2030, 2035, and 2050. The data in this sheet are automatically calculated by GACMO. The user should not modify any of the data in the tables Fossil fuel balance – year – Country X and Electricity balance – year. However, a user may exceptionally decide to modify a specific data in one of these tables in the case that the user would like to reflect a change in the energy matrix which is not taken into account by the projections made by GACMO. The user should only make such a change if he/she is completely familiar with those types of data as the change will have an impact on the emissions scenarios and results obtained. Please refer to the Guidance for further details on the data included in this sheet and on how to fill it in. Once you have reviewed the tables of the BAU projected Energy Balances sheet, you can click “Go to step 6: BAU GHG balances”. | U4: Unit
B7: Select unit to display:
C10: Selected year: | D10: 2025
C11: Selected unit: | D11: ktoe
B14: ="Fossil fuel balance - 2025 - "&Assumptions!C9 -> Fossil fuel balance - 2025 - Country X | M14: 2025
B15: TJ units | D15: LPG | E15: Gasoline | F15: Jet Fuel | G15: Diesel | H15: Fueloil | I15: Kerosene and other | J15: Total oil products | K15: Coal | L15: Lignite | M15: Gas | N15: Coke | O15: Petrocoke | P15: Total energy (fossil)
B16: Unit | D16: TJ | E16: TJ | F16: TJ | G16: TJ | H16: TJ | I16: TJ | J16: TJ | K16: TJ | L16: TJ | M16: TJ | N16: TJ | O16: TJ | P16: TJ
B17: Total | D17: =+D18+D19 -> 338404.8487 | E17: 162706.393 | F17: 105327.2925 | G17: 1562113.877 | H17: 33683.91106 | I17: 4648.145196 | J17: 2206884.468 | K17: 1263343.622 | L17: 1848566.36 | M17: 3108574.922 | N17: =+N18+N19 -> 247459.3347 | O17: 227172.612 | P17: =SUM(J17:O17) -> 8902001.318
B18: Fossil power plants | D18: =D47/E41 -> 0 | E18: 0 | F18: 0 | G18: 18468.1885 | H18: 16338.13635 | I18: 0 | J18: =SUM(D18:I18) -> 34806.32485 | K18: =K47/L41 -> 718366.6047 | L18: =L47/M41 -> 1613947.94 | M18: =M47/N41 -> 1369412.881 | P18: 3736533.75
B19: FINAL CONSUMPTION | D19: =SUM(D20:D39) -> 338404.8487 | E19: 162706.393 | F19: 105327.2925 | G19: 1543645.689 | H19: 17345.77471 | I19: 4648.145196 | J19: 2172078.143 | K19: 544977.0173 | L19: 234618.4195 | M19: 1739162.041 | N19: 247459.3347 | O19: 227172.612 | P19: 5165467.567
B20: Industry - steel | D20: =+'Energy Balance'!D21*(1+Growth!$H19) -> 0 | E20: =+'Energy Balance'!E21*(1+Growth!$H19) -> 0 | F20: =+'Energy Balance'!F21*(1+Growth!$H19) -> 0 | G20: =+'Energy Balance'!G21*(1+Growth!$H19) -> 1319.156322 | H20: =+'Energy Balance'!H21*(1+Growth!$H19) -> 0 | I20: =+'Energy Balance'!I21*(1+Growth!$H19) -> 0 | J20: =SUM(D20:I20) -> 1319.156322 | K20: =+'Energy Balance'!K21*(1+Growth!$H19) -> 759.8924946 | L20: =+'Energy Balance'!L21*(1+Growth!$H19) -> 852.085334 | M20: =+'Energy Balance'!M21*(1+Growth!$H19) -> 16063.90384 | N20: =+'Energy Balance'!N21*(1+Growth!$H19) -> 0 | O20: =+'Energy Balance'!O21*(1+Growth!$H19) -> 0 | P20: 18995.03799
B21: Industry - chemical | D21: =+'Energy Balance'!D22*(1+Growth!$H20) -> 762.3638644 | E21: =+'Energy Balance'!E22*(1+Growth!$H20) -> 0 | F21: =+'Energy Balance'!F22*(1+Growth!$H20) -> 0 | G21: =+'Energy Balance'!G22*(1+Growth!$H20) -> 310.3897228 | H21: =+'Energy Balance'!H22*(1+Growth!$H20) -> 215.9225068 | I21: =+'Energy Balance'!I22*(1+Growth!$H20) -> 0 | J21: 1288.676094 | K21: =+'Energy Balance'!K22*(1+Growth!$H20) -> 17611.62605 | L21: =+'Energy Balance'!L22*(1+Growth!$H20) -> 10651.06668 | M21: =+'Energy Balance'!M22*(1+Growth!$H20) -> 180893.5258 | N21: =+'Energy Balance'!N22*(1+Growth!$H20) -> 0 | O21: =+'Energy Balance'!O22*(1+Growth!$H20) -> 0 | P21: 210444.8946
B22: Industry - non metallic mineral | D22: =+'Energy Balance'!D23*(1+Growth!$H21) -> 254.1212881 | E22: =+'Energy Balance'!E23*(1+Growth!$H21) -> 0 | F22: =+'Energy Balance'!F23*(1+Growth!$H21) -> 0 | G22: =+'Energy Balance'!G23*(1+Growth!$H21) -> 1862.338337 | H22: =+'Energy Balance'!H23*(1+Growth!$H21) -> 1295.535041 | I22: =+'Energy Balance'!I23*(1+Growth!$H21) -> 0 | J22: 3411.994665 | K22: =+'Energy Balance'!K23*(1+Growth!$H21) -> 147821.44 | L22: =+'Energy Balance'!L23*(1+Growth!$H21) -> 46078.15306 | M22: =+'Energy Balance'!M23*(1+Growth!$H21) -> 131584.3254 | N22: =+'Energy Balance'!N23*(1+Growth!$H21) -> 0 | O22: =+'Energy Balance'!O23*(1+Growth!$H21) -> 226783.9981 | P22: 555679.9111
B23: Industry - food processing and beverage | D23: =+'Energy Balance'!D24*(1+Growth!$H22) -> 1694.141921 | E23: =+'Energy Balance'!E24*(1+Growth!$H22) -> 0 | F23: =+'Energy Balance'!F24*(1+Growth!$H22) -> 0 | G23: =+'Energy Balance'!G24*(1+Growth!$H22) -> 465.5845841 | H23: =+'Energy Balance'!H24*(1+Growth!$H22) -> 2663.04425 | I23: =+'Energy Balance'!I24*(1+Growth!$H22) -> 0 | J23: 4822.770755 | K23: =+'Energy Balance'!K24*(1+Growth!$H22) -> 10191.49934 | L23: =+'Energy Balance'!L24*(1+Growth!$H22) -> 25791.96761 | M23: =+'Energy Balance'!M24*(1+Growth!$H22) -> 68585.88508 | N23: =+'Energy Balance'!N24*(1+Growth!$H22) -> 2457.04304 | O23: =+'Energy Balance'!O24*(1+Growth!$H22) -> 388.6139501 | P23: 112237.7798
B24: Industry - construction | D24: =+'Energy Balance'!D25*(1+Growth!$H23) -> 0 | E24: =+'Energy Balance'!E25*(1+Growth!$H23) -> 0 | F24: =+'Energy Balance'!F25*(1+Growth!$H23) -> 0 | G24: =+'Energy Balance'!G25*(1+Growth!$H23) -> 11406.82231 | H24: =+'Energy Balance'!H25*(1+Growth!$H23) -> 0 | I24: =+'Energy Balance'!I25*(1+Growth!$H23) -> 0 | J24: 11406.82231 | K24: =+'Energy Balance'!K25*(1+Growth!$H23) -> 44.69955851 | L24: =+'Energy Balance'!L25*(1+Growth!$H23) -> 98.31753854 | M24: =+'Energy Balance'!M25*(1+Growth!$H23) -> 25143.50166 | N24: =+'Energy Balance'!N25*(1+Growth!$H23) -> 0 | O24: =+'Energy Balance'!O25*(1+Growth!$H23) -> 0 | P24: 36693.34107
B25: Industry - mining | D25: =+'Energy Balance'!D26*(1+Growth!$H24) -> 0 | E25: =+'Energy Balance'!E26*(1+Growth!$H24) -> 0 | F25: =+'Energy Balance'!F26*(1+Growth!$H24) -> 0 | G25: =+'Energy Balance'!G26*(1+Growth!$H24) -> 29176.63394 | H25: =+'Energy Balance'!H26*(1+Growth!$H24) -> 0 | I25: =+'Energy Balance'!I26*(1+Growth!$H24) -> 0 | J25: 29176.63394 | K25: =+'Energy Balance'!K26*(1+Growth!$H24) -> 849.2916116 | L25: =+'Energy Balance'!L26*(1+Growth!$H24) -> 3080.616208 | M25: =+'Energy Balance'!M26*(1+Growth!$H24) -> 9079.597821 | N25: =+'Energy Balance'!N26*(1+Growth!$H24) -> 0 | O25: =+'Energy Balance'!O26*(1+Growth!$H24) -> 0 | P25: 42186.13958
B26: Industry - machinery | D26: =+'Energy Balance'!D27*(1+Growth!$H25) -> 423.5354802 | E26: =+'Energy Balance'!E27*(1+Growth!$H25) -> 0 | F26: =+'Energy Balance'!F27*(1+Growth!$H25) -> 0 | G26: =+'Energy Balance'!G27*(1+Growth!$H25) -> 232.7922921 | H26: =+'Energy Balance'!H27*(1+Growth!$H25) -> 0 | I26: =+'Energy Balance'!I27*(1+Growth!$H25) -> 0 | J26: 656.3277723 | K26: =+'Energy Balance'!K27*(1+Growth!$H25) -> 134.0986755 | L26: =+'Energy Balance'!L27*(1+Growth!$H25) -> 557.1327184 | M26: =+'Energy Balance'!M27*(1+Growth!$H25) -> 4819.171151 | N26: =+'Energy Balance'!N27*(1+Growth!$H25) -> 0 | O26: =+'Energy Balance'!O27*(1+Growth!$H25) -> 0 | P26: 6166.730318
B27: Industry - non ferrous metals | D27: =+'Energy Balance'!D28*(1+Growth!$H26) -> 3134.162554 | E27: =+'Energy Balance'!E28*(1+Growth!$H26) -> 0 | F27: =+'Energy Balance'!F28*(1+Growth!$H26) -> 0 | G27: =+'Energy Balance'!G28*(1+Growth!$H26) -> 1008.766599 | H27: =+'Energy Balance'!H28*(1+Growth!$H26) -> 0 | I27: =+'Energy Balance'!I28*(1+Growth!$H26) -> 0 | J27: 4142.929153 | K27: =+'Energy Balance'!K28*(1+Growth!$H26) -> 48543.72054 | L27: =+'Energy Balance'!L28*(1+Growth!$H26) -> 2228.530874 | M27: =+'Energy Balance'!M28*(1+Growth!$H26) -> 143667.1748 | N27: =+'Energy Balance'!N28*(1+Growth!$H26) -> 242595.3924 | O27: =+'Energy Balance'!O28*(1+Growth!$H26) -> 0 | P27: 441177.7477
B28: Industry - paper and pulp | D28: =+'Energy Balance'!D29*(1+Growth!$H27) -> 84.70709605 | E28: =+'Energy Balance'!E29*(1+Growth!$H27) -> 0 | F28: =+'Energy Balance'!F29*(1+Growth!$H27) -> 0 | G28: =+'Energy Balance'!G29*(1+Growth!$H27) -> 775.9743069 | H28: =+'Energy Balance'!H29*(1+Growth!$H27) -> 0 | I28: =+'Energy Balance'!I29*(1+Growth!$H27) -> 0 | J28: 860.681403 | K28: =+'Energy Balance'!K29*(1+Growth!$H27) -> 1922.081016 | L28: =+'Energy Balance'!L29*(1+Growth!$H27) -> 6620.047595 | M28: =+'Energy Balance'!M29*(1+Growth!$H27) -> 15505.15936 | N28: =+'Energy Balance'!N29*(1+Growth!$H27) -> 0 | O28: =+'Energy Balance'!O29*(1+Growth!$H27) -> 0 | P28: 24907.96937
B29: Industry - transport equipment | D29: =+'Energy Balance'!D30*(1+Growth!$H28) -> 1948.263209 | E29: =+'Energy Balance'!E30*(1+Growth!$H28) -> 0 | F29: =+'Energy Balance'!F30*(1+Growth!$H28) -> 0 | G29: =+'Energy Balance'!G30*(1+Growth!$H28) -> 543.1820148 | H29: =+'Energy Balance'!H30*(1+Growth!$H28) -> 0 | I29: =+'Energy Balance'!I30*(1+Growth!$H28) -> 0 | J29: 2491.445224 | K29: =+'Energy Balance'!K30*(1+Growth!$H28) -> 0 | L29: =+'Energy Balance'!L30*(1+Growth!$H28) -> 262.1801028 | M29: =+'Energy Balance'!M30*(1+Growth!$H28) -> 12432.06471 | N29: =+'Energy Balance'!N30*(1+Growth!$H28) -> 0 | O29: =+'Energy Balance'!O30*(1+Growth!$H28) -> 0 | P29: 15185.69004
B30: Industry - textile and leather | D30: =+'Energy Balance'!D31*(1+Growth!$H29) -> 1016.485153 | E30: =+'Energy Balance'!E31*(1+Growth!$H29) -> 0 | F30: =+'Energy Balance'!F31*(1+Growth!$H29) -> 0 | G30: =+'Energy Balance'!G31*(1+Growth!$H29) -> 465.5845841 | H30: =+'Energy Balance'!H31*(1+Growth!$H29) -> 0 | I30: =+'Energy Balance'!I31*(1+Growth!$H29) -> 0 | J30: 1482.069737 | K30: =+'Energy Balance'!K31*(1+Growth!$H29) -> 15868.34327 | L30: =+'Energy Balance'!L31*(1+Growth!$H29) -> 35590.94895 | M30: =+'Energy Balance'!M31*(1+Growth!$H29) -> 83671.98608 | N30: =+'Energy Balance'!N31*(1+Growth!$H29) -> 0 | O30: =+'Energy Balance'!O31*(1+Growth!$H29) -> 0 | P30: 136613.348
B31: Industry - miscellaneous | D31: =+'Energy Balance'!D32*(1+Growth!$H30) -> 0 | E31: =+'Energy Balance'!E32*(1+Growth!$H30) -> 0 | F31: =+'Energy Balance'!F32*(1+Growth!$H30) -> 0 | G31: =+'Energy Balance'!G32*(1+Growth!$H30) -> 0 | H31: =+'Energy Balance'!H32*(1+Growth!$H30) -> 0 | I31: =+'Energy Balance'!I32*(1+Growth!$H30) -> 0 | J31: 0 | K31: =+'Energy Balance'!K32*(1+Growth!$H30) -> 0 | L31: =+'Energy Balance'!L32*(1+Growth!$H30) -> 32.77251285 | M31: =+'Energy Balance'!M32*(1+Growth!$H30) -> 43372.54036 | N31: =+'Energy Balance'!N32*(1+Growth!$H30) -> 0 | O31: =+'Energy Balance'!O32*(1+Growth!$H30) -> 0 | P31: 43405.31288
B32: Transport - road | D32: =+'Energy Balance'!D33*(1+Growth!$H34) -> 259966.0778 | E32: =+'Energy Balance'!E33*(1+Growth!$H34) -> 162706.393 | F32: =+'Energy Balance'!F33*(1+Growth!$H34) -> 0 | G32: =+'Energy Balance'!G33*(1+Growth!$H34) -> 1274770.591 | H32: =+'Energy Balance'!H33*(1+Growth!$H34) -> 0 | I32: =+'Energy Balance'!I33*(1+Growth!$H34) -> 0 | J32: 1697443.062 | K32: =+'Energy Balance'!K33*(1+Growth!$H34) -> 0 | L32: =+'Energy Balance'!L33*(1+Growth!$H34) -> 0 | M32: =+'Energy Balance'!M33*(1+Growth!$H34) -> 6006.503174 | N32: =+'Energy Balance'!N33*(1+Growth!$H34) -> 0 | O32: =+'Energy Balance'!O33*(1+Growth!$H34) -> 0 | P32: 1703449.565
B33: Transport - rail | D33: =+'Energy Balance'!D34*(1+Growth!$H35) -> 0 | E33: =+'Energy Balance'!E34*(1+Growth!$H35) -> 0 | F33: =+'Energy Balance'!F34*(1+Growth!$H35) -> 0 | G33: =+'Energy Balance'!G34*(1+Growth!$H35) -> 10475.65314 | H33: =+'Energy Balance'!H34*(1+Growth!$H35) -> 0 | I33: =+'Energy Balance'!I34*(1+Growth!$H35) -> 0 | J33: 10475.65314 | K33: =+'Energy Balance'!K34*(1+Growth!$H35) -> 0 | L33: =+'Energy Balance'!L34*(1+Growth!$H35) -> 0 | M33: =+'Energy Balance'!M34*(1+Growth!$H35) -> 0 | N33: =+'Energy Balance'!N34*(1+Growth!$H35) -> 0 | O33: =+'Energy Balance'!O34*(1+Growth!$H35) -> 0 | P33: 10475.65314
B34: Transport - domestic air | D34: =+'Energy Balance'!D35*(1+Growth!$H36) -> 0 | E34: =+'Energy Balance'!E35*(1+Growth!$H36) -> 0 | F34: =+'Energy Balance'!F35*(1+Growth!$H36) -> 105327.2925 | G34: =+'Energy Balance'!G35*(1+Growth!$H36) -> 0 | H34: =+'Energy Balance'!H35*(1+Growth!$H36) -> 0 | I34: =+'Energy Balance'!I35*(1+Growth!$H36) -> 0 | J34: 105327.2925 | K34: =+'Energy Balance'!K35*(1+Growth!$H36) -> 0 | L34: =+'Energy Balance'!L35*(1+Growth!$H36) -> 0 | M34: =+'Energy Balance'!M35*(1+Growth!$H36) -> 0 | N34: =+'Energy Balance'!N35*(1+Growth!$H36) -> 0 | O34: =+'Energy Balance'!O35*(1+Growth!$H36) -> 0 | P34: 105327.2925
B35: Transport - navigation | D35: =+'Energy Balance'!D36*(1+Growth!$H37) -> 0 | E35: =+'Energy Balance'!E36*(1+Growth!$H37) -> 0 | F35: =+'Energy Balance'!F36*(1+Growth!$H37) -> 0 | G35: =+'Energy Balance'!G36*(1+Growth!$H37) -> 0 | H35: =+'Energy Balance'!H36*(1+Growth!$H37) -> 13171.27291 | I35: =+'Energy Balance'!I36*(1+Growth!$H37) -> 0 | J35: 13171.27291 | K35: =+'Energy Balance'!K36*(1+Growth!$H37) -> 0 | L35: =+'Energy Balance'!L36*(1+Growth!$H37) -> 0 | M35: =+'Energy Balance'!M36*(1+Growth!$H37) -> 0 | N35: =+'Energy Balance'!N36*(1+Growth!$H37) -> 0 | O35: =+'Energy Balance'!O36*(1+Growth!$H37) -> 0 | P35: 13171.27291
B36: Households | D36: =+'Energy Balance'!D37*(1+Growth!$H40) -> 20753.23853 | E36: =+'Energy Balance'!E37*(1+Growth!$H40) -> 0 | F36: =+'Energy Balance'!F37*(1+Growth!$H40) -> 0 | G36: =+'Energy Balance'!G37*(1+Growth!$H40) -> 0 | H36: =+'Energy Balance'!H37*(1+Growth!$H40) -> 0 | I36: =+'Energy Balance'!I37*(1+Growth!$H41) -> 4648.145196 | J36: 25401.38373 | K36: =+'Energy Balance'!K37*(1+Growth!$H40) -> 67764.53069 | L36: =+'Energy Balance'!L37*(1+Growth!$H40) -> 76228.86488 | M36: =+'Energy Balance'!M37*(1+Growth!$H40) -> 768273.6618 | N36: =+'Energy Balance'!N37*(1+Growth!$H40) -> 0 | O36: =+'Energy Balance'!O37*(1+Growth!$H40) -> 0 | P36: 937668.4411
B37: Services | D37: =+'Energy Balance'!D38*(1+Growth!$H44) -> 48367.75184 | E37: =+'Energy Balance'!E38*(1+Growth!$H44) -> 0 | F37: =+'Energy Balance'!F38*(1+Growth!$H44) -> 0 | G37: =+'Energy Balance'!G38*(1+Growth!$H44) -> 0 | H37: =+'Energy Balance'!H38*(1+Growth!$H44) -> 0 | I37: =+'Energy Balance'!I38*(1+Growth!$H44) -> 0 | J37: 48367.75184 | K37: =+'Energy Balance'!K38*(1+Growth!$H44) -> 233465.7941 | L37: =+'Energy Balance'!L38*(1+Growth!$H44) -> 26545.73541 | M37: =+'Energy Balance'!M38*(1+Growth!$H44) -> 220773.9132 | N37: =+'Energy Balance'!N38*(1+Growth!$H44) -> 2406.899304 | O37: =+'Energy Balance'!O38*(1+Growth!$H44) -> 0 | P37: 531560.0938
B38: Agriculture & Fishery | D38: =+'Energy Balance'!D39*(1+Growth!$H47) -> 0 | E38: =+'Energy Balance'!E39*(1+Growth!$H47) -> 0 | F38: =+'Energy Balance'!F39*(1+Growth!$H47) -> 0 | G38: =+'Energy Balance'!G39*(1+Growth!$H47) -> 210832.2192 | H38: =+'Energy Balance'!H39*(1+Growth!$H47) -> 0 | I38: =+'Energy Balance'!I39*(1+Growth!$H47) -> 0 | J38: 210832.2192 | K38: =+'Energy Balance'!K39*(1+Growth!$H47) -> 0 | L38: =+'Energy Balance'!L39*(1+Growth!$H47) -> 0 | M38: =+'Energy Balance'!M39*(1+Growth!$H47) -> 9289.127002 | N38: =+'Energy Balance'!N39*(1+Growth!$H47) -> 0 | O38: =+'Energy Balance'!O39*(1+Growth!$H47) -> 0 | P38: 220121.3462
B39: Non energy uses | D39: =+'Energy Balance'!D40*(1+Growth!$H49) -> 0 | E39: =+'Energy Balance'!E40*(1+Growth!$H49) -> 0 | F39: =+'Energy Balance'!F40*(1+Growth!$H49) -> 0 | G39: =+'Energy Balance'!G40*(1+Growth!$H49) -> 0 | H39: =+'Energy Balance'!H40*(1+Growth!$H49) -> 0 | I39: =+'Energy Balance'!I40*(1+Growth!$H49) -> 0 | J39: 0 | K39: =+'Energy Balance'!K40*(1+Growth!$H49) -> 0 | L39: =+'Energy Balance'!L40*(1+Growth!$H49) -> 0 | M39: =+'Energy Balance'!M40*(1+Growth!$H49) -> 0 | N39: =+'Energy Balance'!N40*(1+Growth!$H49) -> 0 | O39: =+'Energy Balance'!O40*(1+Growth!$H49) -> 0 | P39: 0
E41: 0.02388458966 | F41: 0.02388458966 | G41: 0.02388458966 | H41: 0.02388458966 | I41: 0.02388458966 | J41: 0.02388458966 | L41: 0.02388458966 | M41: 0.02388458966 | N41: 0.02388458966 | O41: 0.02388458966 | P41: 0.02388458966
B43: ="Fossil fuel balance - 2025 - "&Assumptions!C9 -> Fossil fuel balance - 2025 - Country X
B44: ktoe units | D44: LPG | E44: Gasoline | F44: Jet Fuel | G44: Diesel | H44: Fueloil | I44: Kerosene and other | J44: Total oil products | K44: Coal | L44: Lignite | M44: Gas | N44: Coke | O44: Petrocoke | P44: Total
B45: Unit | D45: ktoe | E45: ktoe | F45: ktoe | G45: ktoe | H45: ktoe | I45: ktoe | J45: ktoe | K45: ktoe | L45: ktoe | M45: ktoe | N45: ktoe | O45: ktoe | P45: ktoe
B46: Total consumption | D46: =+D47+D48 -> 8082.660951 | E46: 3886.175431 | F46: 2515.699162 | G46: 37310.44896 | H46: 804.5263938 | I46: 111.0190407 | J46: 52710.52994 | K46: 30174.44402 | L46: 44152.24896 | M46: 74247.03644 | N46: 5910.464668 | O46: 5425.92462 | P46: 212620.6487
B47: Fossil power plants | D47: =IF(G75=0,0,$J47*IF('Energy Balance'!$J76>0,'Energy Balance'!D76/'Energy Balance'!$J76,0)) -> 0 | E47: =IF(G75=0,0,$J47*IF('Energy Balance'!$J76>0,'Energy Balance'!E76/'Energy Balance'!$J76,0)) -> 0 | F47: =IF(G75=0,0,$J47*IF('Energy Balance'!$J76>0,'Energy Balance'!F76/'Energy Balance'!$J76,0)) -> 0 | G47: =IF(G75=0,0,$J47*IF('Energy Balance'!$J76>0,'Energy Balance'!G76/'Energy Balance'!$J76,0)) -> 441.1051042 | H47: =IF(G75=0,0,$J47*IF('Energy Balance'!$J76>0,'Energy Balance'!H76/'Energy Balance'!$J76,0)) -> 390.2296825 | I47: =IF(G75=0,0,$J47*IF('Energy Balance'!$J76>0,'Energy Balance'!I76/'Energy Balance'!$J76,0)) -> 0 | J47: =IF(G75=0,0,G78/11.63/I78) -> 831.3347867 | K47: =IF(I77>0,G77/11.63/I77,0) -> 17157.89158 | L47: =IF(I76>0,G76/11.63/I76,0) -> 38548.48429 | M47: =IF(I79>0,G79/11.63/I79,0) -> 32707.86473 | P47: =SUM(J47:O47) -> 89245.57539
B48: FINAL CONSUMPTION | D48: =SUM(D49:D68) -> 8082.660951 | E48: 3886.175431 | F48: 2515.699162 | G48: 36869.34386 | H48: 414.2967113 | I48: 111.0190407 | J48: =SUM(D48:I48) -> 51879.19516 | K48: =SUM(K49:K68) -> 13016.55243 | L48: 5603.764676 | M48: 41539.17171 | N48: 5910.464668 | O48: 5425.92462 | P48: 123375.0733
B49: Industry - steel | D49: =+'Energy Balance'!D78*(1+Growth!$H19) -> 0 | E49: =+'Energy Balance'!E78*(1+Growth!$H19) -> 0 | F49: =+'Energy Balance'!F78*(1+Growth!$H19) -> 0 | G49: =+'Energy Balance'!G78*(1+Growth!$H19) -> 31.50750745 | H49: =+'Energy Balance'!H78*(1+Growth!$H19) -> 0 | I49: =+'Energy Balance'!I78*(1+Growth!$H19) -> 0 | J49: 31.50750745 | K49: =+'Energy Balance'!K78*(1+Growth!$H19) -> 18.14972042 | L49: =+'Energy Balance'!L78*(1+Growth!$H19) -> 20.35170856 | M49: =+'Energy Balance'!M78*(1+Growth!$H19) -> 383.6797516 | N49: =+'Energy Balance'!N78*(1+Growth!$H19) -> 0 | O49: =+'Energy Balance'!O78*(1+Growth!$H19) -> 0 | P49: =SUM(J49:O49) -> 453.688688
B50: Industry - chemical | D50: =+'Energy Balance'!D79*(1+Growth!$H20) -> 18.20874808 | E50: =+'Energy Balance'!E79*(1+Growth!$H20) -> 0 | F50: =+'Energy Balance'!F79*(1+Growth!$H20) -> 0 | G50: =+'Energy Balance'!G79*(1+Growth!$H20) -> 7.413531164 | H50: =+'Energy Balance'!H79*(1+Growth!$H20) -> 5.157220473 | I50: =+'Energy Balance'!I79*(1+Growth!$H20) -> 0 | J50: 30.77949971 | K50: =+'Energy Balance'!K79*(1+Growth!$H20) -> 420.6464615 | L50: =+'Energy Balance'!L79*(1+Growth!$H20) -> 254.396357 | M50: =+'Energy Balance'!M79*(1+Growth!$H20) -> 4320.567637 | N50: =+'Energy Balance'!N79*(1+Growth!$H20) -> 0 | O50: =+'Energy Balance'!O79*(1+Growth!$H20) -> 0 | P50: 5026.389955
B51: Industry - non metallic mineral | D51: =+'Energy Balance'!D80*(1+Growth!$H21) -> 6.069582692 | E51: =+'Energy Balance'!E80*(1+Growth!$H21) -> 0 | F51: =+'Energy Balance'!F80*(1+Growth!$H21) -> 0 | G51: =+'Energy Balance'!G80*(1+Growth!$H21) -> 44.48118698 | H51: =+'Energy Balance'!H80*(1+Growth!$H21) -> 30.94332284 | I51: =+'Energy Balance'!I80*(1+Growth!$H21) -> 0 | J51: 81.49409251 | K51: =+'Energy Balance'!K80*(1+Growth!$H21) -> 3530.654437 | L51: =+'Energy Balance'!L80*(1+Growth!$H21) -> 1100.557778 | M51: =+'Energy Balance'!M80*(1+Growth!$H21) -> 3142.837617 | N51: =+'Energy Balance'!N80*(1+Growth!$H21) -> 0 | O51: =+'Energy Balance'!O80*(1+Growth!$H21) -> 5416.642736 | P51: 13272.18666
B52: Industry - food processing and beverage | D52: =+'Energy Balance'!D81*(1+Growth!$H22) -> 40.46388461 | E52: =+'Energy Balance'!E81*(1+Growth!$H22) -> 0 | F52: =+'Energy Balance'!F81*(1+Growth!$H22) -> 0 | G52: =+'Energy Balance'!G81*(1+Growth!$H22) -> 11.12029675 | H52: =+'Energy Balance'!H81*(1+Growth!$H22) -> 63.60571917 | I52: =+'Energy Balance'!I81*(1+Growth!$H22) -> 0 | J52: 115.1899005 | K52: =+'Energy Balance'!K81*(1+Growth!$H22) -> 243.4197798 | L52: =+'Energy Balance'!L81*(1+Growth!$H22) -> 616.030563 | M52: =+'Energy Balance'!M81*(1+Growth!$H22) -> 1638.145722 | N52: =+'Energy Balance'!N81*(1+Growth!$H22) -> 58.68546479 | O52: =+'Energy Balance'!O81*(1+Growth!$H22) -> 9.281884737 | P52: 2680.753315
B53: Industry - construction | D53: =+'Energy Balance'!D82*(1+Growth!$H23) -> 0 | E53: =+'Energy Balance'!E82*(1+Growth!$H23) -> 0 | F53: =+'Energy Balance'!F82*(1+Growth!$H23) -> 0 | G53: =+'Energy Balance'!G82*(1+Growth!$H23) -> 272.4472703 | H53: =+'Energy Balance'!H82*(1+Growth!$H23) -> 0 | I53: =+'Energy Balance'!I82*(1+Growth!$H23) -> 0 | J53: 272.4472703 | K53: =+'Energy Balance'!K82*(1+Growth!$H23) -> 1.067630613 | L53: =+'Energy Balance'!L82*(1+Growth!$H23) -> 2.348274065 | M53: =+'Energy Balance'!M82*(1+Growth!$H23) -> 600.5422198 | N53: =+'Energy Balance'!N82*(1+Growth!$H23) -> 0 | O53: =+'Energy Balance'!O82*(1+Growth!$H23) -> 0 | P53: 876.4053948
B54: Industry - mining | D54: =+'Energy Balance'!D83*(1+Growth!$H24) -> 0 | E54: =+'Energy Balance'!E83*(1+Growth!$H24) -> 0 | F54: =+'Energy Balance'!F83*(1+Growth!$H24) -> 0 | G54: =+'Energy Balance'!G83*(1+Growth!$H24) -> 696.8719294 | H54: =+'Energy Balance'!H83*(1+Growth!$H24) -> 0 | I54: =+'Energy Balance'!I83*(1+Growth!$H24) -> 0 | J54: 696.8719294 | K54: =+'Energy Balance'!K83*(1+Growth!$H24) -> 20.28498165 | L54: =+'Energy Balance'!L83*(1+Growth!$H24) -> 73.57925403 | M54: =+'Energy Balance'!M83*(1+Growth!$H24) -> 216.8624683 | N54: =+'Energy Balance'!N83*(1+Growth!$H24) -> 0 | O54: =+'Energy Balance'!O83*(1+Growth!$H24) -> 0 | P54: 1007.598633
B55: Industry - machinery | D55: =+'Energy Balance'!D84*(1+Growth!$H25) -> 10.11597115 | E55: =+'Energy Balance'!E84*(1+Growth!$H25) -> 0 | F55: =+'Energy Balance'!F84*(1+Growth!$H25) -> 0 | G55: =+'Energy Balance'!G84*(1+Growth!$H25) -> 5.560148373 | H55: =+'Energy Balance'!H84*(1+Growth!$H25) -> 0 | I55: =+'Energy Balance'!I84*(1+Growth!$H25) -> 0 | J55: 15.67611953 | K55: =+'Energy Balance'!K84*(1+Growth!$H25) -> 3.202891839 | L55: =+'Energy Balance'!L84*(1+Growth!$H25) -> 13.30688637 | M55: =+'Energy Balance'!M84*(1+Growth!$H25) -> 115.1039255 | N55: =+'Energy Balance'!N84*(1+Growth!$H25) -> 0 | O55: =+'Energy Balance'!O84*(1+Growth!$H25) -> 0 | P55: 147.2898232
B56: Industry - non ferrous metals | D56: =+'Energy Balance'!D85*(1+Growth!$H26) -> 74.85818653 | E56: =+'Energy Balance'!E85*(1+Growth!$H26) -> 0 | F56: =+'Energy Balance'!F85*(1+Growth!$H26) -> 0 | G56: =+'Energy Balance'!G85*(1+Growth!$H26) -> 24.09397628 | H56: =+'Energy Balance'!H85*(1+Growth!$H26) -> 0 | I56: =+'Energy Balance'!I85*(1+Growth!$H26) -> 0 | J56: 98.95216281 | K56: =+'Energy Balance'!K85*(1+Growth!$H26) -> 1159.446846 | L56: =+'Energy Balance'!L85*(1+Growth!$H26) -> 53.22754547 | M56: =+'Energy Balance'!M85*(1+Growth!$H26) -> 3431.431517 | N56: =+'Energy Balance'!N85*(1+Growth!$H26) -> 5794.291401 | O56: =+'Energy Balance'!O85*(1+Growth!$H26) -> 0 | P56: 10537.34947
B57: Industry - paper and pulp | D57: =+'Energy Balance'!D86*(1+Growth!$H27) -> 2.023194231 | E57: =+'Energy Balance'!E86*(1+Growth!$H27) -> 0 | F57: =+'Energy Balance'!F86*(1+Growth!$H27) -> 0 | G57: =+'Energy Balance'!G86*(1+Growth!$H27) -> 18.53382791 | H57: =+'Energy Balance'!H86*(1+Growth!$H27) -> 0 | I57: =+'Energy Balance'!I86*(1+Growth!$H27) -> 0 | J57: 20.55702214 | K57: =+'Energy Balance'!K86*(1+Growth!$H27) -> 45.90811636 | L57: =+'Energy Balance'!L86*(1+Growth!$H27) -> 158.1171204 | M57: =+'Energy Balance'!M86*(1+Growth!$H27) -> 370.3343689 | N57: =+'Energy Balance'!N86*(1+Growth!$H27) -> 0 | O57: =+'Energy Balance'!O86*(1+Growth!$H27) -> 0 | P57: 594.9166277
B58: Industry - transport equipment | D58: =+'Energy Balance'!D87*(1+Growth!$H28) -> 46.5334673 | E58: =+'Energy Balance'!E87*(1+Growth!$H28) -> 0 | F58: =+'Energy Balance'!F87*(1+Growth!$H28) -> 0 | G58: =+'Energy Balance'!G87*(1+Growth!$H28) -> 12.97367954 | H58: =+'Energy Balance'!H87*(1+Growth!$H28) -> 0 | I58: =+'Energy Balance'!I87*(1+Growth!$H28) -> 0 | J58: 59.50714684 | K58: =+'Energy Balance'!K87*(1+Growth!$H28) -> 0 | L58: =+'Energy Balance'!L87*(1+Growth!$H28) -> 6.262064172 | M58: =+'Energy Balance'!M87*(1+Growth!$H28) -> 296.9347642 | N58: =+'Energy Balance'!N87*(1+Growth!$H28) -> 0 | O58: =+'Energy Balance'!O87*(1+Growth!$H28) -> 0 | P58: 362.7039753
B59: Industry - textile and leather | D59: =+'Energy Balance'!D88*(1+Growth!$H29) -> 24.27833077 | E59: =+'Energy Balance'!E88*(1+Growth!$H29) -> 0 | F59: =+'Energy Balance'!F88*(1+Growth!$H29) -> 0 | G59: =+'Energy Balance'!G88*(1+Growth!$H29) -> 11.12029675 | H59: =+'Energy Balance'!H88*(1+Growth!$H29) -> 0 | I59: =+'Energy Balance'!I88*(1+Growth!$H29) -> 0 | J59: 35.39862751 | K59: =+'Energy Balance'!K88*(1+Growth!$H29) -> 379.0088676 | L59: =+'Energy Balance'!L88*(1+Growth!$H29) -> 850.0752114 | M59: =+'Energy Balance'!M88*(1+Growth!$H29) -> 1998.471054 | N59: =+'Energy Balance'!N88*(1+Growth!$H29) -> 0 | O59: =+'Energy Balance'!O88*(1+Growth!$H29) -> 0 | P59: 3262.95376
B60: Industry - miscellaneous | D60: =+'Energy Balance'!D89*(1+Growth!$H30) -> 0 | E60: =+'Energy Balance'!E89*(1+Growth!$H30) -> 0 | F60: =+'Energy Balance'!F89*(1+Growth!$H30) -> 0 | G60: =+'Energy Balance'!G89*(1+Growth!$H30) -> 0 | H60: =+'Energy Balance'!H89*(1+Growth!$H30) -> 0 | I60: =+'Energy Balance'!I89*(1+Growth!$H30) -> 0 | J60: 0 | K60: =+'Energy Balance'!K89*(1+Growth!$H30) -> 0 | L60: =+'Energy Balance'!L89*(1+Growth!$H30) -> 0.7827580216 | M60: =+'Energy Balance'!M89*(1+Growth!$H30) -> 1035.935329 | N60: =+'Energy Balance'!N89*(1+Growth!$H30) -> 0 | O60: =+'Energy Balance'!O89*(1+Growth!$H30) -> 0 | P60: 1036.718087
B61: Transport - road | D61: =+'Energy Balance'!D90*(1+Growth!$H34) -> 6209.183094 | E61: =+'Energy Balance'!E90*(1+Growth!$H34) -> 3886.175431 | F61: =+'Energy Balance'!F90*(1+Growth!$H34) -> 0 | G61: =+'Energy Balance'!G90*(1+Growth!$H34) -> 30447.37249 | H61: =+'Energy Balance'!H90*(1+Growth!$H34) -> 0 | I61: =+'Energy Balance'!I90*(1+Growth!$H34) -> 0 | J61: 40542.73101 | K61: =+'Energy Balance'!K90*(1+Growth!$H34) -> 0 | L61: =+'Energy Balance'!L90*(1+Growth!$H34) -> 0 | M61: =+'Energy Balance'!M90*(1+Growth!$H34) -> 143.4628636 | N61: =+'Energy Balance'!N90*(1+Growth!$H34) -> 0 | O61: =+'Energy Balance'!O90*(1+Growth!$H34) -> 0 | P61: 40686.19388
B62: Transport - rail | D62: =+'Energy Balance'!D91*(1+Growth!$H35) -> 0 | E62: =+'Energy Balance'!E91*(1+Growth!$H35) -> 0 | F62: =+'Energy Balance'!F91*(1+Growth!$H35) -> 0 | G62: =+'Energy Balance'!G91*(1+Growth!$H35) -> 250.2066768 | H62: =+'Energy Balance'!H91*(1+Growth!$H35) -> 0 | I62: =+'Energy Balance'!I91*(1+Growth!$H35) -> 0 | J62: 250.2066768 | K62: =+'Energy Balance'!K91*(1+Growth!$H35) -> 0 | L62: =+'Energy Balance'!L91*(1+Growth!$H35) -> 0 | M62: =+'Energy Balance'!M91*(1+Growth!$H35) -> 0 | N62: =+'Energy Balance'!N91*(1+Growth!$H35) -> 0 | O62: =+'Energy Balance'!O91*(1+Growth!$H35) -> 0 | P62: 250.2066768
B63: Transport - domestic air | D63: =+'Energy Balance'!D92*(1+Growth!$H36) -> 0 | E63: =+'Energy Balance'!E92*(1+Growth!$H36) -> 0 | F63: =+'Energy Balance'!F92*(1+Growth!$H36) -> 2515.699162 | G63: =+'Energy Balance'!G92*(1+Growth!$H36) -> 0 | H63: =+'Energy Balance'!H92*(1+Growth!$H36) -> 0 | I63: =+'Energy Balance'!I92*(1+Growth!$H36) -> 0 | J63: 2515.699162 | K63: =+'Energy Balance'!K92*(1+Growth!$H36) -> 0 | L63: =+'Energy Balance'!L92*(1+Growth!$H36) -> 0 | M63: =+'Energy Balance'!M92*(1+Growth!$H36) -> 0 | N63: =+'Energy Balance'!N92*(1+Growth!$H36) -> 0 | O63: =+'Energy Balance'!O92*(1+Growth!$H36) -> 0 | P63: 2515.699162
B64: Transport - navigation | D64: =+'Energy Balance'!D93*(1+Growth!$H37) -> 0 | E64: =+'Energy Balance'!E93*(1+Growth!$H37) -> 0 | F64: =+'Energy Balance'!F93*(1+Growth!$H37) -> 0 | G64: =+'Energy Balance'!G93*(1+Growth!$H37) -> 0 | H64: =+'Energy Balance'!H93*(1+Growth!$H37) -> 314.5904489 | I64: =+'Energy Balance'!I93*(1+Growth!$H37) -> 0 | J64: 314.5904489 | K64: =+'Energy Balance'!K93*(1+Growth!$H37) -> 0 | L64: =+'Energy Balance'!L93*(1+Growth!$H37) -> 0 | M64: =+'Energy Balance'!M93*(1+Growth!$H37) -> 0 | N64: =+'Energy Balance'!N93*(1+Growth!$H37) -> 0 | O64: =+'Energy Balance'!O93*(1+Growth!$H37) -> 0 | P64: 314.5904489
B65: Households | D65: =+'Energy Balance'!D94*(1+Growth!$H40) -> 495.6825865 | E65: =+'Energy Balance'!E94*(1+Growth!$H40) -> 0 | F65: =+'Energy Balance'!F94*(1+Growth!$H40) -> 0 | G65: =+'Energy Balance'!G94*(1+Growth!$H40) -> 0 | H65: =+'Energy Balance'!H94*(1+Growth!$H40) -> 0 | I65: =+'Energy Balance'!I94*(1+Growth!$H41) -> 111.0190407 | J65: 606.7016272 | K65: =+'Energy Balance'!K94*(1+Growth!$H40) -> 1618.528009 | L65: =+'Energy Balance'!L94*(1+Growth!$H40) -> 1820.695158 | M65: =+'Energy Balance'!M94*(1+Growth!$H40) -> 18349.90116 | N65: =+'Energy Balance'!N94*(1+Growth!$H40) -> 0 | O65: =+'Energy Balance'!O94*(1+Growth!$H40) -> 0 | P65: 22395.82596
B66: Services | D66: =+'Energy Balance'!D95*(1+Growth!$H44) -> 1155.243906 | E66: =+'Energy Balance'!E95*(1+Growth!$H44) -> 0 | F66: =+'Energy Balance'!F95*(1+Growth!$H44) -> 0 | G66: =+'Energy Balance'!G95*(1+Growth!$H44) -> 0 | H66: =+'Energy Balance'!H95*(1+Growth!$H44) -> 0 | I66: =+'Energy Balance'!I95*(1+Growth!$H44) -> 0 | J66: 1155.243906 | K66: =+'Energy Balance'!K95*(1+Growth!$H44) -> 5576.234692 | L66: =+'Energy Balance'!L95*(1+Growth!$H44) -> 634.0339975 | M66: =+'Energy Balance'!M95*(1+Growth!$H44) -> 5273.094325 | N66: =+'Energy Balance'!N95*(1+Growth!$H44) -> 57.48780224 | O66: =+'Energy Balance'!O95*(1+Growth!$H44) -> 0 | P66: 12696.09472
B67: Agriculture & Fishery | D67: =+'Energy Balance'!D96*(1+Growth!$H47) -> 0 | E67: =+'Energy Balance'!E96*(1+Growth!$H47) -> 0 | F67: =+'Energy Balance'!F96*(1+Growth!$H47) -> 0 | G67: =+'Energy Balance'!G96*(1+Growth!$H47) -> 5035.641043 | H67: =+'Energy Balance'!H96*(1+Growth!$H47) -> 0 | I67: =+'Energy Balance'!I96*(1+Growth!$H47) -> 0 | J67: 5035.641043 | K67: =+'Energy Balance'!K96*(1+Growth!$H47) -> 0 | L67: =+'Energy Balance'!L96*(1+Growth!$H47) -> 0 | M67: =+'Energy Balance'!M96*(1+Growth!$H47) -> 221.8669868 | N67: =+'Energy Balance'!N96*(1+Growth!$H47) -> 0 | O67: =+'Energy Balance'!O96*(1+Growth!$H47) -> 0 | P67: 5257.50803
B68: Non energy uses | D68: =+'Energy Balance'!D97*(1+Growth!$H49) -> 0 | E68: =+'Energy Balance'!E97*(1+Growth!$H49) -> 0 | F68: =+'Energy Balance'!F97*(1+Growth!$H49) -> 0 | G68: =+'Energy Balance'!G97*(1+Growth!$H49) -> 0 | H68: =+'Energy Balance'!H97*(1+Growth!$H49) -> 0 | I68: =+'Energy Balance'!I97*(1+Growth!$H49) -> 0 | J68: 0 | K68: =+'Energy Balance'!K97*(1+Growth!$H49) -> 0 | L68: =+'Energy Balance'!L97*(1+Growth!$H49) -> 0 | M68: =+'Energy Balance'!M97*(1+Growth!$H49) -> 0 | N68: =+'Energy Balance'!N97*(1+Growth!$H49) -> 0 | O68: =+'Energy Balance'!O97*(1+Growth!$H49) -> 0 | P68: 0
B71: Electricity balance - 2025
B72: Electricity consumption | D72: GWh | F72: Electricity production | G72: Gwh | H72: Share of production | I72: Efficiency
B73: Total consumption | D73: =SUM(D74:D93) -> 388707.0742 | F73: Total | G73: =IF(H74=1,0,D73/(1-H74)) -> 468817.0642
B74: Industry - steel | D74: =+'Energy Balance'!D103*(1+Growth!H$31) -> 2745.369519 | F74: Losses | G74: =G73*H74 -> 80109.99001 | H74: =+'Energy Balance'!H103 -> 0.1708768646
B75: Industry - chemical | D75: =+'Energy Balance'!D104*(1+Growth!H$31) -> 27140.29684 | F75: Fossil | G75: =SUM(G76:G81) -> 318070.6685 | H75: =SUM(H76:H81) -> 0.6784536929
B76: Industry - non metallic mineral | D76: =+'Energy Balance'!D105*(1+Growth!H$31) -> 33207.68884 | F76: Lignite | G76: =G$73*H76 -> 58050.32808 | H76: =+'Energy Balance'!H105 -> 0.1238229845 | I76: =+'Energy Balance'!I105 -> 0.1294844622
B77: Industry - food processing and beverage | D77: =+'Energy Balance'!D106*(1+Growth!H$31) -> 12715.01865 | F77: Coal | G77: 78351.37757 | H77: =+'Energy Balance'!H106 -> 0.1671256947 | I77: =+'Energy Balance'!I106 -> 0.3926476501
B78: Industry - construction | D78: =+'Energy Balance'!D107*(1+Growth!H$31) -> 5132.569498 | F78: Oil | G78: 3982.845277 | H78: =+'Energy Balance'!H107 -> 0.008495521134 | I78: =+'Energy Balance'!I107 -> 0.4119436068
B79: Industry - mining | D79: =+'Energy Balance'!D108*(1+Growth!H$31) -> 3948.819171 | F79: Natural Gas | G79: 177686.1176 | H79: =+'Energy Balance'!H108 -> 0.3790094925 | I79: =+'Energy Balance'!I108 -> 0.4671126089
B80: Industry - machinery | D80: =+'Energy Balance'!D109*(1+Growth!H$31) -> 3857.485938 | F80: Nuclear | G80: 0 | H80: =+'Energy Balance'!H109 -> 0
B81: Industry - non ferrous metals | D81: =+'Energy Balance'!D110*(1+Growth!H$31) -> 45242.18536 | F81: Net import | G81: 0 | H81: =+'Energy Balance'!H110 -> 0
B82: Industry - paper and pulp | D82: =+'Energy Balance'!D111*(1+Growth!H$31) -> 7195.626045 | F82: Renewables | G82: =SUM(G83:G87) -> 150746.3957 | H82: =SUM(H83:H87) -> 0.3215463071
B83: Industry - transport equipment | D83: =+'Energy Balance'!D112*(1+Growth!H$31) -> 4756.491482 | F83: Hydro | G83: =G$73*H83 -> 120248.2594 | H83: =+'Energy Balance'!H112 -> 0.2564929236
B84: Industry - textile and leather | D84: =+'Energy Balance'!D113*(1+Growth!H$31) -> 31108.81534 | F84: Wind | G84: =G$73*H84 -> 20868.74821 | H84: =+'Energy Balance'!H113 -> 0.0445136276
B85: Industry - miscellaneous | D85: =+'Energy Balance'!D114*(1+Growth!H$31) -> 8361.467895 | F85: Solar | G85: =G$73*H85 -> 347.4244531 | H85: =+'Energy Balance'!H114 -> 0.0007410661421
B86: Transport - road | D86: =+'Energy Balance'!D115*(1+Growth!H$38) -> 0 | F86: Biomass | G86: =G$73*H86 -> 3148.310251 | H86: =+'Energy Balance'!H115 -> 0.006715434421
B87: Transport - rail | D87: =+'Energy Balance'!D116*(1+Growth!H$38) -> 1438.0507 | F87: Geothermal | G87: =G$73*H87 -> 6133.653361 | H87: =+'Energy Balance'!H116 -> 0.01308325534
B88: Transport - domestic air | D88: =+'Energy Balance'!D117*(1+Growth!H$38) -> 0
B89: Transport - navigation | D89: =+'Energy Balance'!D118*(1+Growth!H$38) -> 0
B90: Households | D90: =+'Energy Balance'!D119*(1+Growth!H42) -> 85783.39551
B91: Services | D91: =+'Energy Balance'!D120*(1+Growth!H45) -> 107332.6658
B92: Agriculture & Fishery | D92: =+'Energy Balance'!D121*(1+Growth!H48) -> 8741.127607
B93: Non energy - chemical feedstocs | D93: =+'Energy Balance'!D122*(1+Growth!H49) -> 0
B100: ="Fossil fuel balance - 2030 - "&Assumptions!C9 -> Fossil fuel balance - 2030 - Country X
B101: TJ units | D101: LPG | E101: Gasoline | F101: Jet Fuel | G101: Diesel | H101: Fueloil | I101: Kerosene and other | J101: Total oil products | K101: Coal | L101: Lignite | M101: Gas | N101: Coke | O101: Petrocoke | P101: Total energy (fossil)
B102: Unit | D102: TJ | E102: TJ | F102: TJ | G102: TJ | H102: TJ | I102: TJ | J102: TJ | K102: TJ | L102: TJ | M102: TJ | N102: TJ | O102: TJ | P102: TJ
B103: Total | D103: =+D104+D105 -> 452862.0241 | E103: 217737.8567 | F103: 140951.6768 | G103: 2090460.746 | H103: 45076.67133 | I103: 6220.26679 | J103: 2953309.241 | K103: 1690638.748 | L103: 2473798.784 | M103: 4159974.47 | N103: 331156.4111 | O103: 304008.1999 | P103: =SUM(J103:O103) -> 11912885.86
B104: Fossil power plants | D104: =D133/E127 -> 0 | E104: 0 | F104: 0 | G104: 24714.60223 | H104: 21864.11195 | I104: 0 | J104: =SUM(D104:I104) -> 46578.71418 | K104: =K133/L127 -> 961336.5646 | L104: =L133/M127 -> 2159826.414 | M104: =M133/N127 -> 1832583.343 | P104: 5000325.036
B105: FINAL CONSUMPTION | D105: =SUM(D106:D125) -> 452862.0241 | E105: 217737.8567 | F105: 140951.6768 | G105: 2065746.143 | H105: 23212.55938 | I105: 6220.26679 | J105: 2906730.527 | K105: 729302.1838 | L105: 313972.3699 | M105: 2327391.127 | N105: 331156.4111 | O105: 304008.1999 | P105: 6912560.819
B106: Industry - steel | D106: =+'Energy Balance'!D21*(1+Growth!$I19) -> 0 | E106: =+'Energy Balance'!E21*(1+Growth!$I19) -> 0 | F106: =+'Energy Balance'!F21*(1+Growth!$I19) -> 0 | G106: =+'Energy Balance'!G21*(1+Growth!$I19) -> 1765.328731 | H106: =+'Energy Balance'!H21*(1+Growth!$I19) -> 0 | I106: =+'Energy Balance'!I21*(1+Growth!$I19) -> 0 | J106: =SUM(D106:I106) -> 1765.328731 | K106: =+'Energy Balance'!K21*(1+Growth!$I19) -> 1016.907572 | L106: =+'Energy Balance'!L21*(1+Growth!$I19) -> 1140.282388 | M106: =+'Energy Balance'!M21*(1+Growth!$I19) -> 21497.12699 | N106: =+'Energy Balance'!N21*(1+Growth!$I19) -> 0 | O106: =+'Energy Balance'!O21*(1+Growth!$I19) -> 0 | P106: 25419.64568
B107: Industry - chemical | D107: =+'Energy Balance'!D22*(1+Growth!$I20) -> 1020.214823 | E107: =+'Energy Balance'!E22*(1+Growth!$I20) -> 0 | F107: =+'Energy Balance'!F22*(1+Growth!$I20) -> 0 | G107: =+'Energy Balance'!G22*(1+Growth!$I20) -> 415.371466 | H107: =+'Energy Balance'!H22*(1+Growth!$I20) -> 288.9530213 | I107: =+'Energy Balance'!I22*(1+Growth!$I20) -> 0 | J107: 1724.53931 | K107: =+'Energy Balance'!K22*(1+Growth!$I20) -> 23568.32844 | L107: =+'Energy Balance'!L22*(1+Growth!$I20) -> 14253.52985 | M107: =+'Energy Balance'!M22*(1+Growth!$I20) -> 242076.3431 | N107: =+'Energy Balance'!N22*(1+Growth!$I20) -> 0 | O107: =+'Energy Balance'!O22*(1+Growth!$I20) -> 0 | P107: 281622.7407
B108: Industry - non metallic mineral | D108: =+'Energy Balance'!D23*(1+Growth!$I21) -> 340.0716076 | E108: =+'Energy Balance'!E23*(1+Growth!$I21) -> 0 | F108: =+'Energy Balance'!F23*(1+Growth!$I21) -> 0 | G108: =+'Energy Balance'!G23*(1+Growth!$I21) -> 2492.228796 | H108: =+'Energy Balance'!H23*(1+Growth!$I21) -> 1733.718128 | I108: =+'Energy Balance'!I23*(1+Growth!$I21) -> 0 | J108: 4566.018532 | K108: =+'Energy Balance'!K23*(1+Growth!$I21) -> 197818.4319 | L108: =+'Energy Balance'!L23*(1+Growth!$I21) -> 61662.963 | M108: =+'Energy Balance'!M23*(1+Growth!$I21) -> 176089.5098 | N108: =+'Energy Balance'!N23*(1+Growth!$I21) -> 0 | O108: =+'Energy Balance'!O23*(1+Growth!$I21) -> 303488.1468 | P108: 743625.07
B109: Industry - food processing and beverage | D109: =+'Energy Balance'!D24*(1+Growth!$I22) -> 2267.144051 | E109: =+'Energy Balance'!E24*(1+Growth!$I22) -> 0 | F109: =+'Energy Balance'!F24*(1+Growth!$I22) -> 0 | G109: =+'Energy Balance'!G24*(1+Growth!$I22) -> 623.057199 | H109: =+'Energy Balance'!H24*(1+Growth!$I22) -> 3563.75393 | I109: =+'Energy Balance'!I24*(1+Growth!$I22) -> 0 | J109: 6453.95518 | K109: =+'Energy Balance'!K24*(1+Growth!$I22) -> 13638.52509 | L109: =+'Energy Balance'!L24*(1+Growth!$I22) -> 34515.47075 | M109: =+'Energy Balance'!M24*(1+Growth!$I22) -> 91783.38568 | N109: =+'Energy Balance'!N24*(1+Growth!$I22) -> 3288.077841 | O109: =+'Energy Balance'!O24*(1+Growth!$I22) -> 520.0531279 | P109: 150199.4677
B110: Industry - construction | D110: =+'Energy Balance'!D25*(1+Growth!$I23) -> 0 | E110: =+'Energy Balance'!E25*(1+Growth!$I23) -> 0 | F110: =+'Energy Balance'!F25*(1+Growth!$I23) -> 0 | G110: =+'Energy Balance'!G25*(1+Growth!$I23) -> 15264.90138 | H110: =+'Energy Balance'!H25*(1+Growth!$I23) -> 0 | I110: =+'Energy Balance'!I25*(1+Growth!$I23) -> 0 | J110: 15264.90138 | K110: =+'Energy Balance'!K25*(1+Growth!$I23) -> 59.8180925 | L110: =+'Energy Balance'!L25*(1+Growth!$I23) -> 131.5710448 | M110: =+'Energy Balance'!M25*(1+Growth!$I23) -> 33647.67703 | N110: =+'Energy Balance'!N25*(1+Growth!$I23) -> 0 | O110: =+'Energy Balance'!O25*(1+Growth!$I23) -> 0 | P110: 49103.96754
B111: Industry - mining | D111: =+'Energy Balance'!D26*(1+Growth!$I24) -> 0 | E111: =+'Energy Balance'!E26*(1+Growth!$I24) -> 0 | F111: =+'Energy Balance'!F26*(1+Growth!$I24) -> 0 | G111: =+'Energy Balance'!G26*(1+Growth!$I24) -> 39044.91781 | H111: =+'Energy Balance'!H26*(1+Growth!$I24) -> 0 | I111: =+'Energy Balance'!I26*(1+Growth!$I24) -> 0 | J111: 39044.91781 | K111: =+'Energy Balance'!K26*(1+Growth!$I24) -> 1136.543757 | L111: =+'Energy Balance'!L26*(1+Growth!$I24) -> 4122.559404 | M111: =+'Energy Balance'!M26*(1+Growth!$I24) -> 12150.55004 | N111: =+'Energy Balance'!N26*(1+Growth!$I24) -> 0 | O111: =+'Energy Balance'!O26*(1+Growth!$I24) -> 0 | P111: 56454.57101
B112: Industry - machinery | D112: =+'Energy Balance'!D27*(1+Growth!$I25) -> 566.7860127 | E112: =+'Energy Balance'!E27*(1+Growth!$I25) -> 0 | F112: =+'Energy Balance'!F27*(1+Growth!$I25) -> 0 | G112: =+'Energy Balance'!G27*(1+Growth!$I25) -> 311.5285995 | H112: =+'Energy Balance'!H27*(1+Growth!$I25) -> 0 | I112: =+'Energy Balance'!I27*(1+Growth!$I25) -> 0 | J112: 878.3146122 | K112: =+'Energy Balance'!K27*(1+Growth!$I25) -> 179.4542775 | L112: =+'Energy Balance'!L27*(1+Growth!$I25) -> 745.5692539 | M112: =+'Energy Balance'!M27*(1+Growth!$I25) -> 6449.138098 | N112: =+'Energy Balance'!N27*(1+Growth!$I25) -> 0 | O112: =+'Energy Balance'!O27*(1+Growth!$I25) -> 0 | P112: 8252.476241
B113: Industry - non ferrous metals | D113: =+'Energy Balance'!D28*(1+Growth!$I26) -> 4194.216494 | E113: =+'Energy Balance'!E28*(1+Growth!$I26) -> 0 | F113: =+'Energy Balance'!F28*(1+Growth!$I26) -> 0 | G113: =+'Energy Balance'!G28*(1+Growth!$I26) -> 1349.957265 | H113: =+'Energy Balance'!H28*(1+Growth!$I26) -> 0 | I113: =+'Energy Balance'!I28*(1+Growth!$I26) -> 0 | J113: 5544.173758 | K113: =+'Energy Balance'!K28*(1+Growth!$I26) -> 64962.44845 | L113: =+'Energy Balance'!L28*(1+Growth!$I26) -> 2982.277015 | M113: =+'Energy Balance'!M28*(1+Growth!$I26) -> 192259.0879 | N113: =+'Energy Balance'!N28*(1+Growth!$I26) -> 324647.3591 | O113: =+'Energy Balance'!O28*(1+Growth!$I26) -> 0 | P113: 590395.3462
B114: Industry - paper and pulp | D114: =+'Energy Balance'!D29*(1+Growth!$I27) -> 113.3572025 | E114: =+'Energy Balance'!E29*(1+Growth!$I27) -> 0 | F114: =+'Energy Balance'!F29*(1+Growth!$I27) -> 0 | G114: =+'Energy Balance'!G29*(1+Growth!$I27) -> 1038.428665 | H114: =+'Energy Balance'!H29*(1+Growth!$I27) -> 0 | I114: =+'Energy Balance'!I29*(1+Growth!$I27) -> 0 | J114: 1151.785868 | K114: =+'Energy Balance'!K29*(1+Growth!$I27) -> 2572.177977 | L114: =+'Energy Balance'!L29*(1+Growth!$I27) -> 8859.117017 | M114: =+'Energy Balance'!M29*(1+Growth!$I27) -> 20749.40084 | N114: =+'Energy Balance'!N29*(1+Growth!$I27) -> 0 | O114: =+'Energy Balance'!O29*(1+Growth!$I27) -> 0 | P114: 33332.4817
B115: Industry - transport equipment | D115: =+'Energy Balance'!D30*(1+Growth!$I28) -> 2607.215658 | E115: =+'Energy Balance'!E30*(1+Growth!$I28) -> 0 | F115: =+'Energy Balance'!F30*(1+Growth!$I28) -> 0 | G115: =+'Energy Balance'!G30*(1+Growth!$I28) -> 726.9000655 | H115: =+'Energy Balance'!H30*(1+Growth!$I28) -> 0 | I115: =+'Energy Balance'!I30*(1+Growth!$I28) -> 0 | J115: 3334.115724 | K115: =+'Energy Balance'!K30*(1+Growth!$I28) -> 0 | L115: =+'Energy Balance'!L30*(1+Growth!$I28) -> 350.8561195 | M115: =+'Energy Balance'!M30*(1+Growth!$I28) -> 16636.90698 | N115: =+'Energy Balance'!N30*(1+Growth!$I28) -> 0 | O115: =+'Energy Balance'!O30*(1+Growth!$I28) -> 0 | P115: 20321.87882
B116: Industry - textile and leather | D116: =+'Energy Balance'!D31*(1+Growth!$I29) -> 1360.28643 | E116: =+'Energy Balance'!E31*(1+Growth!$I29) -> 0 | F116: =+'Energy Balance'!F31*(1+Growth!$I29) -> 0 | G116: =+'Energy Balance'!G31*(1+Growth!$I29) -> 623.057199 | H116: =+'Energy Balance'!H31*(1+Growth!$I29) -> 0 | I116: =+'Energy Balance'!I31*(1+Growth!$I29) -> 0 | J116: 1983.343629 | K116: =+'Energy Balance'!K31*(1+Growth!$I29) -> 21235.42284 | L116: =+'Energy Balance'!L31*(1+Growth!$I29) -> 47628.71822 | M116: =+'Energy Balance'!M31*(1+Growth!$I29) -> 111971.9919 | N116: =+'Energy Balance'!N31*(1+Growth!$I29) -> 0 | O116: =+'Energy Balance'!O31*(1+Growth!$I29) -> 0 | P116: 182819.4766
B117: Industry - miscellaneous | D117: =+'Energy Balance'!D32*(1+Growth!$I30) -> 0 | E117: =+'Energy Balance'!E32*(1+Growth!$I30) -> 0 | F117: =+'Energy Balance'!F32*(1+Growth!$I30) -> 0 | G117: =+'Energy Balance'!G32*(1+Growth!$I30) -> 0 | H117: =+'Energy Balance'!H32*(1+Growth!$I30) -> 0 | I117: =+'Energy Balance'!I32*(1+Growth!$I30) -> 0 | J117: 0 | K117: =+'Energy Balance'!K32*(1+Growth!$I30) -> 0 | L117: =+'Energy Balance'!L32*(1+Growth!$I30) -> 43.85701493 | M117: =+'Energy Balance'!M32*(1+Growth!$I30) -> 58042.24288 | N117: =+'Energy Balance'!N32*(1+Growth!$I30) -> 0 | O117: =+'Energy Balance'!O32*(1+Growth!$I30) -> 0 | P117: 58086.09989
B118: Transport - road | D118: =+'Energy Balance'!D33*(1+Growth!$I34) -> 347893.2546 | E118: =+'Energy Balance'!E33*(1+Growth!$I34) -> 217737.8567 | F118: =+'Energy Balance'!F33*(1+Growth!$I34) -> 0 | G118: =+'Energy Balance'!G33*(1+Growth!$I34) -> 1705930.611 | H118: =+'Energy Balance'!H33*(1+Growth!$I34) -> 0 | I118: =+'Energy Balance'!I33*(1+Growth!$I34) -> 0 | J118: 2271561.722 | K118: =+'Energy Balance'!K33*(1+Growth!$I34) -> 0 | L118: =+'Energy Balance'!L33*(1+Growth!$I34) -> 0 | M118: =+'Energy Balance'!M33*(1+Growth!$I34) -> 8038.05618 | N118: =+'Energy Balance'!N33*(1+Growth!$I34) -> 0 | O118: =+'Energy Balance'!O33*(1+Growth!$I34) -> 0 | P118: 2279599.778
B119: Transport - rail | D119: =+'Energy Balance'!D34*(1+Growth!$I35) -> 0 | E119: =+'Energy Balance'!E34*(1+Growth!$I35) -> 0 | F119: =+'Energy Balance'!F34*(1+Growth!$I35) -> 0 | G119: =+'Energy Balance'!G34*(1+Growth!$I35) -> 14018.78698 | H119: =+'Energy Balance'!H34*(1+Growth!$I35) -> 0 | I119: =+'Energy Balance'!I34*(1+Growth!$I35) -> 0 | J119: 14018.78698 | K119: =+'Energy Balance'!K34*(1+Growth!$I35) -> 0 | L119: =+'Energy Balance'!L34*(1+Growth!$I35) -> 0 | M119: =+'Energy Balance'!M34*(1+Growth!$I35) -> 0 | N119: =+'Energy Balance'!N34*(1+Growth!$I35) -> 0 | O119: =+'Energy Balance'!O34*(1+Growth!$I35) -> 0 | P119: 14018.78698
B120: Transport - domestic air | D120: =+'Energy Balance'!D35*(1+Growth!$I36) -> 0 | E120: =+'Energy Balance'!E35*(1+Growth!$I36) -> 0 | F120: =+'Energy Balance'!F35*(1+Growth!$I36) -> 140951.6768 | G120: =+'Energy Balance'!G35*(1+Growth!$I36) -> 0 | H120: =+'Energy Balance'!H35*(1+Growth!$I36) -> 0 | I120: =+'Energy Balance'!I35*(1+Growth!$I36) -> 0 | J120: 140951.6768 | K120: =+'Energy Balance'!K35*(1+Growth!$I36) -> 0 | L120: =+'Energy Balance'!L35*(1+Growth!$I36) -> 0 | M120: =+'Energy Balance'!M35*(1+Growth!$I36) -> 0 | N120: =+'Energy Balance'!N35*(1+Growth!$I36) -> 0 | O120: =+'Energy Balance'!O35*(1+Growth!$I36) -> 0 | P120: 140951.6768
B121: Transport - navigation | D121: =+'Energy Balance'!D36*(1+Growth!$I37) -> 0 | E121: =+'Energy Balance'!E36*(1+Growth!$I37) -> 0 | F121: =+'Energy Balance'!F36*(1+Growth!$I37) -> 0 | G121: =+'Energy Balance'!G36*(1+Growth!$I37) -> 0 | H121: =+'Energy Balance'!H36*(1+Growth!$I37) -> 17626.1343 | I121: =+'Energy Balance'!I36*(1+Growth!$I37) -> 0 | J121: 17626.1343 | K121: =+'Energy Balance'!K36*(1+Growth!$I37) -> 0 | L121: =+'Energy Balance'!L36*(1+Growth!$I37) -> 0 | M121: =+'Energy Balance'!M36*(1+Growth!$I37) -> 0 | N121: =+'Energy Balance'!N36*(1+Growth!$I37) -> 0 | O121: =+'Energy Balance'!O36*(1+Growth!$I37) -> 0 | P121: 17626.1343
B122: Households | D122: =+'Energy Balance'!D37*(1+Growth!$I40) -> 27772.51462 | E122: =+'Energy Balance'!E37*(1+Growth!$I40) -> 0 | F122: =+'Energy Balance'!F37*(1+Growth!$I40) -> 0 | G122: =+'Energy Balance'!G37*(1+Growth!$I40) -> 0 | H122: =+'Energy Balance'!H37*(1+Growth!$I40) -> 0 | I122: =+'Energy Balance'!I37*(1+Growth!$I41) -> 6220.26679 | J122: 33992.78141 | K122: =+'Energy Balance'!K37*(1+Growth!$I40) -> 90684.22823 | L122: =+'Energy Balance'!L37*(1+Growth!$I40) -> 102011.4167 | M122: =+'Energy Balance'!M37*(1+Growth!$I40) -> 1028123.465 | N122: =+'Energy Balance'!N37*(1+Growth!$I40) -> 0 | O122: =+'Energy Balance'!O37*(1+Growth!$I40) -> 0 | P122: 1254811.891
B123: Services | D123: =+'Energy Balance'!D38*(1+Growth!$I44) -> 64726.96265 | E123: =+'Energy Balance'!E38*(1+Growth!$I44) -> 0 | F123: =+'Energy Balance'!F38*(1+Growth!$I44) -> 0 | G123: =+'Energy Balance'!G38*(1+Growth!$I44) -> 0 | H123: =+'Energy Balance'!H38*(1+Growth!$I44) -> 0 | I123: =+'Energy Balance'!I38*(1+Growth!$I44) -> 0 | J123: 64726.96265 | K123: =+'Energy Balance'!K38*(1+Growth!$I44) -> 312429.8971 | L123: =+'Energy Balance'!L38*(1+Growth!$I44) -> 35524.1821 | M123: =+'Energy Balance'!M38*(1+Growth!$I44) -> 295445.2975 | N123: =+'Energy Balance'!N38*(1+Growth!$I44) -> 3220.974212 | O123: =+'Energy Balance'!O38*(1+Growth!$I44) -> 0 | P123: 711347.3136
B124: Agriculture & Fishery | D124: =+'Energy Balance'!D39*(1+Growth!$I47) -> 0 | E124: =+'Energy Balance'!E39*(1+Growth!$I47) -> 0 | F124: =+'Energy Balance'!F39*(1+Growth!$I47) -> 0 | G124: =+'Energy Balance'!G39*(1+Growth!$I47) -> 282141.0683 | H124: =+'Energy Balance'!H39*(1+Growth!$I47) -> 0 | I124: =+'Energy Balance'!I39*(1+Growth!$I47) -> 0 | J124: 282141.0683 | K124: =+'Energy Balance'!K39*(1+Growth!$I47) -> 0 | L124: =+'Energy Balance'!L39*(1+Growth!$I47) -> 0 | M124: =+'Energy Balance'!M39*(1+Growth!$I47) -> 12430.94735 | N124: =+'Energy Balance'!N39*(1+Growth!$I47) -> 0 | O124: =+'Energy Balance'!O39*(1+Growth!$I47) -> 0 | P124: 294572.0156
B125: Non energy uses | D125: =+'Energy Balance'!D40*(1+Growth!$I49) -> 0 | E125: =+'Energy Balance'!E40*(1+Growth!$I49) -> 0 | F125: =+'Energy Balance'!F40*(1+Growth!$I49) -> 0 | G125: =+'Energy Balance'!G40*(1+Growth!$I49) -> 0 | H125: =+'Energy Balance'!H40*(1+Growth!$I49) -> 0 | I125: =+'Energy Balance'!I40*(1+Growth!$I49) -> 0 | J125: 0 | K125: =+'Energy Balance'!K40*(1+Growth!$I49) -> 0 | L125: =+'Energy Balance'!L40*(1+Growth!$I49) -> 0 | M125: =+'Energy Balance'!M40*(1+Growth!$I49) -> 0 | N125: =+'Energy Balance'!N40*(1+Growth!$I49) -> 0 | O125: =+'Energy Balance'!O40*(1+Growth!$I49) -> 0 | P125: 0
E127: 0.02388458966 | F127: 0.02388458966 | G127: 0.02388458966 | H127: 0.02388458966 | I127: 0.02388458966 | J127: 0.02388458966 | L127: 0.02388458966 | M127: 0.02388458966 | N127: 0.02388458966 | O127: 0.02388458966 | P127: 0.02388458966
B129: ="Fossil fuel balance - 2030 - "&Assumptions!C9 -> Fossil fuel balance - 2030 - Country X
B130: ktoe units | D130: LPG | E130: Gasoline | F130: Jet Fuel | G130: Diesel | H130: Fueloil | I130: Kerosene and other | J130: Total oil products | K130: Coal | L130: Lignite | M130: Gas | N130: Coke | O130: Petrocoke | P130: Total
B131: Unit | D131: ktoe | E131: ktoe | F131: ktoe | G131: ktoe | H131: ktoe | I131: ktoe | J131: ktoe | K131: ktoe | L131: ktoe | M131: ktoe | N131: ktoe | O131: ktoe | P131: ktoe
B132: Total consumption | D132: =+D133+D134 -> 10816.42362 | E132: 5200.579361 | F132: 3366.572964 | G132: 49929.79712 | H132: 1076.637798 | I132: 148.5685199 | J132: 70538.57938 | K132: 40380.21277 | L132: 59085.66887 | M132: 99359.28323 | N132: 7909.534994 | O132: 7261.111109 | P132: 284534.3904
B133: Fossil power plants | D133: =IF(G161=0,0,$J133*IF('Energy Balance'!$J76>0,'Energy Balance'!D76/'Energy Balance'!$J76,0)) -> 0 | E133: =IF(G161=0,0,$J133*IF('Energy Balance'!$J76>0,'Energy Balance'!E76/'Energy Balance'!$J76,0)) -> 0 | F133: =IF(G161=0,0,$J133*IF('Energy Balance'!$J76>0,'Energy Balance'!F76/'Energy Balance'!$J76,0)) -> 0 | G133: =IF(G161=0,0,$J133*IF('Energy Balance'!$J76>0,'Energy Balance'!G76/'Energy Balance'!$J76,0)) -> 590.2981329 | H133: =IF(G161=0,0,$J133*IF('Energy Balance'!$J76>0,'Energy Balance'!H76/'Energy Balance'!$J76,0)) -> 522.2153422 | I133: =IF(G161=0,0,$J133*IF('Energy Balance'!$J76>0,'Energy Balance'!I76/'Energy Balance'!$J76,0)) -> 0 | J133: =IF(G161=0,0,G164/11.63/I164) -> 1112.513475 | K133: =IF(I163>0,G163/11.63/I163,0) -> 22961.12937 | L133: =IF(I162>0,G162/11.63/I162,0) -> 51586.56765 | M133: =IF(I165>0,G165/11.63/I165,0) -> 43770.50117 | P133: =SUM(J133:O133) -> 119430.7117
B134: FINAL CONSUMPTION | D134: =SUM(D135:D154) -> 10816.42362 | E134: 5200.579361 | F134: 3366.572964 | G134: 49339.49898 | H134: 554.4224558 | I134: 148.5685199 | J134: =SUM(D134:I134) -> 69426.0659 | K134: =SUM(K135:K154) -> 17419.0834 | L134: 7499.101221 | M134: 55588.78206 | N134: 7909.534994 | O134: 7261.111109 | P134: 165103.6787
B135: Industry - steel | D135: =+'Energy Balance'!D78*(1+Growth!$I19) -> 0 | E135: =+'Energy Balance'!E78*(1+Growth!$I19) -> 0 | F135: =+'Energy Balance'!F78*(1+Growth!$I19) -> 0 | G135: =+'Energy Balance'!G78*(1+Growth!$I19) -> 42.16415235 | H135: =+'Energy Balance'!H78*(1+Growth!$I19) -> 0 | I135: =+'Energy Balance'!I78*(1+Growth!$I19) -> 0 | J135: 42.16415235 | K135: =+'Energy Balance'!K78*(1+Growth!$I19) -> 24.28842009 | L135: =+'Energy Balance'!L78*(1+Growth!$I19) -> 27.23517694 | M135: =+'Energy Balance'!M78*(1+Growth!$I19) -> 513.4500571 | N135: =+'Energy Balance'!N78*(1+Growth!$I19) -> 0 | O135: =+'Energy Balance'!O78*(1+Growth!$I19) -> 0 | P135: =SUM(J135:O135) -> 607.1378065
B136: Industry - chemical | D136: =+'Energy Balance'!D79*(1+Growth!$I20) -> 24.36741241 | E136: =+'Energy Balance'!E79*(1+Growth!$I20) -> 0 | F136: =+'Energy Balance'!F79*(1+Growth!$I20) -> 0 | G136: =+'Energy Balance'!G79*(1+Growth!$I20) -> 9.920977024 | H136: =+'Energy Balance'!H79*(1+Growth!$I20) -> 6.901524347 | I136: =+'Energy Balance'!I79*(1+Growth!$I20) -> 0 | J136: 41.18991378 | K136: =+'Energy Balance'!K79*(1+Growth!$I20) -> 562.9198539 | L136: =+'Energy Balance'!L79*(1+Growth!$I20) -> 340.4397118 | M136: =+'Energy Balance'!M79*(1+Growth!$I20) -> 5781.894122 | N136: =+'Energy Balance'!N79*(1+Growth!$I20) -> 0 | O136: =+'Energy Balance'!O79*(1+Growth!$I20) -> 0 | P136: 6726.443601
B137: Industry - non metallic mineral | D137: =+'Energy Balance'!D80*(1+Growth!$I21) -> 8.122470803 | E137: =+'Energy Balance'!E80*(1+Growth!$I21) -> 0 | F137: =+'Energy Balance'!F80*(1+Growth!$I21) -> 0 | G137: =+'Energy Balance'!G80*(1+Growth!$I21) -> 59.52586214 | H137: =+'Energy Balance'!H80*(1+Growth!$I21) -> 41.40914608 | I137: =+'Energy Balance'!I80*(1+Growth!$I21) -> 0 | J137: 109.057479 | K137: =+'Energy Balance'!K80*(1+Growth!$I21) -> 4724.812074 | L137: =+'Energy Balance'!L80*(1+Growth!$I21) -> 1472.794569 | M137: =+'Energy Balance'!M80*(1+Growth!$I21) -> 4205.825685 | N137: =+'Energy Balance'!N80*(1+Growth!$I21) -> 0 | O137: =+'Energy Balance'!O80*(1+Growth!$I21) -> 7248.689853 | P137: 17761.17966
B138: Industry - food processing and beverage | D138: =+'Energy Balance'!D81*(1+Growth!$I22) -> 54.14980536 | E138: =+'Energy Balance'!E81*(1+Growth!$I22) -> 0 | F138: =+'Energy Balance'!F81*(1+Growth!$I22) -> 0 | G138: =+'Energy Balance'!G81*(1+Growth!$I22) -> 14.88146554 | H138: =+'Energy Balance'!H81*(1+Growth!$I22) -> 85.11880027 | I138: =+'Energy Balance'!I81*(1+Growth!$I22) -> 0 | J138: 154.1500712 | K138: =+'Energy Balance'!K81*(1+Growth!$I22) -> 325.7505754 | L138: =+'Energy Balance'!L81*(1+Growth!$I22) -> 824.3878559 | M138: =+'Energy Balance'!M81*(1+Growth!$I22) -> 2192.208505 | N138: =+'Energy Balance'!N81*(1+Growth!$I22) -> 78.53439001 | O138: =+'Energy Balance'!O81*(1+Growth!$I22) -> 12.42125556 | P138: 3587.452653
B139: Industry - construction | D139: =+'Energy Balance'!D82*(1+Growth!$I23) -> 0 | E139: =+'Energy Balance'!E82*(1+Growth!$I23) -> 0 | F139: =+'Energy Balance'!F82*(1+Growth!$I23) -> 0 | G139: =+'Energy Balance'!G82*(1+Growth!$I23) -> 364.5959056 | H139: =+'Energy Balance'!H82*(1+Growth!$I23) -> 0 | I139: =+'Energy Balance'!I82*(1+Growth!$I23) -> 0 | J139: 364.5959056 | K139: =+'Energy Balance'!K82*(1+Growth!$I23) -> 1.428730594 | L139: =+'Energy Balance'!L82*(1+Growth!$I23) -> 3.142520417 | M139: =+'Energy Balance'!M82*(1+Growth!$I23) -> 803.660959 | N139: =+'Energy Balance'!N82*(1+Growth!$I23) -> 0 | O139: =+'Energy Balance'!O82*(1+Growth!$I23) -> 0 | P139: 1172.828116
B140: Industry - mining | D140: =+'Energy Balance'!D83*(1+Growth!$I24) -> 0 | E140: =+'Energy Balance'!E83*(1+Growth!$I24) -> 0 | F140: =+'Energy Balance'!F83*(1+Growth!$I24) -> 0 | G140: =+'Energy Balance'!G83*(1+Growth!$I24) -> 932.5718402 | H140: =+'Energy Balance'!H83*(1+Growth!$I24) -> 0 | I140: =+'Energy Balance'!I83*(1+Growth!$I24) -> 0 | J140: 932.5718402 | K140: =+'Energy Balance'!K83*(1+Growth!$I24) -> 27.14588128 | L140: =+'Energy Balance'!L83*(1+Growth!$I24) -> 98.46563972 | M140: =+'Energy Balance'!M83*(1+Growth!$I24) -> 290.2109019 | N140: =+'Energy Balance'!N83*(1+Growth!$I24) -> 0 | O140: =+'Energy Balance'!O83*(1+Growth!$I24) -> 0 | P140: 1348.394263
B141: Industry - machinery | D141: =+'Energy Balance'!D84*(1+Growth!$I25) -> 13.53745134 | E141: =+'Energy Balance'!E84*(1+Growth!$I25) -> 0 | F141: =+'Energy Balance'!F84*(1+Growth!$I25) -> 0 | G141: =+'Energy Balance'!G84*(1+Growth!$I25) -> 7.440732768 | H141: =+'Energy Balance'!H84*(1+Growth!$I25) -> 0 | I141: =+'Energy Balance'!I84*(1+Growth!$I25) -> 0 | J141: 20.97818411 | K141: =+'Energy Balance'!K84*(1+Growth!$I25) -> 4.286191781 | L141: =+'Energy Balance'!L84*(1+Growth!$I25) -> 17.80761569 | M141: =+'Energy Balance'!M84*(1+Growth!$I25) -> 154.0350171 | N141: =+'Energy Balance'!N84*(1+Growth!$I25) -> 0 | O141: =+'Energy Balance'!O84*(1+Growth!$I25) -> 0 | P141: 197.1070087
B142: Industry - non ferrous metals | D142: =+'Energy Balance'!D85*(1+Growth!$I26) -> 100.1771399 | E142: =+'Energy Balance'!E85*(1+Growth!$I26) -> 0 | F142: =+'Energy Balance'!F85*(1+Growth!$I26) -> 0 | G142: =+'Energy Balance'!G85*(1+Growth!$I26) -> 32.24317533 | H142: =+'Energy Balance'!H85*(1+Growth!$I26) -> 0 | I142: =+'Energy Balance'!I85*(1+Growth!$I26) -> 0 | J142: 132.4203152 | K142: =+'Energy Balance'!K85*(1+Growth!$I26) -> 1551.601425 | L142: =+'Energy Balance'!L85*(1+Growth!$I26) -> 71.23046278 | M142: =+'Energy Balance'!M85*(1+Growth!$I26) -> 4592.029424 | N142: =+'Energy Balance'!N85*(1+Growth!$I26) -> 7754.068956 | O142: =+'Energy Balance'!O85*(1+Growth!$I26) -> 0 | P142: 14101.35058
B143: Industry - paper and pulp | D143: =+'Energy Balance'!D86*(1+Growth!$I27) -> 2.707490268 | E143: =+'Energy Balance'!E86*(1+Growth!$I27) -> 0 | F143: =+'Energy Balance'!F86*(1+Growth!$I27) -> 0 | G143: =+'Energy Balance'!G86*(1+Growth!$I27) -> 24.80244256 | H143: =+'Energy Balance'!H86*(1+Growth!$I27) -> 0 | I143: =+'Energy Balance'!I86*(1+Growth!$I27) -> 0 | J143: 27.50993283 | K143: =+'Energy Balance'!K86*(1+Growth!$I27) -> 61.43541553 | L143: =+'Energy Balance'!L86*(1+Growth!$I27) -> 211.5963747 | M143: =+'Energy Balance'!M86*(1+Growth!$I27) -> 495.5909247 | N143: =+'Energy Balance'!N86*(1+Growth!$I27) -> 0 | O143: =+'Energy Balance'!O86*(1+Growth!$I27) -> 0 | P143: 796.1326478
B144: Industry - transport equipment | D144: =+'Energy Balance'!D87*(1+Growth!$I28) -> 62.27227616 | E144: =+'Energy Balance'!E87*(1+Growth!$I28) -> 0 | F144: =+'Energy Balance'!F87*(1+Growth!$I28) -> 0 | G144: =+'Energy Balance'!G87*(1+Growth!$I28) -> 17.36170979 | H144: =+'Energy Balance'!H87*(1+Growth!$I28) -> 0 | I144: =+'Energy Balance'!I87*(1+Growth!$I28) -> 0 | J144: 79.63398595 | K144: =+'Energy Balance'!K87*(1+Growth!$I28) -> 0 | L144: =+'Energy Balance'!L87*(1+Growth!$I28) -> 8.380054444 | M144: =+'Energy Balance'!M87*(1+Growth!$I28) -> 397.3656964 | N144: =+'Energy Balance'!N87*(1+Growth!$I28) -> 0 | O144: =+'Energy Balance'!O87*(1+Growth!$I28) -> 0 | P144: 485.3797368
B145: Industry - textile and leather | D145: =+'Energy Balance'!D88*(1+Growth!$I29) -> 32.48988321 | E145: =+'Energy Balance'!E88*(1+Growth!$I29) -> 0 | F145: =+'Energy Balance'!F88*(1+Growth!$I29) -> 0 | G145: =+'Energy Balance'!G88*(1+Growth!$I29) -> 14.88146554 | H145: =+'Energy Balance'!H88*(1+Growth!$I29) -> 0 | I145: =+'Energy Balance'!I88*(1+Growth!$I29) -> 0 | J145: 47.37134875 | K145: =+'Energy Balance'!K88*(1+Growth!$I29) -> 507.1993608 | L145: =+'Energy Balance'!L88*(1+Growth!$I29) -> 1137.592391 | M145: =+'Energy Balance'!M88*(1+Growth!$I29) -> 2674.40508 | N145: =+'Energy Balance'!N88*(1+Growth!$I29) -> 0 | O145: =+'Energy Balance'!O88*(1+Growth!$I29) -> 0 | P145: 4366.568181
B146: Industry - miscellaneous | D146: =+'Energy Balance'!D89*(1+Growth!$I30) -> 0 | E146: =+'Energy Balance'!E89*(1+Growth!$I30) -> 0 | F146: =+'Energy Balance'!F89*(1+Growth!$I30) -> 0 | G146: =+'Energy Balance'!G89*(1+Growth!$I30) -> 0 | H146: =+'Energy Balance'!H89*(1+Growth!$I30) -> 0 | I146: =+'Energy Balance'!I89*(1+Growth!$I30) -> 0 | J146: 0 | K146: =+'Energy Balance'!K89*(1+Growth!$I30) -> 0 | L146: =+'Energy Balance'!L89*(1+Growth!$I30) -> 1.047506806 | M146: =+'Energy Balance'!M89*(1+Growth!$I30) -> 1386.315154 | N146: =+'Energy Balance'!N89*(1+Growth!$I30) -> 0 | O146: =+'Energy Balance'!O89*(1+Growth!$I30) -> 0 | P146: 1387.362661
B147: Transport - road | D147: =+'Energy Balance'!D90*(1+Growth!$I34) -> 8309.287632 | E147: =+'Energy Balance'!E90*(1+Growth!$I34) -> 5200.579361 | F147: =+'Energy Balance'!F90*(1+Growth!$I34) -> 0 | G147: =+'Energy Balance'!G90*(1+Growth!$I34) -> 40745.45264 | H147: =+'Energy Balance'!H90*(1+Growth!$I34) -> 0 | I147: =+'Energy Balance'!I90*(1+Growth!$I34) -> 0 | J147: 54255.31963 | K147: =+'Energy Balance'!K90*(1+Growth!$I34) -> 0 | L147: =+'Energy Balance'!L90*(1+Growth!$I34) -> 0 | M147: =+'Energy Balance'!M90*(1+Growth!$I34) -> 191.9856735 | N147: =+'Energy Balance'!N90*(1+Growth!$I34) -> 0 | O147: =+'Energy Balance'!O90*(1+Growth!$I34) -> 0 | P147: 54447.3053
B148: Transport - rail | D148: =+'Energy Balance'!D91*(1+Growth!$I35) -> 0 | E148: =+'Energy Balance'!E91*(1+Growth!$I35) -> 0 | F148: =+'Energy Balance'!F91*(1+Growth!$I35) -> 0 | G148: =+'Energy Balance'!G91*(1+Growth!$I35) -> 334.8329745 | H148: =+'Energy Balance'!H91*(1+Growth!$I35) -> 0 | I148: =+'Energy Balance'!I91*(1+Growth!$I35) -> 0 | J148: 334.8329745 | K148: =+'Energy Balance'!K91*(1+Growth!$I35) -> 0 | L148: =+'Energy Balance'!L91*(1+Growth!$I35) -> 0 | M148: =+'Energy Balance'!M91*(1+Growth!$I35) -> 0 | N148: =+'Energy Balance'!N91*(1+Growth!$I35) -> 0 | O148: =+'Energy Balance'!O91*(1+Growth!$I35) -> 0 | P148: 334.8329745
B149: Transport - domestic air | D149: =+'Energy Balance'!D92*(1+Growth!$I36) -> 0 | E149: =+'Energy Balance'!E92*(1+Growth!$I36) -> 0 | F149: =+'Energy Balance'!F92*(1+Growth!$I36) -> 3366.572964 | G149: =+'Energy Balance'!G92*(1+Growth!$I36) -> 0 | H149: =+'Energy Balance'!H92*(1+Growth!$I36) -> 0 | I149: =+'Energy Balance'!I92*(1+Growth!$I36) -> 0 | J149: 3366.572964 | K149: =+'Energy Balance'!K92*(1+Growth!$I36) -> 0 | L149: =+'Energy Balance'!L92*(1+Growth!$I36) -> 0 | M149: =+'Energy Balance'!M92*(1+Growth!$I36) -> 0 | N149: =+'Energy Balance'!N92*(1+Growth!$I36) -> 0 | O149: =+'Energy Balance'!O92*(1+Growth!$I36) -> 0 | P149: 3366.572964
B150: Transport - navigation | D150: =+'Energy Balance'!D93*(1+Growth!$I37) -> 0 | E150: =+'Energy Balance'!E93*(1+Growth!$I37) -> 0 | F150: =+'Energy Balance'!F93*(1+Growth!$I37) -> 0 | G150: =+'Energy Balance'!G93*(1+Growth!$I37) -> 0 | H150: =+'Energy Balance'!H93*(1+Growth!$I37) -> 420.9929851 | I150: =+'Energy Balance'!I93*(1+Growth!$I37) -> 0 | J150: 420.9929851 | K150: =+'Energy Balance'!K93*(1+Growth!$I37) -> 0 | L150: =+'Energy Balance'!L93*(1+Growth!$I37) -> 0 | M150: =+'Energy Balance'!M93*(1+Growth!$I37) -> 0 | N150: =+'Energy Balance'!N93*(1+Growth!$I37) -> 0 | O150: =+'Energy Balance'!O93*(1+Growth!$I37) -> 0 | P150: 420.9929851
B151: Households | D151: =+'Energy Balance'!D94*(1+Growth!$I40) -> 663.3351156 | E151: =+'Energy Balance'!E94*(1+Growth!$I40) -> 0 | F151: =+'Energy Balance'!F94*(1+Growth!$I40) -> 0 | G151: =+'Energy Balance'!G94*(1+Growth!$I40) -> 0 | H151: =+'Energy Balance'!H94*(1+Growth!$I40) -> 0 | I151: =+'Energy Balance'!I94*(1+Growth!$I41) -> 148.5685199 | J151: 811.9036355 | K151: =+'Energy Balance'!K94*(1+Growth!$I40) -> 2165.95558 | L151: =+'Energy Balance'!L94*(1+Growth!$I40) -> 2436.50083 | M151: =+'Energy Balance'!M94*(1+Growth!$I40) -> 24556.30708 | N151: =+'Energy Balance'!N94*(1+Growth!$I40) -> 0 | O151: =+'Energy Balance'!O94*(1+Growth!$I40) -> 0 | P151: 29970.66713
B152: Services | D152: =+'Energy Balance'!D95*(1+Growth!$I44) -> 1545.976943 | E152: =+'Energy Balance'!E95*(1+Growth!$I44) -> 0 | F152: =+'Energy Balance'!F95*(1+Growth!$I44) -> 0 | G152: =+'Energy Balance'!G95*(1+Growth!$I44) -> 0 | H152: =+'Energy Balance'!H95*(1+Growth!$I44) -> 0 | I152: =+'Energy Balance'!I95*(1+Growth!$I44) -> 0 | J152: 1545.976943 | K152: =+'Energy Balance'!K95*(1+Growth!$I44) -> 7462.259891 | L152: =+'Energy Balance'!L95*(1+Growth!$I44) -> 848.4805125 | M152: =+'Energy Balance'!M95*(1+Growth!$I44) -> 7056.589698 | N152: =+'Energy Balance'!N95*(1+Growth!$I44) -> 76.93164736 | O152: =+'Energy Balance'!O95*(1+Growth!$I44) -> 0 | P152: 16990.23869
B153: Agriculture & Fishery | D153: =+'Energy Balance'!D96*(1+Growth!$I47) -> 0 | E153: =+'Energy Balance'!E96*(1+Growth!$I47) -> 0 | F153: =+'Energy Balance'!F96*(1+Growth!$I47) -> 0 | G153: =+'Energy Balance'!G96*(1+Growth!$I47) -> 6738.823643 | H153: =+'Energy Balance'!H96*(1+Growth!$I47) -> 0 | I153: =+'Energy Balance'!I96*(1+Growth!$I47) -> 0 | J153: 6738.823643 | K153: =+'Energy Balance'!K96*(1+Growth!$I47) -> 0 | L153: =+'Energy Balance'!L96*(1+Growth!$I47) -> 0 | M153: =+'Energy Balance'!M96*(1+Growth!$I47) -> 296.9080765 | N153: =+'Energy Balance'!N96*(1+Growth!$I47) -> 0 | O153: =+'Energy Balance'!O96*(1+Growth!$I47) -> 0 | P153: 7035.73172
B154: Non energy uses | D154: =+'Energy Balance'!D97*(1+Growth!$I49) -> 0 | E154: =+'Energy Balance'!E97*(1+Growth!$I49) -> 0 | F154: =+'Energy Balance'!F97*(1+Growth!$I49) -> 0 | G154: =+'Energy Balance'!G97*(1+Growth!$I49) -> 0 | H154: =+'Energy Balance'!H97*(1+Growth!$I49) -> 0 | I154: =+'Energy Balance'!I97*(1+Growth!$I49) -> 0 | J154: 0 | K154: =+'Energy Balance'!K97*(1+Growth!$I49) -> 0 | L154: =+'Energy Balance'!L97*(1+Growth!$I49) -> 0 | M154: =+'Energy Balance'!M97*(1+Growth!$I49) -> 0 | N154: =+'Energy Balance'!N97*(1+Growth!$I49) -> 0 | O154: =+'Energy Balance'!O97*(1+Growth!$I49) -> 0 | P154: 0
B157: Electricity balance in GWh - 2030
B158: Electricity consumption | D158: Gwh | F158: Electricity production | G158: Gwh | H158: Share of production | I158: Efficiency
B159: Total consumption | D159: =SUM(D160:D179) -> 520177.7489 | F159: Total | G159: =IF(H160=1,0,D159/(1-H160)) -> 627382.9866
B160: Industry - steel | D160: =+'Energy Balance'!D103*(1+Growth!I$31) -> 3673.92371 | F160: Losses | G160: =G159*H160 -> 107205.2377 | H160: =+'BAU projected Energy Balances'!H74 -> 0.1708768646
B161: Industry - chemical | D161: =+'Energy Balance'!D104*(1+Growth!I$31) -> 36319.83942 | F161: Fossil | G161: =SUM(G162:G167) -> 425650.3041 | H161: =SUM(H162:H167) -> 0.6784536929
B162: Industry - non metallic mineral | D162: =+'Energy Balance'!D105*(1+Growth!I$31) -> 44439.37857 | F162: Lignite | G162: =G$159*H162 -> 77684.43383 | H162: =+'BAU projected Energy Balances'!H76 -> 0.1238229845 | I162: =+'BAU projected Energy Balances'!I76 -> 0.1294844622
B163: Industry - food processing and beverage | D163: =+'Energy Balance'!D106*(1+Growth!I$31) -> 17015.56317 | F163: Coal | G163: 104851.8175 | H163: =+'BAU projected Energy Balances'!H77 -> 0.1671256947 | I163: =+'BAU projected Energy Balances'!I77 -> 0.3926476501
B164: Industry - construction | D164: =+'Energy Balance'!D107*(1+Growth!I$31) -> 6868.535781 | F164: Oil | G164: 5329.945421 | H164: =+'BAU projected Energy Balances'!H78 -> 0.008495521134 | I164: =+'BAU projected Energy Balances'!I78 -> 0.4119436068
B165: Industry - mining | D165: =+'Energy Balance'!D108*(1+Growth!I$31) -> 5284.410816 | F165: Natural Gas | G165: 237784.1074 | H165: =+'BAU projected Energy Balances'!H79 -> 0.3790094925 | I165: =+'BAU projected Energy Balances'!I79 -> 0.4671126089
B166: Industry - machinery | D166: =+'Energy Balance'!D109*(1+Growth!I$31) -> 5162.186348 | F166: Nuclear | G166: 0 | H166: =+'BAU projected Energy Balances'!H80 -> 0
B167: Industry - non ferrous metals | D167: =+'Energy Balance'!D110*(1+Growth!I$31) -> 60544.24963 | F167: Net import | G167: 0 | H167: =+'BAU projected Energy Balances'!H81 -> 0
B168: Industry - paper and pulp | D168: =+'Energy Balance'!D111*(1+Growth!I$31) -> 9629.37082 | F168: Renewables | G168: =SUM(G169:G173) -> 201732.6825 | H168: =SUM(H169:H173) -> 0.3215463071
B169: Industry - transport equipment | D169: =+'Energy Balance'!D112*(1+Growth!I$31) -> 6365.258561 | F169: Hydro | G169: =G$159*H169 -> 160919.2964 | H169: =+'BAU projected Energy Balances'!H83 -> 0.2564929236
B170: Industry - textile and leather | D170: =+'Energy Balance'!D113*(1+Growth!I$31) -> 41630.61237 | F170: Wind | G170: =G$159*H170 -> 27927.09262 | H170: =+'BAU projected Energy Balances'!H84 -> 0.0445136276
B171: Industry - miscellaneous | D171: =+'Energy Balance'!D114*(1+Growth!I$31) -> 11189.5302 | F171: Solar | G171: =G$159*H171 -> 464.9322895 | H171: =+'BAU projected Energy Balances'!H85 -> 0.0007410661421
B172: Transport - road | D172: =+'Energy Balance'!D115*(1+Growth!I$38) -> 0 | F172: Biomass | G172: =G$159*H172 -> 4213.149303 | H172: =+'BAU projected Energy Balances'!H86 -> 0.006715434421
B173: Transport - rail | D173: =+'Energy Balance'!D116*(1+Growth!I$38) -> 1924.436229 | F173: Geothermal | G173: =G$159*H173 -> 8208.211811 | H173: =+'BAU projected Energy Balances'!H87 -> 0.01308325534
B174: Transport - domestic air | D174: =+'Energy Balance'!D117*(1+Growth!I$38) -> 0
B175: Transport - navigation | D175: =+'Energy Balance'!D118*(1+Growth!I$38) -> 0
B176: Households | D176: =+'Energy Balance'!D119*(1+Growth!I42) -> 114797.534
B177: Services | D177: =+'Energy Balance'!D120*(1+Growth!I45) -> 143635.3187
B178: Agriculture & Fishery | D178: =+'Energy Balance'!D121*(1+Growth!I48) -> 11697.60054
B179: Non energy - chemical feedstocs | D179: =+'Energy Balance'!D122*(1+Growth!I49) -> 0
B186: ="Fossil fuel balance - 2035 - "&Assumptions!C9 -> Fossil fuel balance - 2035 - Country X
B187: TJ units | D187: LPG | E187: Gasoline | F187: Jet Fuel | G187: Diesel | H187: Fueloil | I187: Kerosene and other | J187: Total oil products | K187: Coal | L187: Lignite | M187: Gas | N187: Coke | O187: Petrocoke | P187: Total energy (fossil)
B188: Unit | D188: TJ | E188: TJ | F188: TJ | G188: TJ | H188: TJ | I188: TJ | J188: TJ | K188: TJ | L188: TJ | M188: TJ | N188: TJ | O188: TJ | P188: TJ
B189: Total | D189: =+D190+D191 -> 606031.5438 | E189: 291382.369 | F189: 188625.1392 | G189: 2797508.039 | H189: 60322.75453 | I189: 8324.120118 | J189: 3952193.965 | K189: 2262456.015 | L189: 3310500.807 | M189: 5566984.238 | N189: 443161.9796 | O189: 406831.5489 | P189: =SUM(J189:O189) -> 15942128.55
B190: Fossil power plants | D190: =D219/E213 -> 0 | E190: =E219/F213 -> 0 | F190: =F219/G213 -> 0 | G190: =G219/H213 -> 33073.71284 | H190: =H219/I213 -> 29259.11384 | I190: =I219/J213 -> 0 | J190: =SUM(D190:I190) -> 62332.82668 | K190: =K219/L213 -> 1286485.179 | L190: =L219/M213 -> 2890334.951 | M190: =M219/N213 -> 2452409.903 | P190: 6691562.86
B191: FINAL CONSUMPTION | D191: =SUM(D192:D211) -> 606031.5438 | E191: 291382.369 | F191: 188625.1392 | G191: 2764434.326 | H191: 31063.64069 | I191: 8324.120118 | J191: 3889861.139 | K191: 975970.8361 | L191: 420165.8561 | M191: 3114574.335 | N191: 443161.9796 | O191: 406831.5489 | P191: 9250565.695
B192: Industry - steel | D192: =+'Energy Balance'!D21*(1+Growth!$J19) -> 0 | E192: =+'Energy Balance'!E21*(1+Growth!$J19) -> 0 | F192: =+'Energy Balance'!F21*(1+Growth!$J19) -> 0 | G192: =+'Energy Balance'!G21*(1+Growth!$J19) -> 2362.40806 | H192: =+'Energy Balance'!H21*(1+Growth!$J19) -> 0 | I192: =+'Energy Balance'!I21*(1+Growth!$J19) -> 0 | J192: =+'Energy Balance'!J21*(1+Growth!$J19) -> 2362.40806 | K192: =+'Energy Balance'!K21*(1+Growth!$J19) -> 1360.851724 | L192: =+'Energy Balance'!L21*(1+Growth!$J19) -> 1525.955058 | M192: =+'Energy Balance'!M21*(1+Growth!$J19) -> 28768.00519 | N192: =+'Energy Balance'!N21*(1+Growth!$J19) -> 0 | O192: =+'Energy Balance'!O21*(1+Growth!$J19) -> 0 | P192: 34017.22003
B193: Industry - chemical | D193: =+'Energy Balance'!D22*(1+Growth!$J20) -> 1365.277571 | E193: =+'Energy Balance'!E22*(1+Growth!$J20) -> 0 | F193: =+'Energy Balance'!F22*(1+Growth!$J20) -> 0 | G193: =+'Energy Balance'!G22*(1+Growth!$J20) -> 555.86072 | H193: =+'Energy Balance'!H22*(1+Growth!$J20) -> 386.6843239 | I193: =+'Energy Balance'!I22*(1+Growth!$J20) -> 0 | J193: =+'Energy Balance'!J22*(1+Growth!$J20) -> 2307.822614 | K193: =+'Energy Balance'!K22*(1+Growth!$J20) -> 31539.73995 | L193: =+'Energy Balance'!L22*(1+Growth!$J20) -> 19074.43822 | M193: =+'Energy Balance'!M22*(1+Growth!$J20) -> 323952.754 | N193: =+'Energy Balance'!N22*(1+Growth!$J20) -> 0 | O193: =+'Energy Balance'!O22*(1+Growth!$J20) -> 0 | P193: 376874.7548
B194: Industry - non metallic mineral | D194: =+'Energy Balance'!D23*(1+Growth!$J21) -> 455.0925235 | E194: =+'Energy Balance'!E23*(1+Growth!$J21) -> 0 | F194: =+'Energy Balance'!F23*(1+Growth!$J21) -> 0 | G194: =+'Energy Balance'!G23*(1+Growth!$J21) -> 3335.16432 | H194: =+'Energy Balance'!H23*(1+Growth!$J21) -> 2320.105943 | I194: =+'Energy Balance'!I23*(1+Growth!$J21) -> 0 | J194: =+'Energy Balance'!J23*(1+Growth!$J21) -> 6110.362787 | K194: =+'Energy Balance'!K23*(1+Growth!$J21) -> 264725.6853 | L194: =+'Energy Balance'!L23*(1+Growth!$J21) -> 82518.95427 | M194: =+'Energy Balance'!M23*(1+Growth!$J21) -> 235647.486 | N194: =+'Energy Balance'!N23*(1+Growth!$J21) -> 0 | O194: =+'Energy Balance'!O23*(1+Growth!$J21) -> 406135.6005 | P194: 995138.0888
B195: Industry - food processing and beverage | D195: =+'Energy Balance'!D24*(1+Growth!$J22) -> 3033.950157 | E195: =+'Energy Balance'!E24*(1+Growth!$J22) -> 0 | F195: =+'Energy Balance'!F24*(1+Growth!$J22) -> 0 | G195: =+'Energy Balance'!G24*(1+Growth!$J22) -> 833.7910801 | H195: =+'Energy Balance'!H24*(1+Growth!$J22) -> 4769.106661 | I195: =+'Energy Balance'!I24*(1+Growth!$J22) -> 0 | J195: =+'Energy Balance'!J24*(1+Growth!$J22) -> 8636.847898 | K195: =+'Energy Balance'!K24*(1+Growth!$J22) -> 18251.42312 | L195: =+'Energy Balance'!L24*(1+Growth!$J22) -> 46189.48578 | M195: =+'Energy Balance'!M24*(1+Growth!$J22) -> 122826.8743 | N195: =+'Energy Balance'!N24*(1+Growth!$J22) -> 4400.189868 | O195: =+'Energy Balance'!O24*(1+Growth!$J22) -> 695.9483975 | P195: 201000.7694
B196: Industry - construction | D196: =+'Energy Balance'!D25*(1+Growth!$J23) -> 0 | E196: =+'Energy Balance'!E25*(1+Growth!$J23) -> 0 | F196: =+'Energy Balance'!F25*(1+Growth!$J23) -> 0 | G196: =+'Energy Balance'!G25*(1+Growth!$J23) -> 20427.88146 | H196: =+'Energy Balance'!H25*(1+Growth!$J23) -> 0 | I196: =+'Energy Balance'!I25*(1+Growth!$J23) -> 0 | J196: =+'Energy Balance'!J25*(1+Growth!$J23) -> 20427.88146 | K196: =+'Energy Balance'!K25*(1+Growth!$J23) -> 80.05010139 | L196: =+'Energy Balance'!L25*(1+Growth!$J23) -> 176.0717374 | M196: =+'Energy Balance'!M25*(1+Growth!$J23) -> 45028.18203 | N196: =+'Energy Balance'!N25*(1+Growth!$J23) -> 0 | O196: =+'Energy Balance'!O25*(1+Growth!$J23) -> 0 | P196: 65712.18533
B197: Industry - mining | D197: =+'Energy Balance'!D26*(1+Growth!$J24) -> 0 | E197: =+'Energy Balance'!E26*(1+Growth!$J24) -> 0 | F197: =+'Energy Balance'!F26*(1+Growth!$J24) -> 0 | G197: =+'Energy Balance'!G26*(1+Growth!$J24) -> 52250.90768 | H197: =+'Energy Balance'!H26*(1+Growth!$J24) -> 0 | I197: =+'Energy Balance'!I26*(1+Growth!$J24) -> 0 | J197: =+'Energy Balance'!J26*(1+Growth!$J24) -> 52250.90768 | K197: =+'Energy Balance'!K26*(1+Growth!$J24) -> 1520.951926 | L197: =+'Energy Balance'!L26*(1+Growth!$J24) -> 5516.914439 | M197: =+'Energy Balance'!M26*(1+Growth!$J24) -> 16260.17684 | N197: =+'Energy Balance'!N26*(1+Growth!$J24) -> 0 | O197: =+'Energy Balance'!O26*(1+Growth!$J24) -> 0 | P197: 75548.95089
B198: Industry - machinery | D198: =+'Energy Balance'!D27*(1+Growth!$J25) -> 758.4875392 | E198: =+'Energy Balance'!E27*(1+Growth!$J25) -> 0 | F198: =+'Energy Balance'!F27*(1+Growth!$J25) -> 0 | G198: =+'Energy Balance'!G27*(1+Growth!$J25) -> 416.89554 | H198: =+'Energy Balance'!H27*(1+Growth!$J25) -> 0 | I198: =+'Energy Balance'!I27*(1+Growth!$J25) -> 0 | J198: =+'Energy Balance'!J27*(1+Growth!$J25) -> 1175.383079 | K198: =+'Energy Balance'!K27*(1+Growth!$J25) -> 240.1503042 | L198: =+'Energy Balance'!L27*(1+Growth!$J25) -> 997.7398454 | M198: =+'Energy Balance'!M27*(1+Growth!$J25) -> 8630.401556 | N198: =+'Energy Balance'!N27*(1+Growth!$J25) -> 0 | O198: =+'Energy Balance'!O27*(1+Growth!$J25) -> 0 | P198: 11043.67478
B199: Industry - non ferrous metals | D199: =+'Energy Balance'!D28*(1+Growth!$J26) -> 5612.80779 | E199: =+'Energy Balance'!E28*(1+Growth!$J26) -> 0 | F199: =+'Energy Balance'!F28*(1+Growth!$J26) -> 0 | G199: =+'Energy Balance'!G28*(1+Growth!$J26) -> 1806.54734 | H199: =+'Energy Balance'!H28*(1+Growth!$J26) -> 0 | I199: =+'Energy Balance'!I28*(1+Growth!$J26) -> 0 | J199: =+'Energy Balance'!J28*(1+Growth!$J26) -> 7419.35513 | K199: =+'Energy Balance'!K28*(1+Growth!$J26) -> 86934.41011 | L199: =+'Energy Balance'!L28*(1+Growth!$J26) -> 3990.959382 | M199: =+'Energy Balance'!M28*(1+Growth!$J26) -> 257286.029 | N199: =+'Energy Balance'!N28*(1+Growth!$J26) -> 434451.3996 | O199: =+'Energy Balance'!O28*(1+Growth!$J26) -> 0 | P199: 790082.1532
B200: Industry - paper and pulp | D200: =+'Energy Balance'!D29*(1+Growth!$J27) -> 151.6975078 | E200: =+'Energy Balance'!E29*(1+Growth!$J27) -> 0 | F200: =+'Energy Balance'!F29*(1+Growth!$J27) -> 0 | G200: =+'Energy Balance'!G29*(1+Growth!$J27) -> 1389.6518 | H200: =+'Energy Balance'!H29*(1+Growth!$J27) -> 0 | I200: =+'Energy Balance'!I29*(1+Growth!$J27) -> 0 | J200: =+'Energy Balance'!J29*(1+Growth!$J27) -> 1541.349308 | K200: =+'Energy Balance'!K29*(1+Growth!$J27) -> 3442.15436 | L200: =+'Energy Balance'!L29*(1+Growth!$J27) -> 11855.49699 | M200: =+'Energy Balance'!M29*(1+Growth!$J27) -> 27767.37892 | N200: =+'Energy Balance'!N29*(1+Growth!$J27) -> 0 | O200: =+'Energy Balance'!O29*(1+Growth!$J27) -> 0 | P200: 44606.37957
B201: Industry - transport equipment | D201: =+'Energy Balance'!D30*(1+Growth!$J28) -> 3489.04268 | E201: =+'Energy Balance'!E30*(1+Growth!$J28) -> 0 | F201: =+'Energy Balance'!F30*(1+Growth!$J28) -> 0 | G201: =+'Energy Balance'!G30*(1+Growth!$J28) -> 972.7562601 | H201: =+'Energy Balance'!H30*(1+Growth!$J28) -> 0 | I201: =+'Energy Balance'!I30*(1+Growth!$J28) -> 0 | J201: =+'Energy Balance'!J30*(1+Growth!$J28) -> 4461.79894 | K201: =+'Energy Balance'!K30*(1+Growth!$J28) -> 0 | L201: =+'Energy Balance'!L30*(1+Growth!$J28) -> 469.5246331 | M201: =+'Energy Balance'!M30*(1+Growth!$J28) -> 22263.93445 | N201: =+'Energy Balance'!N30*(1+Growth!$J28) -> 0 | O201: =+'Energy Balance'!O30*(1+Growth!$J28) -> 0 | P201: 27195.25802
B202: Industry - textile and leather | D202: =+'Energy Balance'!D31*(1+Growth!$J29) -> 1820.370094 | E202: =+'Energy Balance'!E31*(1+Growth!$J29) -> 0 | F202: =+'Energy Balance'!F31*(1+Growth!$J29) -> 0 | G202: =+'Energy Balance'!G31*(1+Growth!$J29) -> 833.7910801 | H202: =+'Energy Balance'!H31*(1+Growth!$J29) -> 0 | I202: =+'Energy Balance'!I31*(1+Growth!$J29) -> 0 | J202: =+'Energy Balance'!J31*(1+Growth!$J29) -> 2654.161174 | K202: =+'Energy Balance'!K31*(1+Growth!$J29) -> 28417.78599 | L202: =+'Energy Balance'!L31*(1+Growth!$J29) -> 63737.96895 | M202: =+'Energy Balance'!M31*(1+Growth!$J29) -> 149843.7835 | N202: =+'Energy Balance'!N31*(1+Growth!$J29) -> 0 | O202: =+'Energy Balance'!O31*(1+Growth!$J29) -> 0 | P202: 244653.6996
B203: Industry - miscellaneous | D203: =+'Energy Balance'!D32*(1+Growth!$J30) -> 0 | E203: =+'Energy Balance'!E32*(1+Growth!$J30) -> 0 | F203: =+'Energy Balance'!F32*(1+Growth!$J30) -> 0 | G203: =+'Energy Balance'!G32*(1+Growth!$J30) -> 0 | H203: =+'Energy Balance'!H32*(1+Growth!$J30) -> 0 | I203: =+'Energy Balance'!I32*(1+Growth!$J30) -> 0 | J203: =+'Energy Balance'!J32*(1+Growth!$J30) -> 0 | K203: =+'Energy Balance'!K32*(1+Growth!$J30) -> 0 | L203: =+'Energy Balance'!L32*(1+Growth!$J30) -> 58.69057914 | M203: =+'Energy Balance'!M32*(1+Growth!$J30) -> 77673.614 | N203: =+'Energy Balance'!N32*(1+Growth!$J30) -> 0 | O203: =+'Energy Balance'!O32*(1+Growth!$J30) -> 0 | P203: 77732.30458
B204: Transport - road | D204: =+'Energy Balance'!D33*(1+Growth!$J34) -> 465559.6515 | E204: =+'Energy Balance'!E33*(1+Growth!$J34) -> 291382.369 | F204: =+'Energy Balance'!F33*(1+Growth!$J34) -> 0 | G204: =+'Energy Balance'!G33*(1+Growth!$J34) -> 2282919.977 | H204: =+'Energy Balance'!H33*(1+Growth!$J34) -> 0 | I204: =+'Energy Balance'!I33*(1+Growth!$J34) -> 0 | J204: =+'Energy Balance'!J33*(1+Growth!$J34) -> 3039861.998 | K204: =+'Energy Balance'!K33*(1+Growth!$J34) -> 0 | L204: =+'Energy Balance'!L33*(1+Growth!$J34) -> 0 | M204: =+'Energy Balance'!M33*(1+Growth!$J34) -> 10756.73237 | N204: =+'Energy Balance'!N33*(1+Growth!$J34) -> 0 | O204: =+'Energy Balance'!O33*(1+Growth!$J34) -> 0 | P204: 3050618.73
B205: Transport - rail | D205: =+'Energy Balance'!D34*(1+Growth!$J35) -> 0 | E205: =+'Energy Balance'!E34*(1+Growth!$J35) -> 0 | F205: =+'Energy Balance'!F34*(1+Growth!$J35) -> 0 | G205: =+'Energy Balance'!G34*(1+Growth!$J35) -> 18760.2993 | H205: =+'Energy Balance'!H34*(1+Growth!$J35) -> 0 | I205: =+'Energy Balance'!I34*(1+Growth!$J35) -> 0 | J205: =+'Energy Balance'!J34*(1+Growth!$J35) -> 18760.2993 | K205: =+'Energy Balance'!K34*(1+Growth!$J35) -> 0 | L205: =+'Energy Balance'!L34*(1+Growth!$J35) -> 0 | M205: =+'Energy Balance'!M34*(1+Growth!$J35) -> 0 | N205: =+'Energy Balance'!N34*(1+Growth!$J35) -> 0 | O205: =+'Energy Balance'!O34*(1+Growth!$J35) -> 0 | P205: 18760.2993
B206: Transport - domestic air | D206: =+'Energy Balance'!D35*(1+Growth!$J36) -> 0 | E206: =+'Energy Balance'!E35*(1+Growth!$J36) -> 0 | F206: =+'Energy Balance'!F35*(1+Growth!$J36) -> 188625.1392 | G206: =+'Energy Balance'!G35*(1+Growth!$J36) -> 0 | H206: =+'Energy Balance'!H35*(1+Growth!$J36) -> 0 | I206: =+'Energy Balance'!I35*(1+Growth!$J36) -> 0 | J206: =+'Energy Balance'!J35*(1+Growth!$J36) -> 188625.1392 | K206: =+'Energy Balance'!K35*(1+Growth!$J36) -> 0 | L206: =+'Energy Balance'!L35*(1+Growth!$J36) -> 0 | M206: =+'Energy Balance'!M35*(1+Growth!$J36) -> 0 | N206: =+'Energy Balance'!N35*(1+Growth!$J36) -> 0 | O206: =+'Energy Balance'!O35*(1+Growth!$J36) -> 0 | P206: 188625.1392
B207: Transport - navigation | D207: =+'Energy Balance'!D36*(1+Growth!$J37) -> 0 | E207: =+'Energy Balance'!E36*(1+Growth!$J37) -> 0 | F207: =+'Energy Balance'!F36*(1+Growth!$J37) -> 0 | G207: =+'Energy Balance'!G36*(1+Growth!$J37) -> 0 | H207: =+'Energy Balance'!H36*(1+Growth!$J37) -> 23587.74376 | I207: =+'Energy Balance'!I36*(1+Growth!$J37) -> 0 | J207: =+'Energy Balance'!J36*(1+Growth!$J37) -> 23587.74376 | K207: =+'Energy Balance'!K36*(1+Growth!$J37) -> 0 | L207: =+'Energy Balance'!L36*(1+Growth!$J37) -> 0 | M207: =+'Energy Balance'!M36*(1+Growth!$J37) -> 0 | N207: =+'Energy Balance'!N36*(1+Growth!$J37) -> 0 | O207: =+'Energy Balance'!O36*(1+Growth!$J37) -> 0 | P207: 23587.74376
B208: Households | D208: =+'Energy Balance'!D37*(1+Growth!$J40) -> 37165.88942 | E208: =+'Energy Balance'!E37*(1+Growth!$J40) -> 0 | F208: =+'Energy Balance'!F37*(1+Growth!$J40) -> 0 | G208: =+'Energy Balance'!G37*(1+Growth!$J40) -> 0 | H208: =+'Energy Balance'!H37*(1+Growth!$J40) -> 0 | I208: =+'Energy Balance'!I37*(1+Growth!$J40) -> 8324.120118 | J208: =+'Energy Balance'!J37*(1+Growth!$J40) -> 45490.00954 | K208: =+'Energy Balance'!K37*(1+Growth!$J40) -> 121355.9537 | L208: =+'Energy Balance'!L37*(1+Growth!$J40) -> 136514.2871 | M208: =+'Energy Balance'!M37*(1+Growth!$J40) -> 1375861.118 | N208: =+'Energy Balance'!N37*(1+Growth!$J40) -> 0 | O208: =+'Energy Balance'!O37*(1+Growth!$J40) -> 0 | P208: 1679221.368
B209: Services | D209: =+'Energy Balance'!D38*(1+Growth!$J44) -> 86619.27697 | E209: =+'Energy Balance'!E38*(1+Growth!$J44) -> 0 | F209: =+'Energy Balance'!F38*(1+Growth!$J44) -> 0 | G209: =+'Energy Balance'!G38*(1+Growth!$J44) -> 0 | H209: =+'Energy Balance'!H38*(1+Growth!$J44) -> 0 | I209: =+'Energy Balance'!I38*(1+Growth!$J44) -> 0 | J209: =+'Energy Balance'!J38*(1+Growth!$J44) -> 86619.27697 | K209: =+'Energy Balance'!K38*(1+Growth!$J44) -> 418101.6795 | L209: =+'Energy Balance'!L38*(1+Growth!$J44) -> 47539.3691 | M209: =+'Energy Balance'!M38*(1+Growth!$J44) -> 395372.4539 | N209: =+'Energy Balance'!N38*(1+Growth!$J44) -> 4310.390075 | O209: =+'Energy Balance'!O38*(1+Growth!$J44) -> 0 | P209: 951943.1696
B210: Agriculture & Fishery | D210: =+'Energy Balance'!D39*(1+Growth!$J47) -> 0 | E210: =+'Energy Balance'!E39*(1+Growth!$J47) -> 0 | F210: =+'Energy Balance'!F39*(1+Growth!$J47) -> 0 | G210: =+'Energy Balance'!G39*(1+Growth!$J47) -> 377568.3941 | H210: =+'Energy Balance'!H39*(1+Growth!$J47) -> 0 | I210: =+'Energy Balance'!I39*(1+Growth!$J47) -> 0 | J210: =+'Energy Balance'!J39*(1+Growth!$J47) -> 377568.3941 | K210: =+'Energy Balance'!K39*(1+Growth!$J47) -> 0 | L210: =+'Energy Balance'!L39*(1+Growth!$J47) -> 0 | M210: =+'Energy Balance'!M39*(1+Growth!$J47) -> 16635.41169 | N210: =+'Energy Balance'!N39*(1+Growth!$J47) -> 0 | O210: =+'Energy Balance'!O39*(1+Growth!$J47) -> 0 | P210: 394203.8058
B211: Non energy uses | D211: =+'Energy Balance'!D40*(1+Growth!$J49) -> 0 | E211: =+'Energy Balance'!E40*(1+Growth!$J49) -> 0 | F211: =+'Energy Balance'!F40*(1+Growth!$J49) -> 0 | G211: =+'Energy Balance'!G40*(1+Growth!$J49) -> 0 | H211: =+'Energy Balance'!H40*(1+Growth!$J49) -> 0 | I211: =+'Energy Balance'!I40*(1+Growth!$J49) -> 0 | J211: =+'Energy Balance'!J40*(1+Growth!$J49) -> 0 | K211: =+'Energy Balance'!K40*(1+Growth!$J49) -> 0 | L211: =+'Energy Balance'!L40*(1+Growth!$J49) -> 0 | M211: =+'Energy Balance'!M40*(1+Growth!$J49) -> 0 | N211: =+'Energy Balance'!N40*(1+Growth!$J49) -> 0 | O211: =+'Energy Balance'!O40*(1+Growth!$J49) -> 0 | P211: 0
E213: 0.02388458966 | F213: 0.02388458966 | G213: 0.02388458966 | H213: 0.02388458966 | I213: 0.02388458966 | J213: 0.02388458966 | L213: 0.02388458966 | M213: 0.02388458966 | N213: 0.02388458966 | O213: 0.02388458966 | P213: 0.02388458966
B215: ="Fossil fuel balance - 2035 - "&Assumptions!C9 -> Fossil fuel balance - 2035 - Country X
B216: ktoe units | D216: LPG | E216: Gasoline | F216: Jet Fuel | G216: Diesel | H216: Fueloil | I216: Kerosene and other | J216: Total oil products | K216: Coal | L216: Lignite | M216: Gas | N216: Coke | O216: Petrocoke | P216: Total
B217: Unit | D217: ktoe | E217: ktoe | F217: ktoe | G217: ktoe | H217: ktoe | I217: ktoe | J217: ktoe | K217: ktoe | L217: ktoe | M217: ktoe | N217: ktoe | O217: ktoe | P217: ktoe
B218: Total consumption | D218: =+D219+D220 -> 14474.81475 | E218: 6959.54832 | F218: 4505.234049 | G218: 66817.33159 | H218: 1440.784239 | I218: 198.8181933 | J218: 94396.53113 | K218: 54037.83356 | L218: 79069.95335 | M218: 132965.1342 | N218: 10584.74204 | O218: 9717.004608 | P218: 380771.1989
B219: Fossil power plants | D219: =IF(G247=0,0,$J219*IF('Energy Balance'!$J76>0,'Energy Balance'!D76/'Energy Balance'!$J76,0)) -> 0 | E219: =IF(G247=0,0,$J219*IF('Energy Balance'!$J76>0,'Energy Balance'!E76/'Energy Balance'!$J76,0)) -> 0 | F219: =IF(G247=0,0,$J219*IF('Energy Balance'!$J76>0,'Energy Balance'!F76/'Energy Balance'!$J76,0)) -> 0 | G219: =IF(G247=0,0,$J219*IF('Energy Balance'!$J76>0,'Energy Balance'!G76/'Energy Balance'!$J76,0)) -> 789.9520599 | H219: =IF(G247=0,0,$J219*IF('Energy Balance'!$J76>0,'Energy Balance'!H76/'Energy Balance'!$J76,0)) -> 698.841928 | I219: =IF(G247=0,0,$J219*IF('Energy Balance'!$J76>0,'Energy Balance'!I76/'Energy Balance'!$J76,0)) -> 0 | J219: =IF(G247=0,0,G250/11.63/I250) -> 1488.793988 | K219: =IF(I249>0,G249/11.63/I249,0) -> 30727.17062 | L219: =IF(I248>0,G248/11.63/I248,0) -> 69034.46429 | M219: =IF(I251>0,G251/11.63/I251,0) -> 58574.80422 | P219: =SUM(J219:O219) -> 159825.2331
B220: FINAL CONSUMPTION | D220: =SUM(D221:D240) -> 14474.81475 | E220: 6959.54832 | F220: 4505.234049 | G220: 66027.37953 | H220: 741.9423112 | I220: 198.8181933 | J220: =SUM(D220:I220) -> 92907.73714 | K220: =SUM(K221:K240) -> 23310.66294 | L220: 10035.48906 | M220: 74390.32997 | N220: 10584.74204 | O220: 9717.004608 | P220: 220945.9658
B221: Industry - steel | D221: =+'Energy Balance'!D78*(1+Growth!$J19) -> 0 | E221: =+'Energy Balance'!E78*(1+Growth!$J19) -> 0 | F221: =+'Energy Balance'!F78*(1+Growth!$J19) -> 0 | G221: =+'Energy Balance'!G78*(1+Growth!$J19) -> 56.42514713 | H221: =+'Energy Balance'!H78*(1+Growth!$J19) -> 0 | I221: =+'Energy Balance'!I78*(1+Growth!$J19) -> 0 | J221: 56.42514713 | K221: =+'Energy Balance'!K78*(1+Growth!$J19) -> 32.50338501 | L221: =+'Energy Balance'!L78*(1+Growth!$J19) -> 36.4468104 | M221: =+'Energy Balance'!M78*(1+Growth!$J19) -> 687.1119993 | N221: =+'Energy Balance'!N78*(1+Growth!$J19) -> 0 | O221: =+'Energy Balance'!O78*(1+Growth!$J19) -> 0 | P221: =SUM(J221:O221) -> 812.4873418
B222: Industry - chemical | D222: =+'Energy Balance'!D79*(1+Growth!$J20) -> 32.60909455 | E222: =+'Energy Balance'!E79*(1+Growth!$J20) -> 0 | F222: =+'Energy Balance'!F79*(1+Growth!$J20) -> 0 | G222: =+'Energy Balance'!G79*(1+Growth!$J20) -> 13.27650521 | H222: =+'Energy Balance'!H79*(1+Growth!$J20) -> 9.235796405 | I222: =+'Energy Balance'!I79*(1+Growth!$J20) -> 0 | J222: 55.12139616 | K222: =+'Energy Balance'!K79*(1+Growth!$J20) -> 753.3137467 | L222: =+'Energy Balance'!L79*(1+Growth!$J20) -> 455.58513 | M222: =+'Energy Balance'!M79*(1+Growth!$J20) -> 7737.478601 | N222: =+'Energy Balance'!N79*(1+Growth!$J20) -> 0 | O222: =+'Energy Balance'!O79*(1+Growth!$J20) -> 0 | P222: 9001.498873
B223: Industry - non metallic mineral | D223: =+'Energy Balance'!D80*(1+Growth!$J21) -> 10.86969818 | E223: =+'Energy Balance'!E80*(1+Growth!$J21) -> 0 | F223: =+'Energy Balance'!F80*(1+Growth!$J21) -> 0 | G223: =+'Energy Balance'!G80*(1+Growth!$J21) -> 79.65903125 | H223: =+'Energy Balance'!H80*(1+Growth!$J21) -> 55.41477843 | I223: =+'Energy Balance'!I80*(1+Growth!$J21) -> 0 | J223: 145.9435079 | K223: =+'Energy Balance'!K80*(1+Growth!$J21) -> 6322.864366 | L223: =+'Energy Balance'!L80*(1+Growth!$J21) -> 1970.931362 | M223: =+'Energy Balance'!M80*(1+Growth!$J21) -> 5628.343507 | N223: =+'Energy Balance'!N80*(1+Growth!$J21) -> 0 | O223: =+'Energy Balance'!O80*(1+Growth!$J21) -> 9700.382166 | P223: 23768.46491
B224: Industry - food processing and beverage | D224: =+'Energy Balance'!D81*(1+Growth!$J22) -> 72.46465455 | E224: =+'Energy Balance'!E81*(1+Growth!$J22) -> 0 | F224: =+'Energy Balance'!F81*(1+Growth!$J22) -> 0 | G224: =+'Energy Balance'!G81*(1+Growth!$J22) -> 19.91475781 | H224: =+'Energy Balance'!H81*(1+Growth!$J22) -> 113.9081557 | I224: =+'Energy Balance'!I81*(1+Growth!$J22) -> 0 | J224: 206.287568 | K224: =+'Energy Balance'!K81*(1+Growth!$J22) -> 435.9277519 | L224: =+'Energy Balance'!L81*(1+Growth!$J22) -> 1103.216915 | M224: =+'Energy Balance'!M81*(1+Growth!$J22) -> 2933.669493 | N224: =+'Energy Balance'!N81*(1+Growth!$J22) -> 105.0967294 | O224: =+'Energy Balance'!O81*(1+Growth!$J22) -> 16.6224419 | P224: 4800.820899
B225: Industry - construction | D225: =+'Energy Balance'!D82*(1+Growth!$J23) -> 0 | E225: =+'Energy Balance'!E82*(1+Growth!$J23) -> 0 | F225: =+'Energy Balance'!F82*(1+Growth!$J23) -> 0 | G225: =+'Energy Balance'!G82*(1+Growth!$J23) -> 487.9115664 | H225: =+'Energy Balance'!H82*(1+Growth!$J23) -> 0 | I225: =+'Energy Balance'!I82*(1+Growth!$J23) -> 0 | J225: 487.9115664 | K225: =+'Energy Balance'!K82*(1+Growth!$J23) -> 1.911963824 | L225: =+'Energy Balance'!L82*(1+Growth!$J23) -> 4.2054012 | M225: =+'Energy Balance'!M82*(1+Growth!$J23) -> 1075.479651 | N225: =+'Energy Balance'!N82*(1+Growth!$J23) -> 0 | O225: =+'Energy Balance'!O82*(1+Growth!$J23) -> 0 | P225: 1569.508582
B226: Industry - mining | D226: =+'Energy Balance'!D83*(1+Growth!$J24) -> 0 | E226: =+'Energy Balance'!E83*(1+Growth!$J24) -> 0 | F226: =+'Energy Balance'!F83*(1+Growth!$J24) -> 0 | G226: =+'Energy Balance'!G83*(1+Growth!$J24) -> 1247.99149 | H226: =+'Energy Balance'!H83*(1+Growth!$J24) -> 0 | I226: =+'Energy Balance'!I83*(1+Growth!$J24) -> 0 | J226: 1247.99149 | K226: =+'Energy Balance'!K83*(1+Growth!$J24) -> 36.32731266 | L226: =+'Energy Balance'!L83*(1+Growth!$J24) -> 131.7692376 | M226: =+'Energy Balance'!M83*(1+Growth!$J24) -> 388.3676518 | N226: =+'Energy Balance'!N83*(1+Growth!$J24) -> 0 | O226: =+'Energy Balance'!O83*(1+Growth!$J24) -> 0 | P226: 1804.455692
B227: Industry - machinery | D227: =+'Energy Balance'!D84*(1+Growth!$J25) -> 18.11616364 | E227: =+'Energy Balance'!E84*(1+Growth!$J25) -> 0 | F227: =+'Energy Balance'!F84*(1+Growth!$J25) -> 0 | G227: =+'Energy Balance'!G84*(1+Growth!$J25) -> 9.957378906 | H227: =+'Energy Balance'!H84*(1+Growth!$J25) -> 0 | I227: =+'Energy Balance'!I84*(1+Growth!$J25) -> 0 | J227: 28.07354254 | K227: =+'Energy Balance'!K84*(1+Growth!$J25) -> 5.735891472 | L227: =+'Energy Balance'!L84*(1+Growth!$J25) -> 23.8306068 | M227: =+'Energy Balance'!M84*(1+Growth!$J25) -> 206.1335998 | N227: =+'Energy Balance'!N84*(1+Growth!$J25) -> 0 | O227: =+'Energy Balance'!O84*(1+Growth!$J25) -> 0 | P227: 263.7736406
B228: Industry - non ferrous metals | D228: =+'Energy Balance'!D85*(1+Growth!$J26) -> 134.0596109 | E228: =+'Energy Balance'!E85*(1+Growth!$J26) -> 0 | F228: =+'Energy Balance'!F85*(1+Growth!$J26) -> 0 | G228: =+'Energy Balance'!G85*(1+Growth!$J26) -> 43.14864193 | H228: =+'Energy Balance'!H85*(1+Growth!$J26) -> 0 | I228: =+'Energy Balance'!I85*(1+Growth!$J26) -> 0 | J228: 177.2082528 | K228: =+'Energy Balance'!K85*(1+Growth!$J26) -> 2076.392713 | L228: =+'Energy Balance'!L85*(1+Growth!$J26) -> 95.32242719 | M228: =+'Energy Balance'!M85*(1+Growth!$J26) -> 6145.171228 | N228: =+'Energy Balance'!N85*(1+Growth!$J26) -> 10376.69341 | O228: =+'Energy Balance'!O85*(1+Growth!$J26) -> 0 | P228: 18870.78803
B229: Industry - paper and pulp | D229: =+'Energy Balance'!D86*(1+Growth!$J27) -> 3.623232728 | E229: =+'Energy Balance'!E86*(1+Growth!$J27) -> 0 | F229: =+'Energy Balance'!F86*(1+Growth!$J27) -> 0 | G229: =+'Energy Balance'!G86*(1+Growth!$J27) -> 33.19126302 | H229: =+'Energy Balance'!H86*(1+Growth!$J27) -> 0 | I229: =+'Energy Balance'!I86*(1+Growth!$J27) -> 0 | J229: 36.81449575 | K229: =+'Energy Balance'!K86*(1+Growth!$J27) -> 82.21444444 | L229: =+'Energy Balance'!L86*(1+Growth!$J27) -> 283.1636808 | M229: =+'Energy Balance'!M86*(1+Growth!$J27) -> 663.2124515 | N229: =+'Energy Balance'!N86*(1+Growth!$J27) -> 0 | O229: =+'Energy Balance'!O86*(1+Growth!$J27) -> 0 | P229: 1065.405072
B230: Industry - transport equipment | D230: =+'Energy Balance'!D87*(1+Growth!$J28) -> 83.33435273 | E230: =+'Energy Balance'!E87*(1+Growth!$J28) -> 0 | F230: =+'Energy Balance'!F87*(1+Growth!$J28) -> 0 | G230: =+'Energy Balance'!G87*(1+Growth!$J28) -> 23.23388411 | H230: =+'Energy Balance'!H87*(1+Growth!$J28) -> 0 | I230: =+'Energy Balance'!I87*(1+Growth!$J28) -> 0 | J230: 106.5682368 | K230: =+'Energy Balance'!K87*(1+Growth!$J28) -> 0 | L230: =+'Energy Balance'!L87*(1+Growth!$J28) -> 11.2144032 | M230: =+'Energy Balance'!M87*(1+Growth!$J28) -> 531.7649386 | N230: =+'Energy Balance'!N87*(1+Growth!$J28) -> 0 | O230: =+'Energy Balance'!O87*(1+Growth!$J28) -> 0 | P230: 649.5475786
... 109 more rows

Sheet BAU projected GHG Balances (hidden)
B2: Step 6: BAU projected GHG Balances for year 2025, 2030, 2035, and 2050
T3: 2025
B4: Select year to display: | E4: The BAU projected GHG balances sheet includes the future greenhouse gas emissions balances for the years 2025, 2030, 2035, and 2050. The data in this sheet are automatically calculated by GACMO. The user should not modify any of the data in the tables CO2 balance and Non-CO2 emissions, non-fuel combustion sectors. However, a user may exceptionally decide to modify a specific data in one of these tables in the case that the user would like to reflect a change in the greenhouse gas balance which is not taken into account by the projections made by GACMO. The user should only make such a change if he/she is completely familiar with those types of data as the change will have an impact on the emissions scenarios and results obtained. Please refer to the Guidance for further details on the data included in this sheet and on how to fill it in. Once you have reviewed the tables of the BAU projected GHG Balances sheet, you can click “Go to step 7: Mitigation options”. | T4: 2030
T5: 2050
T7: TJ
B8: Selected year: | C8: 2025 | T8: ktoe
B14: ="CO2 emissions from fuel combustion- 2025 - "&Assumptions!C9 -> CO2 emissions from fuel combustion- 2025 - Country X
B15: ktCO2 | D15: LPG | E15: Gasoline | F15: Jet Fuel | G15: Diesel | H15: Fueloil | I15: Kerosene and other | J15: Total oil products | K15: Coal | L15: Lignite | M15: Gas | N15: Coke | O15: Petrocoke | P15: Total
B16: Unit | D16: kt | E16: kt | F16: kt | G16: kt | H16: kt | I16: kt | J16: kt | K16: kt | L16: kt | M16: kt | N16: kt | O16: kt | P16: kt
B17: Total | D17: =+D18+D19 -> 21342.06579 | E17: 11275.55303 | F17: 7530.901414 | G17: 115700.5678 | H17: 2606.011919 | I17: 334.0467014 | J17: 158789.1467 | K17: 119512.3066 | L17: 187074.9156 | M17: 174391.0531 | N17: 26775.10002 | O17: 22785.41298 | P17: 689327.9351
B18: Fossil power plants | D18: ='GHG Balance'!D14*'BAU projected Energy Balances'!D47 -> 0 | E18: ='GHG Balance'!E14*'BAU projected Energy Balances'!E47 -> 0 | F18: ='GHG Balance'!F14*'BAU projected Energy Balances'!F47 -> 0 | G18: ='GHG Balance'!G14*'BAU projected Energy Balances'!G47 -> 1367.877162 | H18: ='GHG Balance'!H14*'BAU projected Energy Balances'!H47 -> 1264.027149 | I18: ='GHG Balance'!I14*'BAU projected Energy Balances'!I47 -> 0 | J18: =SUM(D18:I18) -> 2631.904311 | K18: ='GHG Balance'!K14*'BAU projected Energy Balances'!K47 -> 67957.48081 | L18: ='GHG Balance'!L14*'BAU projected Energy Balances'!L47 -> 163331.5315 | M18: ='GHG Balance'!M14*'BAU projected Energy Balances'!M47 -> 76824.0626 | N18: ='GHG Balance'!N14*'BAU projected Energy Balances'!N47 -> 0 | O18: ='GHG Balance'!O14*'BAU projected Energy Balances'!O47 -> 0 | P18: =SUM(J18:O18) -> 310744.9793
B19: FINAL CONSUMPTION | D19: =SUM(D20:D39) -> 21342.06579 | E19: 11275.55303 | F19: 7530.901414 | G19: 114332.6907 | H19: 1341.98477 | I19: 334.0467014 | J19: 156157.2424 | K19: =SUM(K20:K39) -> 51554.82584 | L19: =SUM(L20:L39) -> 23743.38405 | M19: 97566.99051 | N19: 26775.10002 | O19: 22785.41298 | P19: 378582.9558
B20: Industry - steel | D20: =+'GHG Balance'!D18*(1+Growth!$H19) -> 0 | E20: =+'GHG Balance'!E18*(1+Growth!$H19) -> 0 | F20: =+'GHG Balance'!F18*(1+Growth!$H19) -> 0 | G20: =+'GHG Balance'!G18*(1+Growth!$H19) -> 97.70551156 | H20: =+'GHG Balance'!H18*(1+Growth!$H19) -> 0 | I20: =+'GHG Balance'!I18*(1+Growth!$H19) -> 0 | J20: 97.70551156 | K20: =+'GHG Balance'!K18*(1+Growth!$H19) -> 71.88582999 | L20: =+'GHG Balance'!L18*(1+Growth!$H19) -> 86.2310358 | M20: =+'GHG Balance'!M18*(1+Growth!$H19) -> 901.1850053 | N20: =+'GHG Balance'!N18*(1+Growth!$H19) -> 0 | O20: =+'GHG Balance'!O18*(1+Growth!$H19) -> 0 | P20: =SUM(J20:O20) -> 1157.007383
B21: Industry - chemical | D21: =+'GHG Balance'!D19*(1+Growth!$H20) -> 48.07974772 | E21: =+'GHG Balance'!E19*(1+Growth!$H20) -> 0 | F21: =+'GHG Balance'!F19*(1+Growth!$H20) -> 0 | G21: =+'GHG Balance'!G19*(1+Growth!$H20) -> 22.98953213 | H21: =+'GHG Balance'!H19*(1+Growth!$H20) -> 16.70520461 | I21: =+'GHG Balance'!I19*(1+Growth!$H20) -> 0 | J21: 87.77448446 | K21: =+'GHG Balance'!K19*(1+Growth!$H20) -> 1666.059824 | L21: =+'GHG Balance'!L19*(1+Growth!$H20) -> 1077.887948 | M21: =+'GHG Balance'!M19*(1+Growth!$H20) -> 10148.1268 | N21: =+'GHG Balance'!N19*(1+Growth!$H20) -> 0 | O21: =+'GHG Balance'!O19*(1+Growth!$H20) -> 0 | P21: 12979.84906
B22: Industry - non metallic mineral | D22: =+'GHG Balance'!D20*(1+Growth!$H21) -> 16.02658257 | E22: =+'GHG Balance'!E20*(1+Growth!$H21) -> 0 | F22: =+'GHG Balance'!F20*(1+Growth!$H21) -> 0 | G22: =+'GHG Balance'!G20*(1+Growth!$H21) -> 137.9371928 | H22: =+'GHG Balance'!H20*(1+Growth!$H21) -> 100.2312276 | I22: =+'GHG Balance'!I20*(1+Growth!$H21) -> 0 | J22: 254.195003 | K22: =+'GHG Balance'!K20*(1+Growth!$H21) -> 13983.90822 | L22: =+'GHG Balance'!L20*(1+Growth!$H21) -> 4663.10909 | M22: =+'GHG Balance'!M20*(1+Growth!$H21) -> 7381.880652 | N22: =+'GHG Balance'!N20*(1+Growth!$H21) -> 0 | O22: =+'GHG Balance'!O20*(1+Growth!$H21) -> 22746.435 | P22: 49029.52797
B23: Industry - food processing and beverage | D23: =+'GHG Balance'!D21*(1+Growth!$H22) -> 106.8438838 | E23: =+'GHG Balance'!E21*(1+Growth!$H22) -> 0 | F23: =+'GHG Balance'!F21*(1+Growth!$H22) -> 0 | G23: =+'GHG Balance'!G21*(1+Growth!$H22) -> 34.4842982 | H23: =+'GHG Balance'!H21*(1+Growth!$H22) -> 206.0308568 | I23: =+'GHG Balance'!I21*(1+Growth!$H22) -> 0 | J23: 347.3590388 | K23: =+'GHG Balance'!K21*(1+Growth!$H22) -> 964.1158375 | L23: =+'GHG Balance'!L21*(1+Growth!$H22) -> 2610.147122 | M23: =+'GHG Balance'!M21*(1+Growth!$H22) -> 3847.668153 | N23: =+'GHG Balance'!N21*(1+Growth!$H22) -> 265.8520569 | O23: =+'GHG Balance'!O21*(1+Growth!$H22) -> 38.9779792 | P23: 8074.120188
B24: Industry - construction | D24: =+'GHG Balance'!D22*(1+Growth!$H23) -> 0 | E24: =+'GHG Balance'!E22*(1+Growth!$H23) -> 0 | F24: =+'GHG Balance'!F22*(1+Growth!$H23) -> 0 | G24: =+'GHG Balance'!G22*(1+Growth!$H23) -> 844.8653059 | H24: =+'GHG Balance'!H22*(1+Growth!$H23) -> 0 | I24: =+'GHG Balance'!I22*(1+Growth!$H23) -> 0 | J24: 844.8653059 | K24: =+'GHG Balance'!K22*(1+Growth!$H23) -> 4.228578235 | L24: =+'GHG Balance'!L22*(1+Growth!$H23) -> 9.9497349 | M24: =+'GHG Balance'!M22*(1+Growth!$H23) -> 1410.550443 | N24: =+'GHG Balance'!N22*(1+Growth!$H23) -> 0 | O24: =+'GHG Balance'!O22*(1+Growth!$H23) -> 0 | P24: 2269.594062
B25: Industry - mining | D25: =+'GHG Balance'!D23*(1+Growth!$H24) -> 0 | E25: =+'GHG Balance'!E23*(1+Growth!$H24) -> 0 | F25: =+'GHG Balance'!F23*(1+Growth!$H24) -> 0 | G25: =+'GHG Balance'!G23*(1+Growth!$H24) -> 2161.01602 | H25: =+'GHG Balance'!H23*(1+Growth!$H24) -> 0 | I25: =+'GHG Balance'!I23*(1+Growth!$H24) -> 0 | J25: 2161.01602 | K25: =+'GHG Balance'!K23*(1+Growth!$H24) -> 80.34298646 | L25: =+'GHG Balance'!L23*(1+Growth!$H24) -> 311.7583602 | M25: =+'GHG Balance'!M23*(1+Growth!$H24) -> 509.3654378 | N25: =+'GHG Balance'!N23*(1+Growth!$H24) -> 0 | O25: =+'GHG Balance'!O23*(1+Growth!$H24) -> 0 | P25: 3062.482805
B26: Industry - machinery | D26: =+'GHG Balance'!D24*(1+Growth!$H25) -> 26.71097095 | E26: =+'GHG Balance'!E24*(1+Growth!$H25) -> 0 | F26: =+'GHG Balance'!F24*(1+Growth!$H25) -> 0 | G26: =+'GHG Balance'!G24*(1+Growth!$H25) -> 17.2421491 | H26: =+'GHG Balance'!H24*(1+Growth!$H25) -> 0 | I26: =+'GHG Balance'!I24*(1+Growth!$H25) -> 0 | J26: 43.95312005 | K26: =+'GHG Balance'!K24*(1+Growth!$H25) -> 12.6857347 | L26: =+'GHG Balance'!L24*(1+Growth!$H25) -> 56.3818311 | M26: =+'GHG Balance'!M24*(1+Growth!$H25) -> 270.3555016 | N26: =+'GHG Balance'!N24*(1+Growth!$H25) -> 0 | O26: =+'GHG Balance'!O24*(1+Growth!$H25) -> 0 | P26: 383.3761875
B27: Industry - non ferrous metals | D27: =+'GHG Balance'!D25*(1+Growth!$H26) -> 197.6611851 | E27: =+'GHG Balance'!E25*(1+Growth!$H26) -> 0 | F27: =+'GHG Balance'!F25*(1+Growth!$H26) -> 0 | G27: =+'GHG Balance'!G25*(1+Growth!$H26) -> 74.71597943 | H27: =+'GHG Balance'!H25*(1+Growth!$H26) -> 0 | I27: =+'GHG Balance'!I25*(1+Growth!$H26) -> 0 | J27: 272.3771645 | K27: =+'GHG Balance'!K25*(1+Growth!$H26) -> 4592.235963 | L27: =+'GHG Balance'!L25*(1+Growth!$H26) -> 225.5273244 | M27: =+'GHG Balance'!M25*(1+Growth!$H26) -> 8059.728504 | N27: =+'GHG Balance'!N25*(1+Growth!$H26) -> 26248.82145 | O27: =+'GHG Balance'!O25*(1+Growth!$H26) -> 0 | P27: 39398.69041
B28: Industry - paper and pulp | D28: =+'GHG Balance'!D26*(1+Growth!$H27) -> 5.342194191 | E28: =+'GHG Balance'!E26*(1+Growth!$H27) -> 0 | F28: =+'GHG Balance'!F26*(1+Growth!$H27) -> 0 | G28: =+'GHG Balance'!G26*(1+Growth!$H27) -> 57.47383033 | H28: =+'GHG Balance'!H26*(1+Growth!$H27) -> 0 | I28: =+'GHG Balance'!I26*(1+Growth!$H27) -> 0 | J28: 62.81602452 | K28: =+'GHG Balance'!K26*(1+Growth!$H27) -> 181.8288641 | L28: =+'GHG Balance'!L26*(1+Growth!$H27) -> 669.9488166 | M28: =+'GHG Balance'!M26*(1+Growth!$H27) -> 869.8394399 | N28: =+'GHG Balance'!N26*(1+Growth!$H27) -> 0 | O28: =+'GHG Balance'!O26*(1+Growth!$H27) -> 0 | P28: 1784.433145
B29: Industry - transport equipment | D29: =+'GHG Balance'!D27*(1+Growth!$H28) -> 122.8704664 | E29: =+'GHG Balance'!E27*(1+Growth!$H28) -> 0 | F29: =+'GHG Balance'!F27*(1+Growth!$H28) -> 0 | G29: =+'GHG Balance'!G27*(1+Growth!$H28) -> 40.23168123 | H29: =+'GHG Balance'!H27*(1+Growth!$H28) -> 0 | I29: =+'GHG Balance'!I27*(1+Growth!$H28) -> 0 | J29: 163.1021476 | K29: =+'GHG Balance'!K27*(1+Growth!$H28) -> 0 | L29: =+'GHG Balance'!L27*(1+Growth!$H28) -> 26.5326264 | M29: =+'GHG Balance'!M27*(1+Growth!$H28) -> 697.4388302 | N29: =+'GHG Balance'!N27*(1+Growth!$H28) -> 0 | O29: =+'GHG Balance'!O27*(1+Growth!$H28) -> 0 | P29: 887.0736042
B30: Industry - textile and leather | D30: =+'GHG Balance'!D28*(1+Growth!$H29) -> 64.10633029 | E30: =+'GHG Balance'!E28*(1+Growth!$H29) -> 0 | F30: =+'GHG Balance'!F28*(1+Growth!$H29) -> 0 | G30: =+'GHG Balance'!G28*(1+Growth!$H29) -> 34.4842982 | H30: =+'GHG Balance'!H28*(1+Growth!$H29) -> 0 | I30: =+'GHG Balance'!I28*(1+Growth!$H29) -> 0 | J30: 98.59062849 | K30: =+'GHG Balance'!K28*(1+Growth!$H29) -> 1501.145273 | L30: =+'GHG Balance'!L28*(1+Growth!$H29) -> 3601.804034 | M30: =+'GHG Balance'!M28*(1+Growth!$H29) -> 4693.998419 | N30: =+'GHG Balance'!N28*(1+Growth!$H29) -> 0 | O30: =+'GHG Balance'!O28*(1+Growth!$H29) -> 0 | P30: 9895.538355
B31: Industry - miscellaneous | D31: =+'GHG Balance'!D29*(1+Growth!$H30) -> 0 | E31: =+'GHG Balance'!E29*(1+Growth!$H30) -> 0 | F31: =+'GHG Balance'!F29*(1+Growth!$H30) -> 0 | G31: =+'GHG Balance'!G29*(1+Growth!$H30) -> 0 | H31: =+'GHG Balance'!H29*(1+Growth!$H30) -> 0 | I31: =+'GHG Balance'!I29*(1+Growth!$H30) -> 0 | J31: 0 | K31: =+'GHG Balance'!K29*(1+Growth!$H30) -> 0 | L31: =+'GHG Balance'!L29*(1+Growth!$H30) -> 3.3165783 | M31: =+'GHG Balance'!M29*(1+Growth!$H30) -> 2433.199514 | N31: =+'GHG Balance'!N29*(1+Growth!$H30) -> 0 | O31: =+'GHG Balance'!O29*(1+Growth!$H30) -> 0 | P31: 2436.516093
B32: Transport - road | D32: =+'GHG Balance'!D30*(1+Growth!$H34) -> 16395.19397 | E32: =+'GHG Balance'!E30*(1+Growth!$H34) -> 11275.55303 | F32: =+'GHG Balance'!F30*(1+Growth!$H34) -> 0 | G32: =+'GHG Balance'!G30*(1+Growth!$H34) -> 94418.00847 | H32: =+'GHG Balance'!H30*(1+Growth!$H34) -> 0 | I32: =+'GHG Balance'!I30*(1+Growth!$H34) -> 0 | J32: 122088.7555 | K32: =+'GHG Balance'!K30*(1+Growth!$H34) -> 0 | L32: =+'GHG Balance'!L30*(1+Growth!$H34) -> 0 | M32: =+'GHG Balance'!M30*(1+Growth!$H34) -> 336.9648281 | N32: =+'GHG Balance'!N30*(1+Growth!$H34) -> 0 | O32: =+'GHG Balance'!O30*(1+Growth!$H34) -> 0 | P32: 122425.7203
B33: Transport - rail | D33: =+'GHG Balance'!D31*(1+Growth!$H35) -> 0 | E33: =+'GHG Balance'!E31*(1+Growth!$H35) -> 0 | F33: =+'GHG Balance'!F31*(1+Growth!$H35) -> 0 | G33: =+'GHG Balance'!G31*(1+Growth!$H35) -> 775.8967095 | H33: =+'GHG Balance'!H31*(1+Growth!$H35) -> 0 | I33: =+'GHG Balance'!I31*(1+Growth!$H35) -> 0 | J33: 775.8967095 | K33: =+'GHG Balance'!K31*(1+Growth!$H35) -> 0 | L33: =+'GHG Balance'!L31*(1+Growth!$H35) -> 0 | M33: =+'GHG Balance'!M31*(1+Growth!$H35) -> 0 | N33: =+'GHG Balance'!N31*(1+Growth!$H35) -> 0 | O33: =+'GHG Balance'!O31*(1+Growth!$H35) -> 0 | P33: 775.8967095
B34: Transport - domestic air | D34: =+'GHG Balance'!D32*(1+Growth!$H36) -> 0 | E34: =+'GHG Balance'!E32*(1+Growth!$H36) -> 0 | F34: =+'GHG Balance'!F32*(1+Growth!$H36) -> 7530.901414 | G34: =+'GHG Balance'!G32*(1+Growth!$H36) -> 0 | H34: =+'GHG Balance'!H32*(1+Growth!$H36) -> 0 | I34: =+'GHG Balance'!I32*(1+Growth!$H36) -> 0 | J34: 7530.901414 | K34: =+'GHG Balance'!K32*(1+Growth!$H36) -> 0 | L34: =+'GHG Balance'!L32*(1+Growth!$H36) -> 0 | M34: =+'GHG Balance'!M32*(1+Growth!$H36) -> 0 | N34: =+'GHG Balance'!N32*(1+Growth!$H36) -> 0 | O34: =+'GHG Balance'!O32*(1+Growth!$H36) -> 0 | P34: 7530.901414
B35: Transport - navigation | D35: =+'GHG Balance'!D33*(1+Growth!$H37) -> 0 | E35: =+'GHG Balance'!E33*(1+Growth!$H37) -> 0 | F35: =+'GHG Balance'!F33*(1+Growth!$H37) -> 0 | G35: =+'GHG Balance'!G33*(1+Growth!$H37) -> 0 | H35: =+'GHG Balance'!H33*(1+Growth!$H37) -> 1019.017481 | I35: =+'GHG Balance'!I33*(1+Growth!$H37) -> 0 | J35: 1019.017481 | K35: =+'GHG Balance'!K33*(1+Growth!$H37) -> 0 | L35: =+'GHG Balance'!L33*(1+Growth!$H37) -> 0 | M35: =+'GHG Balance'!M33*(1+Growth!$H37) -> 0 | N35: =+'GHG Balance'!N33*(1+Growth!$H37) -> 0 | O35: =+'GHG Balance'!O33*(1+Growth!$H37) -> 0 | P35: 1019.017481
B36: Households | D36: =+'GHG Balance'!D34*(1+Growth!$H40) -> 1308.837577 | E36: =+'GHG Balance'!E34*(1+Growth!$H40) -> 0 | F36: =+'GHG Balance'!F34*(1+Growth!$H40) -> 0 | G36: =+'GHG Balance'!G34*(1+Growth!$H40) -> 0 | H36: =+'GHG Balance'!H34*(1+Growth!$H40) -> 0 | I36: =+'GHG Balance'!I34*(1+Growth!$H41) -> 334.0467014 | J36: 1642.884278 | K36: =+'GHG Balance'!K34*(1+Growth!$H40) -> 6410.524604 | L36: =+'GHG Balance'!L34*(1+Growth!$H40) -> 7714.361126 | M36: =+'GHG Balance'!M34*(1+Growth!$H40) -> 43100.15243 | N36: =+'GHG Balance'!N34*(1+Growth!$H40) -> 0 | O36: =+'GHG Balance'!O34*(1+Growth!$H40) -> 0 | P36: 58867.92244
B37: Services | D37: =+'GHG Balance'!D35*(1+Growth!$H44) -> 3050.392883 | E37: =+'GHG Balance'!E35*(1+Growth!$H44) -> 0 | F37: =+'GHG Balance'!F35*(1+Growth!$H44) -> 0 | G37: =+'GHG Balance'!G35*(1+Growth!$H44) -> 0 | H37: =+'GHG Balance'!H35*(1+Growth!$H44) -> 0 | I37: =+'GHG Balance'!I35*(1+Growth!$H44) -> 0 | J37: 3050.392883 | K37: =+'GHG Balance'!K35*(1+Growth!$H44) -> 22085.86412 | L37: =+'GHG Balance'!L35*(1+Growth!$H44) -> 2686.428423 | M37: =+'GHG Balance'!M35*(1+Growth!$H44) -> 12385.41653 | N37: =+'GHG Balance'!N35*(1+Growth!$H44) -> 260.4265047 | O37: =+'GHG Balance'!O35*(1+Growth!$H44) -> 0 | P37: 40468.52846
B38: Agriculture & Fishery | D38: =+'GHG Balance'!D36*(1+Growth!$H47) -> 0 | E38: =+'GHG Balance'!E36*(1+Growth!$H47) -> 0 | F38: =+'GHG Balance'!F36*(1+Growth!$H47) -> 0 | G38: =+'GHG Balance'!G36*(1+Growth!$H47) -> 15615.6397 | H38: =+'GHG Balance'!H36*(1+Growth!$H47) -> 0 | I38: =+'GHG Balance'!I36*(1+Growth!$H47) -> 0 | J38: 15615.6397 | K38: =+'GHG Balance'!K36*(1+Growth!$H47) -> 0 | L38: =+'GHG Balance'!L36*(1+Growth!$H47) -> 0 | M38: =+'GHG Balance'!M36*(1+Growth!$H47) -> 521.1200248 | N38: =+'GHG Balance'!N36*(1+Growth!$H47) -> 0 | O38: =+'GHG Balance'!O36*(1+Growth!$H47) -> 0 | P38: 16136.75973
B39: Non energy uses | D39: =+'GHG Balance'!D37*(1+Growth!$H49) -> 0 | E39: =+'GHG Balance'!E37*(1+Growth!$H49) -> 0 | F39: =+'GHG Balance'!F37*(1+Growth!$H49) -> 0 | G39: =+'GHG Balance'!G37*(1+Growth!$H49) -> 0 | H39: =+'GHG Balance'!H37*(1+Growth!$H49) -> 0 | I39: =+'GHG Balance'!I37*(1+Growth!$H49) -> 0 | J39: 0 | K39: =+'GHG Balance'!K37*(1+Growth!$H49) -> 0 | L39: =+'GHG Balance'!L37*(1+Growth!$H49) -> 0 | M39: =+'GHG Balance'!M37*(1+Growth!$H49) -> 0 | N39: =+'GHG Balance'!N37*(1+Growth!$H49) -> 0 | O39: =+'GHG Balance'!O37*(1+Growth!$H49) -> 0 | P39: 0
B41: Non-CO2 emissions, non-fuel combustion sectors | D41: ktCO2e
B42: CH4 from energy combustion | D42: =IF(P17=0,0,+'GHG Balance'!D41*'BAU projected GHG Balances'!P19/'GHG Balance'!P17) -> 9063.480192
B43: N2O from energy combustion | D43: =IF(P18=0,0,+'GHG Balance'!D42*'BAU projected GHG Balances'!P20/'GHG Balance'!P18) -> 6939.534824
B44: Total Agriculture | D44: =SUM(D45:D49) -> 76081.79407
B45: Enteric fermentation | D45: =+'GHG Balance'!D44*(1+Growth!H$50) -> 36135.22361
B46: Manure management | D46: =+'GHG Balance'!D45*(1+Growth!H$50) -> 8472.048855
B47: Rice cultivation | D47: =+'GHG Balance'!D46*(1+Growth!H$51) -> 268.7832759
B48: N2O from agricultural soils | D48: =+'GHG Balance'!D47*(1+Growth!H$52) -> 30746.11893
B49: Burning of agricultural residues | D49: =+'GHG Balance'!D48*(1+Growth!H$53) -> 459.6194017
B50: Fugitive (CH4) | D50: =IF('GHG Balance'!M15=0,0,'GHG Balance'!D49*'BAU projected GHG Balances'!M17/'GHG Balance'!M15) -> 7397.991834
B51: Forestry | D51: =+'GHG Balance'!D50*(1+Growth!H$54) -> -64020
B52: Waste - solid | D52: =+'GHG Balance'!D51*(1+Growth!H56) -> 16880
B53: Waste - liquid | D53: =+'GHG Balance'!D52*(1+Growth!H57) -> 0
B54: Industrial processes | D54: =+'GHG Balance'!D53*(1+Growth!H32) -> 60720
B55: Total Non-CO2 emissions, non-fuel combustion sectors | D55: =D42+D43+D44+D50+D51+D52+D53+D54 -> 113062.8009
B56: Total GHG emission | D56: =+D42+D43+D44+D50+D51+D52+D53+D54+P17 -> 802390.736
B58: ="CO2 emissions from fuel combustion - 2030 - "&Assumptions!C9 -> CO2 emissions from fuel combustion - 2030 - Country X
B59: ktCO2 | D59: LPG | E59: Gasoline | F59: Jet Fuel | G59: Diesel | H59: Fueloil | I59: Kerosene and other | J59: Total oil products | K59: Coal | L59: Lignite | M59: Gas | N59: Coke | O59: Petrocoke | P59: Total
B60: Unit | D60: kt | E60: kt | F60: kt | G60: kt | H60: kt | I60: kt | J60: kt | K60: kt | L60: kt | M60: kt | N60: kt | O60: kt | P60: kt
B61: Total | D61: =+D62+D63 -> 28560.49832 | E61: 15089.23347 | F61: 10078.04489 | G61: 154833.4592 | H61: 3487.431805 | I61: 447.02984 | J61: 212495.6976 | K61: 159934.4256 | L61: 250348.437 | M61: 233374.5678 | N61: =+N62+N63 -> 35831.12368 | O61: =+O62+O63 -> 30492.02245 | P61: =+P62+P63 -> 922476.274
B62: Fossil power plants | D62: ='GHG Balance'!D14*'BAU projected Energy Balances'!D133 -> 0 | E62: ='GHG Balance'!E14*'BAU projected Energy Balances'!E133 -> 0 | F62: ='GHG Balance'!F14*'BAU projected Energy Balances'!F133 -> 0 | G62: ='GHG Balance'!G14*'BAU projected Energy Balances'!G133 -> 1830.528205 | H62: ='GHG Balance'!H14*'BAU projected Energy Balances'!H133 -> 1691.553461 | I62: ='GHG Balance'!I14*'BAU projected Energy Balances'!I133 -> 0 | J62: =SUM(D62:I62) -> 3522.081666 | K62: ='GHG Balance'!K14*'BAU projected Energy Balances'!K133 -> 90942.43901 | L62: ='GHG Balance'!L14*'BAU projected Energy Balances'!L133 -> 218574.4331 | M62: ='GHG Balance'!M14*'BAU projected Energy Balances'!M133 -> 102807.9256 | N62: ='GHG Balance'!N14*'BAU projected Energy Balances'!N133 -> 0 | O62: ='GHG Balance'!O14*'BAU projected Energy Balances'!O133 -> 0 | P62: =SUM(J62:O62) -> 415846.8794
B63: FINAL CONSUMPTION | D63: =SUM(D64:D83) -> 28560.49832 | E63: 15089.23347 | F63: 10078.04489 | G63: 153002.931 | H63: 1795.878344 | I63: 447.02984 | J63: =SUM(D63:I63) -> 208973.6159 | K63: =SUM(K64:K83) -> 68991.98658 | L63: 31774.00383 | M63: 130566.6422 | N63: 35831.12368 | O63: 30492.02245 | P63: 506629.3947
B64: Industry - steel | D64: =+'GHG Balance'!D18*(1+Growth!$I19) -> 0 | E64: =+'GHG Balance'!E18*(1+Growth!$I19) -> 0 | F64: =+'GHG Balance'!F18*(1+Growth!$I19) -> 0 | G64: =+'GHG Balance'!G18*(1+Growth!$I19) -> 130.7520146 | H64: =+'GHG Balance'!H18*(1+Growth!$I19) -> 0 | I64: =+'GHG Balance'!I18*(1+Growth!$I19) -> 0 | J64: =SUM(D64:I64) -> 130.7520146 | K64: =+'GHG Balance'!K18*(1+Growth!$I19) -> 96.19945636 | L64: =+'GHG Balance'!L18*(1+Growth!$I19) -> 115.3965777 | M64: =+'GHG Balance'!M18*(1+Growth!$I19) -> 1205.988824 | N64: =+'GHG Balance'!N18*(1+Growth!$I19) -> 0 | O64: =+'GHG Balance'!O18*(1+Growth!$I19) -> 0 | P64: =SUM(J64:O64) -> 1548.336873
B65: Industry - chemical | D65: =+'GHG Balance'!D19*(1+Growth!$I20) -> 64.34154816 | E65: =+'GHG Balance'!E19*(1+Growth!$I20) -> 0 | F65: =+'GHG Balance'!F19*(1+Growth!$I20) -> 0 | G65: =+'GHG Balance'!G19*(1+Growth!$I20) -> 30.76517992 | H65: =+'GHG Balance'!H19*(1+Growth!$I20) -> 22.35533208 | I65: =+'GHG Balance'!I19*(1+Growth!$I20) -> 0 | J65: 117.4620602 | K65: =+'GHG Balance'!K19*(1+Growth!$I20) -> 2229.563871 | L65: =+'GHG Balance'!L19*(1+Growth!$I20) -> 1442.457221 | M65: =+'GHG Balance'!M19*(1+Growth!$I20) -> 13580.48285 | N65: =+'GHG Balance'!N19*(1+Growth!$I20) -> 0 | O65: =+'GHG Balance'!O19*(1+Growth!$I20) -> 0 | P65: 17369.966
B66: Industry - non metallic mineral | D66: =+'GHG Balance'!D20*(1+Growth!$I21) -> 21.44718272 | E66: =+'GHG Balance'!E20*(1+Growth!$I21) -> 0 | F66: =+'GHG Balance'!F20*(1+Growth!$I21) -> 0 | G66: =+'GHG Balance'!G20*(1+Growth!$I21) -> 184.5910795 | H66: =+'GHG Balance'!H20*(1+Growth!$I21) -> 134.1319925 | I66: =+'GHG Balance'!I20*(1+Growth!$I21) -> 0 | J66: 340.1702547 | K66: =+'GHG Balance'!K20*(1+Growth!$I21) -> 18713.62366 | L66: =+'GHG Balance'!L20*(1+Growth!$I21) -> 6240.291855 | M66: =+'GHG Balance'!M20*(1+Growth!$I21) -> 9878.6215 | N66: =+'GHG Balance'!N20*(1+Growth!$I21) -> 0 | O66: =+'GHG Balance'!O20*(1+Growth!$I21) -> 30439.86112 | P66: 65612.56839
B67: Industry - food processing and beverage | D67: =+'GHG Balance'!D21*(1+Growth!$I22) -> 142.9812181 | E67: =+'GHG Balance'!E21*(1+Growth!$I22) -> 0 | F67: =+'GHG Balance'!F21*(1+Growth!$I22) -> 0 | G67: =+'GHG Balance'!G21*(1+Growth!$I22) -> 46.14776988 | H67: =+'GHG Balance'!H21*(1+Growth!$I22) -> 275.7157624 | I67: =+'GHG Balance'!I21*(1+Growth!$I22) -> 0 | J67: 464.8447504 | K67: =+'GHG Balance'!K21*(1+Growth!$I22) -> 1290.204474 | L67: =+'GHG Balance'!L21*(1+Growth!$I22) -> 3492.96564 | M67: =+'GHG Balance'!M21*(1+Growth!$I22) -> 5149.047937 | N67: =+'GHG Balance'!N21*(1+Growth!$I22) -> 355.7700224 | O67: =+'GHG Balance'!O21*(1+Growth!$I22) -> 52.16132873 | P67: 10804.99415
B68: Industry - construction | D68: =+'GHG Balance'!D22*(1+Growth!$I23) -> 0 | E68: =+'GHG Balance'!E22*(1+Growth!$I23) -> 0 | F68: =+'GHG Balance'!F22*(1+Growth!$I23) -> 0 | G68: =+'GHG Balance'!G22*(1+Growth!$I23) -> 1130.620362 | H68: =+'GHG Balance'!H22*(1+Growth!$I23) -> 0 | I68: =+'GHG Balance'!I22*(1+Growth!$I23) -> 0 | J68: 1130.620362 | K68: =+'GHG Balance'!K22*(1+Growth!$I23) -> 5.65879155 | L68: =+'GHG Balance'!L22*(1+Growth!$I23) -> 13.31498973 | M68: =+'GHG Balance'!M22*(1+Growth!$I23) -> 1887.634681 | N68: =+'GHG Balance'!N22*(1+Growth!$I23) -> 0 | O68: =+'GHG Balance'!O22*(1+Growth!$I23) -> 0 | P68: 3037.228825
B69: Industry - mining | D69: =+'GHG Balance'!D23*(1+Growth!$I24) -> 0 | E69: =+'GHG Balance'!E23*(1+Growth!$I24) -> 0 | F69: =+'GHG Balance'!F23*(1+Growth!$I24) -> 0 | G69: =+'GHG Balance'!G23*(1+Growth!$I24) -> 2891.926912 | H69: =+'GHG Balance'!H23*(1+Growth!$I24) -> 0 | I69: =+'GHG Balance'!I23*(1+Growth!$I24) -> 0 | J69: 2891.926912 | K69: =+'GHG Balance'!K23*(1+Growth!$I24) -> 107.5170395 | L69: =+'GHG Balance'!L23*(1+Growth!$I24) -> 417.2030117 | M69: =+'GHG Balance'!M23*(1+Growth!$I24) -> 681.6458572 | N69: =+'GHG Balance'!N23*(1+Growth!$I24) -> 0 | O69: =+'GHG Balance'!O23*(1+Growth!$I24) -> 0 | P69: 4098.292821
B70: Industry - machinery | D70: =+'GHG Balance'!D24*(1+Growth!$I25) -> 35.74530453 | E70: =+'GHG Balance'!E24*(1+Growth!$I25) -> 0 | F70: =+'GHG Balance'!F24*(1+Growth!$I25) -> 0 | G70: =+'GHG Balance'!G24*(1+Growth!$I25) -> 23.07388494 | H70: =+'GHG Balance'!H24*(1+Growth!$I25) -> 0 | I70: =+'GHG Balance'!I24*(1+Growth!$I25) -> 0 | J70: 58.81918947 | K70: =+'GHG Balance'!K24*(1+Growth!$I25) -> 16.97637465 | L70: =+'GHG Balance'!L24*(1+Growth!$I25) -> 75.45160849 | M70: =+'GHG Balance'!M24*(1+Growth!$I25) -> 361.7966473 | N70: =+'GHG Balance'!N24*(1+Growth!$I25) -> 0 | O70: =+'GHG Balance'!O24*(1+Growth!$I25) -> 0 | P70: 513.0438199
B71: Industry - non ferrous metals | D71: =+'GHG Balance'!D25*(1+Growth!$I26) -> 264.5152535 | E71: =+'GHG Balance'!E25*(1+Growth!$I26) -> 0 | F71: =+'GHG Balance'!F25*(1+Growth!$I26) -> 0 | G71: =+'GHG Balance'!G25*(1+Growth!$I26) -> 99.98683473 | H71: =+'GHG Balance'!H25*(1+Growth!$I26) -> 0 | I71: =+'GHG Balance'!I25*(1+Growth!$I26) -> 0 | J71: 364.5020883 | K71: =+'GHG Balance'!K25*(1+Growth!$I26) -> 6145.447624 | L71: =+'GHG Balance'!L25*(1+Growth!$I26) -> 301.806434 | M71: =+'GHG Balance'!M25*(1+Growth!$I26) -> 10785.73483 | N71: =+'GHG Balance'!N25*(1+Growth!$I26) -> 35126.84425 | O71: =+'GHG Balance'!O25*(1+Growth!$I26) -> 0 | P71: 52724.33523
B72: Industry - paper and pulp | D72: =+'GHG Balance'!D26*(1+Growth!$I27) -> 7.149060906 | E72: =+'GHG Balance'!E26*(1+Growth!$I27) -> 0 | F72: =+'GHG Balance'!F26*(1+Growth!$I27) -> 0 | G72: =+'GHG Balance'!G26*(1+Growth!$I27) -> 76.91294979 | H72: =+'GHG Balance'!H26*(1+Growth!$I27) -> 0 | I72: =+'GHG Balance'!I26*(1+Growth!$I27) -> 0 | J72: 84.0620107 | K72: =+'GHG Balance'!K26*(1+Growth!$I27) -> 243.3280367 | L72: =+'GHG Balance'!L26*(1+Growth!$I27) -> 896.5426421 | M72: =+'GHG Balance'!M26*(1+Growth!$I27) -> 1164.041387 | N72: =+'GHG Balance'!N26*(1+Growth!$I27) -> 0 | O72: =+'GHG Balance'!O26*(1+Growth!$I27) -> 0 | P72: 2387.974076
B73: Industry - transport equipment | D73: =+'GHG Balance'!D27*(1+Growth!$I28) -> 164.4284008 | E73: =+'GHG Balance'!E27*(1+Growth!$I28) -> 0 | F73: =+'GHG Balance'!F27*(1+Growth!$I28) -> 0 | G73: =+'GHG Balance'!G27*(1+Growth!$I28) -> 53.83906486 | H73: =+'GHG Balance'!H27*(1+Growth!$I28) -> 0 | I73: =+'GHG Balance'!I27*(1+Growth!$I28) -> 0 | J73: 218.2674657 | K73: =+'GHG Balance'!K27*(1+Growth!$I28) -> 0 | L73: =+'GHG Balance'!L27*(1+Growth!$I28) -> 35.50663929 | M73: =+'GHG Balance'!M27*(1+Growth!$I28) -> 933.3304814 | N73: =+'GHG Balance'!N27*(1+Growth!$I28) -> 0 | O73: =+'GHG Balance'!O27*(1+Growth!$I28) -> 0 | P73: 1187.104586
B74: Industry - textile and leather | D74: =+'GHG Balance'!D28*(1+Growth!$I29) -> 85.78873088 | E74: =+'GHG Balance'!E28*(1+Growth!$I29) -> 0 | F74: =+'GHG Balance'!F28*(1+Growth!$I29) -> 0 | G74: =+'GHG Balance'!G28*(1+Growth!$I29) -> 46.14776988 | H74: =+'GHG Balance'!H28*(1+Growth!$I29) -> 0 | I74: =+'GHG Balance'!I28*(1+Growth!$I29) -> 0 | J74: 131.9365008 | K74: =+'GHG Balance'!K28*(1+Growth!$I29) -> 2008.871 | L74: =+'GHG Balance'!L28*(1+Growth!$I29) -> 4820.026284 | M74: =+'GHG Balance'!M28*(1+Growth!$I29) -> 6281.628745 | N74: =+'GHG Balance'!N28*(1+Growth!$I29) -> 0 | O74: =+'GHG Balance'!O28*(1+Growth!$I29) -> 0 | P74: 13242.46253
B75: Industry - miscellaneous | D75: =+'GHG Balance'!D29*(1+Growth!$I30) -> 0 | E75: =+'GHG Balance'!E29*(1+Growth!$I30) -> 0 | F75: =+'GHG Balance'!F29*(1+Growth!$I30) -> 0 | G75: =+'GHG Balance'!G29*(1+Growth!$I30) -> 0 | H75: =+'GHG Balance'!H29*(1+Growth!$I30) -> 0 | I75: =+'GHG Balance'!I29*(1+Growth!$I30) -> 0 | J75: 0 | K75: =+'GHG Balance'!K29*(1+Growth!$I30) -> 0 | L75: =+'GHG Balance'!L29*(1+Growth!$I30) -> 4.438329911 | M75: =+'GHG Balance'!M29*(1+Growth!$I30) -> 3256.169825 | N75: =+'GHG Balance'!N29*(1+Growth!$I30) -> 0 | O75: =+'GHG Balance'!O29*(1+Growth!$I30) -> 0 | P75: 3260.608155
B76: Transport - road | D76: =+'GHG Balance'!D30*(1+Growth!$I34) -> 21940.46792 | E76: =+'GHG Balance'!E30*(1+Growth!$I34) -> 15089.23347 | F76: =+'GHG Balance'!F30*(1+Growth!$I34) -> 0 | G76: =+'GHG Balance'!G30*(1+Growth!$I34) -> 126352.5939 | H76: =+'GHG Balance'!H30*(1+Growth!$I34) -> 0 | I76: =+'GHG Balance'!I30*(1+Growth!$I34) -> 0 | J76: 163382.2953 | K76: =+'GHG Balance'!K30*(1+Growth!$I34) -> 0 | L76: =+'GHG Balance'!L30*(1+Growth!$I34) -> 0 | M76: =+'GHG Balance'!M30*(1+Growth!$I34) -> 450.9349517 | N76: =+'GHG Balance'!N30*(1+Growth!$I34) -> 0 | O76: =+'GHG Balance'!O30*(1+Growth!$I34) -> 0 | P76: 163833.2303
B77: Transport - rail | D77: =+'GHG Balance'!D31*(1+Growth!$I35) -> 0 | E77: =+'GHG Balance'!E31*(1+Growth!$I35) -> 0 | F77: =+'GHG Balance'!F31*(1+Growth!$I35) -> 0 | G77: =+'GHG Balance'!G31*(1+Growth!$I35) -> 1038.324822 | H77: =+'GHG Balance'!H31*(1+Growth!$I35) -> 0 | I77: =+'GHG Balance'!I31*(1+Growth!$I35) -> 0 | J77: 1038.324822 | K77: =+'GHG Balance'!K31*(1+Growth!$I35) -> 0 | L77: =+'GHG Balance'!L31*(1+Growth!$I35) -> 0 | M77: =+'GHG Balance'!M31*(1+Growth!$I35) -> 0 | N77: =+'GHG Balance'!N31*(1+Growth!$I35) -> 0 | O77: =+'GHG Balance'!O31*(1+Growth!$I35) -> 0 | P77: 1038.324822
B78: Transport - domestic air | D78: =+'GHG Balance'!D32*(1+Growth!$I36) -> 0 | E78: =+'GHG Balance'!E32*(1+Growth!$I36) -> 0 | F78: =+'GHG Balance'!F32*(1+Growth!$I36) -> 10078.04489 | G78: =+'GHG Balance'!G32*(1+Growth!$I36) -> 0 | H78: =+'GHG Balance'!H32*(1+Growth!$I36) -> 0 | I78: =+'GHG Balance'!I32*(1+Growth!$I36) -> 0 | J78: 10078.04489 | K78: =+'GHG Balance'!K32*(1+Growth!$I36) -> 0 | L78: =+'GHG Balance'!L32*(1+Growth!$I36) -> 0 | M78: =+'GHG Balance'!M32*(1+Growth!$I36) -> 0 | N78: =+'GHG Balance'!N32*(1+Growth!$I36) -> 0 | O78: =+'GHG Balance'!O32*(1+Growth!$I36) -> 0 | P78: 10078.04489
B79: Transport - navigation | D79: =+'GHG Balance'!D33*(1+Growth!$I37) -> 0 | E79: =+'GHG Balance'!E33*(1+Growth!$I37) -> 0 | F79: =+'GHG Balance'!F33*(1+Growth!$I37) -> 0 | G79: =+'GHG Balance'!G33*(1+Growth!$I37) -> 0 | H79: =+'GHG Balance'!H33*(1+Growth!$I37) -> 1363.675257 | I79: =+'GHG Balance'!I33*(1+Growth!$I37) -> 0 | J79: 1363.675257 | K79: =+'GHG Balance'!K33*(1+Growth!$I37) -> 0 | L79: =+'GHG Balance'!L33*(1+Growth!$I37) -> 0 | M79: =+'GHG Balance'!M33*(1+Growth!$I37) -> 0 | N79: =+'GHG Balance'!N33*(1+Growth!$I37) -> 0 | O79: =+'GHG Balance'!O33*(1+Growth!$I37) -> 0 | P79: 1363.675257
B80: Households | D80: =+'GHG Balance'!D34*(1+Growth!$I40) -> 1751.519922 | E80: =+'GHG Balance'!E34*(1+Growth!$I40) -> 0 | F80: =+'GHG Balance'!F34*(1+Growth!$I40) -> 0 | G80: =+'GHG Balance'!G34*(1+Growth!$I40) -> 0 | H80: =+'GHG Balance'!H34*(1+Growth!$I40) -> 0 | I80: =+'GHG Balance'!I34*(1+Growth!$I41) -> 447.02984 | J80: 2198.549762 | K80: =+'GHG Balance'!K34*(1+Growth!$I40) -> 8578.727991 | L80: =+'GHG Balance'!L34*(1+Growth!$I40) -> 10323.55537 | M80: =+'GHG Balance'!M34*(1+Growth!$I40) -> 57677.72638 | N80: =+'GHG Balance'!N34*(1+Growth!$I40) -> 0 | O80: =+'GHG Balance'!O34*(1+Growth!$I40) -> 0 | P80: 78778.5595
B81: Services | D81: =+'GHG Balance'!D35*(1+Growth!$I44) -> 4082.113778 | E81: =+'GHG Balance'!E35*(1+Growth!$I44) -> 0 | F81: =+'GHG Balance'!F35*(1+Growth!$I44) -> 0 | G81: =+'GHG Balance'!G35*(1+Growth!$I44) -> 0 | H81: =+'GHG Balance'!H35*(1+Growth!$I44) -> 0 | I81: =+'GHG Balance'!I35*(1+Growth!$I44) -> 0 | J81: 4082.113778 | K81: =+'GHG Balance'!K35*(1+Growth!$I44) -> 29555.86827 | L81: =+'GHG Balance'!L35*(1+Growth!$I44) -> 3595.047228 | M81: =+'GHG Balance'!M35*(1+Growth!$I44) -> 16574.48119 | N81: =+'GHG Balance'!N35*(1+Growth!$I44) -> 348.5094097 | O81: =+'GHG Balance'!O35*(1+Growth!$I44) -> 0 | P81: 54156.01987
B82: Agriculture & Fishery | D82: =+'GHG Balance'!D36*(1+Growth!$I47) -> 0 | E82: =+'GHG Balance'!E36*(1+Growth!$I47) -> 0 | F82: =+'GHG Balance'!F36*(1+Growth!$I47) -> 0 | G82: =+'GHG Balance'!G36*(1+Growth!$I47) -> 20897.24846 | H82: =+'GHG Balance'!H36*(1+Growth!$I47) -> 0 | I82: =+'GHG Balance'!I36*(1+Growth!$I47) -> 0 | J82: 20897.24846 | K82: =+'GHG Balance'!K36*(1+Growth!$I47) -> 0 | L82: =+'GHG Balance'!L36*(1+Growth!$I47) -> 0 | M82: =+'GHG Balance'!M36*(1+Growth!$I47) -> 697.3761462 | N82: =+'GHG Balance'!N36*(1+Growth!$I47) -> 0 | O82: =+'GHG Balance'!O36*(1+Growth!$I47) -> 0 | P82: 21594.6246
B83: Non energy uses | D83: =+'GHG Balance'!D37*(1+Growth!$I49) -> 0 | E83: =+'GHG Balance'!E37*(1+Growth!$I49) -> 0 | F83: =+'GHG Balance'!F37*(1+Growth!$I49) -> 0 | G83: =+'GHG Balance'!G37*(1+Growth!$I49) -> 0 | H83: =+'GHG Balance'!H37*(1+Growth!$I49) -> 0 | I83: =+'GHG Balance'!I37*(1+Growth!$I49) -> 0 | J83: 0 | K83: =+'GHG Balance'!K37*(1+Growth!$I49) -> 0 | L83: =+'GHG Balance'!L37*(1+Growth!$I49) -> 0 | M83: =+'GHG Balance'!M37*(1+Growth!$I49) -> 0 | N83: =+'GHG Balance'!N37*(1+Growth!$I49) -> 0 | O83: =+'GHG Balance'!O37*(1+Growth!$I49) -> 0 | P83: 0
B85: Non-CO2 emissions, non-fuel combustion sectors | D85: ktCO2e
B86: CH4 from energy combustion | D86: =IF(P61=0,0,+'GHG Balance'!D41*'BAU projected GHG Balances'!P63/'GHG Balance'!P17) -> 12128.98102
B87: N2O from energy combustion | D87: =IF(P62=0,0,+'GHG Balance'!D42*'BAU projected GHG Balances'!P64/'GHG Balance'!P18) -> 9286.662998
B88: Total Agriculture | D88: =SUM(D89:D93) -> 88199.65139
B89: Enteric fermentation | D89: =+'GHG Balance'!D44*(1+Growth!I$50) -> 41890.6279
B90: Manure management | D90: =+'GHG Balance'!D45*(1+Growth!I$50) -> 9821.426594
B91: Rice cultivation | D91: =+'GHG Balance'!D46*(1+Growth!I$51) -> 311.5934833
B92: N2O from agricultural soils | D92: =+'GHG Balance'!D47*(1+Growth!I$52) -> 35643.17856
B93: Burning of agricultural residues | D93: =+'GHG Balance'!D48*(1+Growth!I$53) -> 532.8248565
B94: Fugitive (CH4) | D94: =IF('GHG Balance'!M15=0,0,'GHG Balance'!D49*'BAU projected GHG Balances'!M61/'GHG Balance'!M15) -> 9900.181896
B95: Forestry | D95: =+'GHG Balance'!D50*(1+Growth!I$54) -> -64020
B96: Waste - solid | D96: =+'GHG Balance'!D51*(1+Growth!I56) -> 16880
B97: Waste - liquid | D97: =+'GHG Balance'!D52*(1+Growth!I57) -> 0
B98: Industrial processes | D98: =+'GHG Balance'!D53*(1+Growth!I32) -> 60720
B99: Total Non-CO2 emissions, non-fuel combustion sectors | D99: =D86+D87+D88+D94+D95+D96+D97+D98 -> 133095.4773
B100: Total GHG emission | D100: =+D86+D87+D88+D94+D95+D96+D97+D98+P61 -> 1055571.751
B102: ="CO2 emissions from fuel combustion - 2035 - "&Assumptions!C9 -> CO2 emissions from fuel combustion - 2035 - Country X
B103: ktCO2 | D103: LPG | E103: Gasoline | F103: Jet Fuel | G103: Diesel | H103: Fueloil | I103: Kerosene and other | J103: Total oil products | K103: Coal | L103: Lignite | M103: Gas | N103: Coke | O103: Petrocoke | P103: Total
B104: Unit | D104: kt | E104: kt | F104: kt | G104: kt | H104: kt | I104: kt | J104: kt | K104: kt | L104: kt | M104: kt | N104: kt | O104: kt | P104: kt
B105: Total | D105: =+D106+D107 -> 38220.38936 | E105: 20192.79817 | F105: 13486.69745 | G105: 207202.0954 | H105: 4666.970442 | I105: 598.2267658 | J105: 284367.1776 | K105: 214028.3391 | L105: 335022.6817 | M105: 312307.8158 | N105: 47950.12619 | O105: 40805.20436 | P105: 1234481.345
B106: Fossil power plants | D106: ='GHG Balance'!D14*'BAU projected Energy Balances'!D219 -> 0 | E106: ='GHG Balance'!E14*'BAU projected Energy Balances'!E219 -> 0 | F106: ='GHG Balance'!F14*'BAU projected Energy Balances'!F219 -> 0 | G106: ='GHG Balance'!G14*'BAU projected Energy Balances'!G219 -> 2449.659665 | H106: ='GHG Balance'!H14*'BAU projected Energy Balances'!H219 -> 2263.680107 | I106: ='GHG Balance'!I14*'BAU projected Energy Balances'!I219 -> 0 | J106: =SUM(D106:I106) -> 4713.339772 | K106: ='GHG Balance'!K14*'BAU projected Energy Balances'!K219 -> 121701.498 | L106: ='GHG Balance'!L14*'BAU projected Energy Balances'!L219 -> 292501.897 | M106: ='GHG Balance'!M14*'BAU projected Energy Balances'!M219 -> 137580.1956 | N106: ='GHG Balance'!N14*'BAU projected Energy Balances'!N219 -> 0 | O106: ='GHG Balance'!O14*'BAU projected Energy Balances'!O219 -> 0 | P106: =SUM(J106:O106) -> 556496.9303
B107: FINAL CONSUMPTION | D107: =SUM(D108:D127) -> 38220.38936 | E107: 20192.79817 | F107: 13486.69745 | G107: 204752.4357 | H107: 2403.290334 | I107: 598.2267658 | J107: 279653.8378 | K107: =SUM(K108:K127) -> 92326.8411 | L107: =SUM(L108:L127) -> 42520.78463 | M107: 174727.6202 | N107: 47950.12619 | O107: 40805.20436 | P107: 677984.4143
B108: Industry - steel | D108: =+'GHG Balance'!D18*(1+Growth!$J19) -> 0 | E108: =+'GHG Balance'!E18*(1+Growth!$J19) -> 0 | F108: =+'GHG Balance'!F18*(1+Growth!$J19) -> 0 | G108: =+'GHG Balance'!G18*(1+Growth!$J19) -> 174.9756903 | H108: =+'GHG Balance'!H18*(1+Growth!$J19) -> 0 | I108: =+'GHG Balance'!I18*(1+Growth!$J19) -> 0 | J108: 174.9756903 | K108: =+'GHG Balance'!K18*(1+Growth!$J19) -> 128.736573 | L108: =+'GHG Balance'!L18*(1+Growth!$J19) -> 154.4266518 | M108: =+'GHG Balance'!M18*(1+Growth!$J19) -> 1613.885091 | N108: =+'GHG Balance'!N18*(1+Growth!$J19) -> 0 | O108: =+'GHG Balance'!O18*(1+Growth!$J19) -> 0 | P108: =SUM(J108:O108) -> 2072.024006
B109: Industry - chemical | D109: =+'GHG Balance'!D19*(1+Growth!$J20) -> 86.10350545 | E109: =+'GHG Balance'!E19*(1+Growth!$J20) -> 0 | F109: =+'GHG Balance'!F19*(1+Growth!$J20) -> 0 | G109: =+'GHG Balance'!G19*(1+Growth!$J20) -> 41.17075066 | H109: =+'GHG Balance'!H19*(1+Growth!$J20) -> 29.91647719 | I109: =+'GHG Balance'!I19*(1+Growth!$J20) -> 0 | J109: 157.1907333 | K109: =+'GHG Balance'!K19*(1+Growth!$J20) -> 2983.659399 | L109: =+'GHG Balance'!L19*(1+Growth!$J20) -> 1930.333148 | M109: =+'GHG Balance'!M19*(1+Growth!$J20) -> 18173.7495 | N109: =+'GHG Balance'!N19*(1+Growth!$J20) -> 0 | O109: =+'GHG Balance'!O19*(1+Growth!$J20) -> 0 | P109: 23244.93278
B110: Industry - non metallic mineral | D110: =+'GHG Balance'!D20*(1+Growth!$J21) -> 28.70116848 | E110: =+'GHG Balance'!E20*(1+Growth!$J21) -> 0 | F110: =+'GHG Balance'!F20*(1+Growth!$J21) -> 0 | G110: =+'GHG Balance'!G20*(1+Growth!$J21) -> 247.024504 | H110: =+'GHG Balance'!H20*(1+Growth!$J21) -> 179.4988631 | I110: =+'GHG Balance'!I20*(1+Growth!$J21) -> 0 | J110: 455.2245356 | K110: =+'GHG Balance'!K20*(1+Growth!$J21) -> 25043.04983 | L110: =+'GHG Balance'!L20*(1+Growth!$J21) -> 8350.918172 | M110: =+'GHG Balance'!M20*(1+Growth!$J21) -> 13219.82396 | N110: =+'GHG Balance'!N20*(1+Growth!$J21) -> 0 | O110: =+'GHG Balance'!O20*(1+Growth!$J21) -> 40735.40073 | P110: 87804.41723
B111: Industry - food processing and beverage | D111: =+'GHG Balance'!D21*(1+Growth!$J22) -> 191.3411232 | E111: =+'GHG Balance'!E21*(1+Growth!$J22) -> 0 | F111: =+'GHG Balance'!F21*(1+Growth!$J22) -> 0 | G111: =+'GHG Balance'!G21*(1+Growth!$J22) -> 61.756126 | H111: =+'GHG Balance'!H21*(1+Growth!$J22) -> 368.9698854 | I111: =+'GHG Balance'!I21*(1+Growth!$J22) -> 0 | J111: 622.0671346 | K111: =+'GHG Balance'!K21*(1+Growth!$J22) -> 1726.584627 | L111: =+'GHG Balance'!L21*(1+Growth!$J22) -> 4674.375961 | M111: =+'GHG Balance'!M21*(1+Growth!$J22) -> 6890.587649 | N111: =+'GHG Balance'!N21*(1+Growth!$J22) -> 476.1005437 | O111: =+'GHG Balance'!O21*(1+Growth!$J22) -> 69.80362427 | P111: 14459.51954
B112: Industry - construction | D112: =+'GHG Balance'!D22*(1+Growth!$J23) -> 0 | E112: =+'GHG Balance'!E22*(1+Growth!$J23) -> 0 | F112: =+'GHG Balance'!F22*(1+Growth!$J23) -> 0 | G112: =+'GHG Balance'!G22*(1+Growth!$J23) -> 1513.025087 | H112: =+'GHG Balance'!H22*(1+Growth!$J23) -> 0 | I112: =+'GHG Balance'!I22*(1+Growth!$J23) -> 0 | J112: 1513.025087 | K112: =+'GHG Balance'!K22*(1+Growth!$J23) -> 7.572739591 | L112: =+'GHG Balance'!L22*(1+Growth!$J23) -> 17.81845983 | M112: =+'GHG Balance'!M22*(1+Growth!$J23) -> 2526.081012 | N112: =+'GHG Balance'!N22*(1+Growth!$J23) -> 0 | O112: =+'GHG Balance'!O22*(1+Growth!$J23) -> 0 | P112: 4064.497298
B113: Industry - mining | D113: =+'GHG Balance'!D23*(1+Growth!$J24) -> 0 | E113: =+'GHG Balance'!E23*(1+Growth!$J24) -> 0 | F113: =+'GHG Balance'!F23*(1+Growth!$J24) -> 0 | G113: =+'GHG Balance'!G23*(1+Growth!$J24) -> 3870.050562 | H113: =+'GHG Balance'!H23*(1+Growth!$J24) -> 0 | I113: =+'GHG Balance'!I23*(1+Growth!$J24) -> 0 | J113: 3870.050562 | K113: =+'GHG Balance'!K23*(1+Growth!$J24) -> 143.8820522 | L113: =+'GHG Balance'!L23*(1+Growth!$J24) -> 558.3117413 | M113: =+'GHG Balance'!M23*(1+Growth!$J24) -> 912.195921 | N113: =+'GHG Balance'!N23*(1+Growth!$J24) -> 0 | O113: =+'GHG Balance'!O23*(1+Growth!$J24) -> 0 | P113: 5484.440277
B114: Industry - machinery | D114: =+'GHG Balance'!D24*(1+Growth!$J25) -> 47.8352808 | E114: =+'GHG Balance'!E24*(1+Growth!$J25) -> 0 | F114: =+'GHG Balance'!F24*(1+Growth!$J25) -> 0 | G114: =+'GHG Balance'!G24*(1+Growth!$J25) -> 30.878063 | H114: =+'GHG Balance'!H24*(1+Growth!$J25) -> 0 | I114: =+'GHG Balance'!I24*(1+Growth!$J25) -> 0 | J114: 78.7133438 | K114: =+'GHG Balance'!K24*(1+Growth!$J25) -> 22.71821877 | L114: =+'GHG Balance'!L24*(1+Growth!$J25) -> 100.9712724 | M114: =+'GHG Balance'!M24*(1+Growth!$J25) -> 484.1655273 | N114: =+'GHG Balance'!N24*(1+Growth!$J25) -> 0 | O114: =+'GHG Balance'!O24*(1+Growth!$J25) -> 0 | P114: 686.5683622
B115: Industry - non ferrous metals | D115: =+'GHG Balance'!D25*(1+Growth!$J26) -> 353.981078 | E115: =+'GHG Balance'!E25*(1+Growth!$J26) -> 0 | F115: =+'GHG Balance'!F25*(1+Growth!$J26) -> 0 | G115: =+'GHG Balance'!G25*(1+Growth!$J26) -> 133.8049397 | H115: =+'GHG Balance'!H25*(1+Growth!$J26) -> 0 | I115: =+'GHG Balance'!I25*(1+Growth!$J26) -> 0 | J115: 487.7860176 | K115: =+'GHG Balance'!K25*(1+Growth!$J26) -> 8223.995196 | L115: =+'GHG Balance'!L25*(1+Growth!$J26) -> 403.8850894 | M115: =+'GHG Balance'!M25*(1+Growth!$J26) -> 14433.74623 | N115: =+'GHG Balance'!N25*(1+Growth!$J26) -> 47007.64144 | O115: =+'GHG Balance'!O25*(1+Growth!$J26) -> 0 | P115: 70557.05397
B116: Industry - paper and pulp | D116: =+'GHG Balance'!D26*(1+Growth!$J27) -> 9.567056161 | E116: =+'GHG Balance'!E26*(1+Growth!$J27) -> 0 | F116: =+'GHG Balance'!F26*(1+Growth!$J27) -> 0 | G116: =+'GHG Balance'!G26*(1+Growth!$J27) -> 102.9268767 | H116: =+'GHG Balance'!H26*(1+Growth!$J27) -> 0 | I116: =+'GHG Balance'!I26*(1+Growth!$J27) -> 0 | J116: 112.4939328 | K116: =+'GHG Balance'!K26*(1+Growth!$J27) -> 325.6278024 | L116: =+'GHG Balance'!L26*(1+Growth!$J27) -> 1199.776295 | M116: =+'GHG Balance'!M26*(1+Growth!$J27) -> 1557.749957 | N116: =+'GHG Balance'!N26*(1+Growth!$J27) -> 0 | O116: =+'GHG Balance'!O26*(1+Growth!$J27) -> 0 | P116: 3195.647988
B117: Industry - transport equipment | D117: =+'GHG Balance'!D27*(1+Growth!$J28) -> 220.0422917 | E117: =+'GHG Balance'!E27*(1+Growth!$J28) -> 0 | F117: =+'GHG Balance'!F27*(1+Growth!$J28) -> 0 | G117: =+'GHG Balance'!G27*(1+Growth!$J28) -> 72.04881366 | H117: =+'GHG Balance'!H27*(1+Growth!$J28) -> 0 | I117: =+'GHG Balance'!I27*(1+Growth!$J28) -> 0 | J117: 292.0911054 | K117: =+'GHG Balance'!K27*(1+Growth!$J28) -> 0 | L117: =+'GHG Balance'!L27*(1+Growth!$J28) -> 47.51589287 | M117: =+'GHG Balance'!M27*(1+Growth!$J28) -> 1249.006723 | N117: =+'GHG Balance'!N27*(1+Growth!$J28) -> 0 | O117: =+'GHG Balance'!O27*(1+Growth!$J28) -> 0 | P117: 1588.613721
B118: Industry - textile and leather | D118: =+'GHG Balance'!D28*(1+Growth!$J29) -> 114.8046739 | E118: =+'GHG Balance'!E28*(1+Growth!$J29) -> 0 | F118: =+'GHG Balance'!F28*(1+Growth!$J29) -> 0 | G118: =+'GHG Balance'!G28*(1+Growth!$J29) -> 61.756126 | H118: =+'GHG Balance'!H28*(1+Growth!$J29) -> 0 | I118: =+'GHG Balance'!I28*(1+Growth!$J29) -> 0 | J118: 176.5607999 | K118: =+'GHG Balance'!K28*(1+Growth!$J29) -> 2688.322555 | L118: =+'GHG Balance'!L28*(1+Growth!$J29) -> 6450.282458 | M118: =+'GHG Balance'!M28*(1+Growth!$J29) -> 8406.236256 | N118: =+'GHG Balance'!N28*(1+Growth!$J29) -> 0 | O118: =+'GHG Balance'!O28*(1+Growth!$J29) -> 0 | P118: 17721.40207
B119: Industry - miscellaneous | D119: =+'GHG Balance'!D29*(1+Growth!$J30) -> 0 | E119: =+'GHG Balance'!E29*(1+Growth!$J30) -> 0 | F119: =+'GHG Balance'!F29*(1+Growth!$J30) -> 0 | G119: =+'GHG Balance'!G29*(1+Growth!$J30) -> 0 | H119: =+'GHG Balance'!H29*(1+Growth!$J30) -> 0 | I119: =+'GHG Balance'!I29*(1+Growth!$J30) -> 0 | J119: 0 | K119: =+'GHG Balance'!K29*(1+Growth!$J30) -> 0 | L119: =+'GHG Balance'!L29*(1+Growth!$J30) -> 5.939486609 | M119: =+'GHG Balance'!M29*(1+Growth!$J30) -> 4357.489745 | N119: =+'GHG Balance'!N29*(1+Growth!$J30) -> 0 | O119: =+'GHG Balance'!O29*(1+Growth!$J30) -> 0 | P119: 4363.429232
B120: Transport - road | D120: =+'GHG Balance'!D30*(1+Growth!$J34) -> 29361.29536 | E120: =+'GHG Balance'!E30*(1+Growth!$J34) -> 20192.79817 | F120: =+'GHG Balance'!F30*(1+Growth!$J34) -> 0 | G120: =+'GHG Balance'!G30*(1+Growth!$J34) -> 169088.273 | H120: =+'GHG Balance'!H30*(1+Growth!$J34) -> 0 | I120: =+'GHG Balance'!I30*(1+Growth!$J34) -> 0 | J120: 218642.3665 | K120: =+'GHG Balance'!K30*(1+Growth!$J34) -> 0 | L120: =+'GHG Balance'!L30*(1+Growth!$J34) -> 0 | M120: =+'GHG Balance'!M30*(1+Growth!$J34) -> 603.4526862 | N120: =+'GHG Balance'!N30*(1+Growth!$J34) -> 0 | O120: =+'GHG Balance'!O30*(1+Growth!$J34) -> 0 | P120: 219245.8192
B121: Transport - rail | D121: =+'GHG Balance'!D31*(1+Growth!$J35) -> 0 | E121: =+'GHG Balance'!E31*(1+Growth!$J35) -> 0 | F121: =+'GHG Balance'!F31*(1+Growth!$J35) -> 0 | G121: =+'GHG Balance'!G31*(1+Growth!$J35) -> 1389.512835 | H121: =+'GHG Balance'!H31*(1+Growth!$J35) -> 0 | I121: =+'GHG Balance'!I31*(1+Growth!$J35) -> 0 | J121: 1389.512835 | K121: =+'GHG Balance'!K31*(1+Growth!$J35) -> 0 | L121: =+'GHG Balance'!L31*(1+Growth!$J35) -> 0 | M121: =+'GHG Balance'!M31*(1+Growth!$J35) -> 0 | N121: =+'GHG Balance'!N31*(1+Growth!$J35) -> 0 | O121: =+'GHG Balance'!O31*(1+Growth!$J35) -> 0 | P121: 1389.512835
B122: Transport - domestic air | D122: =+'GHG Balance'!D32*(1+Growth!$J36) -> 0 | E122: =+'GHG Balance'!E32*(1+Growth!$J36) -> 0 | F122: =+'GHG Balance'!F32*(1+Growth!$J36) -> 13486.69745 | G122: =+'GHG Balance'!G32*(1+Growth!$J36) -> 0 | H122: =+'GHG Balance'!H32*(1+Growth!$J36) -> 0 | I122: =+'GHG Balance'!I32*(1+Growth!$J36) -> 0 | J122: 13486.69745 | K122: =+'GHG Balance'!K32*(1+Growth!$J36) -> 0 | L122: =+'GHG Balance'!L32*(1+Growth!$J36) -> 0 | M122: =+'GHG Balance'!M32*(1+Growth!$J36) -> 0 | N122: =+'GHG Balance'!N32*(1+Growth!$J36) -> 0 | O122: =+'GHG Balance'!O32*(1+Growth!$J36) -> 0 | P122: 13486.69745
B123: Transport - navigation | D123: =+'GHG Balance'!D33*(1+Growth!$J37) -> 0 | E123: =+'GHG Balance'!E33*(1+Growth!$J37) -> 0 | F123: =+'GHG Balance'!F33*(1+Growth!$J37) -> 0 | G123: =+'GHG Balance'!G33*(1+Growth!$J37) -> 0 | H123: =+'GHG Balance'!H33*(1+Growth!$J37) -> 1824.905109 | I123: =+'GHG Balance'!I33*(1+Growth!$J37) -> 0 | J123: 1824.905109 | K123: =+'GHG Balance'!K33*(1+Growth!$J37) -> 0 | L123: =+'GHG Balance'!L33*(1+Growth!$J37) -> 0 | M123: =+'GHG Balance'!M33*(1+Growth!$J37) -> 0 | N123: =+'GHG Balance'!N33*(1+Growth!$J37) -> 0 | O123: =+'GHG Balance'!O33*(1+Growth!$J37) -> 0 | P123: 1824.905109
B124: Households | D124: =+'GHG Balance'!D34*(1+Growth!$J40) -> 2343.928759 | E124: =+'GHG Balance'!E34*(1+Growth!$J40) -> 0 | F124: =+'GHG Balance'!F34*(1+Growth!$J40) -> 0 | G124: =+'GHG Balance'!G34*(1+Growth!$J40) -> 0 | H124: =+'GHG Balance'!H34*(1+Growth!$J40) -> 0 | I124: =+'GHG Balance'!I34*(1+Growth!$J40) -> 598.2267658 | J124: 2942.155525 | K124: =+'GHG Balance'!K34*(1+Growth!$J40) -> 11480.27322 | L124: =+'GHG Balance'!L34*(1+Growth!$J40) -> 13815.24585 | M124: =+'GHG Balance'!M34*(1+Growth!$J40) -> 77185.8087 | N124: =+'GHG Balance'!N34*(1+Growth!$J40) -> 0 | O124: =+'GHG Balance'!O34*(1+Growth!$J40) -> 0 | P124: 105423.4833
B125: Services | D125: =+'GHG Balance'!D35*(1+Growth!$J44) -> 5462.789068 | E125: =+'GHG Balance'!E35*(1+Growth!$J44) -> 0 | F125: =+'GHG Balance'!F35*(1+Growth!$J44) -> 0 | G125: =+'GHG Balance'!G35*(1+Growth!$J44) -> 0 | H125: =+'GHG Balance'!H35*(1+Growth!$J44) -> 0 | I125: =+'GHG Balance'!I35*(1+Growth!$J44) -> 0 | J125: 5462.789068 | K125: =+'GHG Balance'!K35*(1+Growth!$J44) -> 39552.41888 | L125: =+'GHG Balance'!L35*(1+Growth!$J44) -> 4810.984153 | M125: =+'GHG Balance'!M35*(1+Growth!$J44) -> 22180.39466 | N125: =+'GHG Balance'!N35*(1+Growth!$J44) -> 466.3842061 | O125: =+'GHG Balance'!O35*(1+Growth!$J44) -> 0 | P125: 72472.97097
B126: Agriculture & Fishery | D126: =+'GHG Balance'!D36*(1+Growth!$J47) -> 0 | E126: =+'GHG Balance'!E36*(1+Growth!$J47) -> 0 | F126: =+'GHG Balance'!F36*(1+Growth!$J47) -> 0 | G126: =+'GHG Balance'!G36*(1+Growth!$J47) -> 27965.23239 | H126: =+'GHG Balance'!H36*(1+Growth!$J47) -> 0 | I126: =+'GHG Balance'!I36*(1+Growth!$J47) -> 0 | J126: 27965.23239 | K126: =+'GHG Balance'!K36*(1+Growth!$J47) -> 0 | L126: =+'GHG Balance'!L36*(1+Growth!$J47) -> 0 | M126: =+'GHG Balance'!M36*(1+Growth!$J47) -> 933.2465961 | N126: =+'GHG Balance'!N36*(1+Growth!$J47) -> 0 | O126: =+'GHG Balance'!O36*(1+Growth!$J47) -> 0 | P126: 28898.47898
B127: Non energy uses | D127: =+'GHG Balance'!D37*(1+Growth!$J49) -> 0 | E127: =+'GHG Balance'!E37*(1+Growth!$J49) -> 0 | F127: =+'GHG Balance'!F37*(1+Growth!$J49) -> 0 | G127: =+'GHG Balance'!G37*(1+Growth!$J49) -> 0 | H127: =+'GHG Balance'!H37*(1+Growth!$J49) -> 0 | I127: =+'GHG Balance'!I37*(1+Growth!$J49) -> 0 | J127: 0 | K127: =+'GHG Balance'!K37*(1+Growth!$J49) -> 0 | L127: =+'GHG Balance'!L37*(1+Growth!$J49) -> 0 | M127: =+'GHG Balance'!M37*(1+Growth!$J49) -> 0 | N127: =+'GHG Balance'!N37*(1+Growth!$J49) -> 0 | O127: =+'GHG Balance'!O37*(1+Growth!$J49) -> 0 | P127: 0
B129: Non-CO2 emissions, non-fuel combustion sectors | D129: ktCO2e
B130: CH4 from energy combustion | D130: =IF(P105=0,0,+'GHG Balance'!D41*'BAU projected GHG Balances'!P107/'GHG Balance'!P17) -> 16231.31262
B131: N2O from energy combustion | D131: =IF(P106=0,0,+'GHG Balance'!D42*'BAU projected GHG Balances'!P108/'GHG Balance'!P18) -> 12427.64995
B132: Total Agriculture | D132: =SUM(D133:D137) -> 102247.5692
B133: Enteric fermentation | D133: =+'GHG Balance'!D44*(1+Growth!J$50) -> 48562.71888
B134: Manure management | D134: =+'GHG Balance'!D45*(1+Growth!J$50) -> 11385.72522
B135: Rice cultivation | D135: =+'GHG Balance'!D46*(1+Growth!J$51) -> 361.2222469
B136: N2O from agricultural soils | D136: =+'GHG Balance'!D47*(1+Growth!J$52) -> 41320.21283
B137: Burning of agricultural residues | D137: =+'GHG Balance'!D48*(1+Growth!J$53) -> 617.6900423
B138: Fugitive (CH4) | D138: =IF('GHG Balance'!M15=0,0,'GHG Balance'!D49*'BAU projected GHG Balances'!M105/'GHG Balance'!M15) -> 13248.67664
B139: Forestry | D139: =+'GHG Balance'!D50*(1+Growth!J$54) -> -64020
B140: Waste - solid | D140: =+'GHG Balance'!D51*(1+Growth!J56) -> 16880
B141: Waste - liquid | D141: =+'GHG Balance'!D52*(1+Growth!J57) -> 0
B142: Industrial processes | D142: =+'GHG Balance'!D53*(1+Growth!J32) -> 60720
B143: Total Non-CO2 emissions, non-fuel combustion sectors | D143: =D130+D131+D132+D138+D139+D140+D141+D142 -> 157735.2084
B144: Total GHG emission | D144: =+D130+D131+D132+D138+D139+D140+D141+D142+P105 -> 1392216.553
B146: ="CO2 emissions from fuel combustion - 2050 - "&Assumptions!C9 -> CO2 emissions from fuel combustion - 2050 - Country X
B147: ktCO2 | D147: LPG | E147: Gasoline | F147: Jet Fuel | G147: Diesel | H147: Fueloil | I147: Kerosene and other | J147: Total oil products | K147: Coal | L147: Lignite | M147: Gas | N147: Coke | O147: Petrocoke | P147: Total
B148: Unit | D148: kt | E148: kt | F148: kt | G148: kt | H148: kt | I148: kt | J148: kt | K148: kt | L148: kt | M148: kt | N148: kt | O148: kt | P148: kt
B149: Total | D149: =+D150+D151 -> 51439.61192 | E149: 27176.84773 | F149: 18151.31909 | G149: 278866.7398 | H149: 6281.127754 | I149: 805.1344633 | J149: 382720.7808 | K149: 288053.9651 | L149: 450896.4199 | M149: 420325.2011 | N149: 64534.55665 | O149: 54918.43258 | P149: 1661449.356
B150: Fossil power plants | D150: ='GHG Balance'!D14*'BAU projected Energy Balances'!D305 -> 0 | E150: ='GHG Balance'!E14*'BAU projected Energy Balances'!E305 -> 0 | F150: ='GHG Balance'!F14*'BAU projected Energy Balances'!F305 -> 0 | G150: ='GHG Balance'!G14*'BAU projected Energy Balances'!G305 -> 3296.919382 | H150: ='GHG Balance'!H14*'BAU projected Energy Balances'!H305 -> 3046.615385 | I150: ='GHG Balance'!I14*'BAU projected Energy Balances'!I305 -> 0 | J150: =SUM(D150:I150) -> 6343.534767 | K150: ='GHG Balance'!K14*'BAU projected Energy Balances'!K305 -> 163794.1928 | L150: ='GHG Balance'!L14*'BAU projected Energy Balances'!L305 -> 393669.0421 | M150: ='GHG Balance'!M14*'BAU projected Energy Balances'!M305 -> 185164.8292 | N150: ='GHG Balance'!N14*'BAU projected Energy Balances'!N305 -> 0 | O150: ='GHG Balance'!O14*'BAU projected Energy Balances'!O305 -> 0 | P150: =SUM(J150:O150) -> 748971.5989
B151: FINAL CONSUMPTION | D151: =SUM(D152:D171) -> 51439.61192 | E151: 27176.84773 | F151: 18151.31909 | G151: 275569.8205 | H151: 3234.512369 | I151: 805.1344633 | J151: 376377.246 | K151: =SUM(K152:K171) -> 124259.7722 | L151: 57227.37776 | M151: 235160.3719 | N151: 64534.55665 | O151: 54918.43258 | P151: 912477.7571
B152: Industry - steel | D152: =+'GHG Balance'!D18*(1+Growth!$K19) -> 0 | E152: =+'GHG Balance'!E18*(1+Growth!$K19) -> 0 | F152: =+'GHG Balance'!F18*(1+Growth!$K19) -> 0 | G152: =+'GHG Balance'!G18*(1+Growth!$K19) -> 235.4942416 | H152: =+'GHG Balance'!H18*(1+Growth!$K19) -> 0 | I152: =+'GHG Balance'!I18*(1+Growth!$K19) -> 0 | J152: 235.4942416 | K152: =+'GHG Balance'!K18*(1+Growth!$K19) -> 173.2624777 | L152: =+'GHG Balance'!L18*(1+Growth!$K19) -> 207.8379413 | M152: =+'GHG Balance'!M18*(1+Growth!$K19) -> 2172.076846 | N152: =+'GHG Balance'!N18*(1+Growth!$K19) -> 0 | O152: =+'GHG Balance'!O18*(1+Growth!$K19) -> 0 | P152: =SUM(J152:O152) -> 2788.671506
B153: Industry - chemical | D153: =+'GHG Balance'!D19*(1+Growth!$K20) -> 115.8839818 | E153: =+'GHG Balance'!E19*(1+Growth!$K20) -> 0 | F153: =+'GHG Balance'!F19*(1+Growth!$K20) -> 0 | G153: =+'GHG Balance'!G19*(1+Growth!$K20) -> 55.41040978 | H153: =+'GHG Balance'!H19*(1+Growth!$K20) -> 40.26363945 | I153: =+'GHG Balance'!I19*(1+Growth!$K20) -> 0 | J153: 211.558031 | K153: =+'GHG Balance'!K19*(1+Growth!$K20) -> 4015.612717 | L153: =+'GHG Balance'!L19*(1+Growth!$K20) -> 2597.974266 | M153: =+'GHG Balance'!M19*(1+Growth!$K20) -> 24459.47404 | N153: =+'GHG Balance'!N19*(1+Growth!$K20) -> 0 | O153: =+'GHG Balance'!O19*(1+Growth!$K20) -> 0 | P153: 31284.61906
B154: Industry - non metallic mineral | D154: =+'GHG Balance'!D20*(1+Growth!$K21) -> 38.62799393 | E154: =+'GHG Balance'!E20*(1+Growth!$K21) -> 0 | F154: =+'GHG Balance'!F20*(1+Growth!$K21) -> 0 | G154: =+'GHG Balance'!G20*(1+Growth!$K21) -> 332.4624587 | H154: =+'GHG Balance'!H20*(1+Growth!$K21) -> 241.5818367 | I154: =+'GHG Balance'!I20*(1+Growth!$K21) -> 0 | J154: 612.6722893 | K154: =+'GHG Balance'!K20*(1+Growth!$K21) -> 33704.64786 | L154: =+'GHG Balance'!L20*(1+Growth!$K21) -> 11239.23636 | M154: =+'GHG Balance'!M20*(1+Growth!$K21) -> 17792.14251 | N154: =+'GHG Balance'!N20*(1+Growth!$K21) -> 0 | O154: =+'GHG Balance'!O20*(1+Growth!$K21) -> 54824.48609 | P154: 118173.1851
B155: Industry - food processing and beverage | D155: =+'GHG Balance'!D21*(1+Growth!$K22) -> 257.5199596 | E155: =+'GHG Balance'!E21*(1+Growth!$K22) -> 0 | F155: =+'GHG Balance'!F21*(1+Growth!$K22) -> 0 | G155: =+'GHG Balance'!G21*(1+Growth!$K22) -> 83.11561468 | H155: =+'GHG Balance'!H21*(1+Growth!$K22) -> 496.5848865 | I155: =+'GHG Balance'!I21*(1+Growth!$K22) -> 0 | J155: 837.2204607 | K155: =+'GHG Balance'!K21*(1+Growth!$K22) -> 2323.755583 | L155: =+'GHG Balance'!L21*(1+Growth!$K22) -> 6291.094608 | M155: =+'GHG Balance'!M21*(1+Growth!$K22) -> 9273.823749 | N155: =+'GHG Balance'!N21*(1+Growth!$K22) -> 640.7686476 | O155: =+'GHG Balance'!O21*(1+Growth!$K22) -> 93.9464878 | P155: 19460.60954
B156: Industry - construction | D156: =+'GHG Balance'!D22*(1+Growth!$K23) -> 0 | E156: =+'GHG Balance'!E22*(1+Growth!$K23) -> 0 | F156: =+'GHG Balance'!F22*(1+Growth!$K23) -> 0 | G156: =+'GHG Balance'!G22*(1+Growth!$K23) -> 2036.33256 | H156: =+'GHG Balance'!H22*(1+Growth!$K23) -> 0 | I156: =+'GHG Balance'!I22*(1+Growth!$K23) -> 0 | J156: 2036.33256 | K156: =+'GHG Balance'!K22*(1+Growth!$K23) -> 10.19191045 | L156: =+'GHG Balance'!L22*(1+Growth!$K23) -> 23.98130092 | M156: =+'GHG Balance'!M22*(1+Growth!$K23) -> 3399.772454 | N156: =+'GHG Balance'!N22*(1+Growth!$K23) -> 0 | O156: =+'GHG Balance'!O22*(1+Growth!$K23) -> 0 | P156: 5470.278225
B157: Industry - mining | D157: =+'GHG Balance'!D23*(1+Growth!$K24) -> 0 | E157: =+'GHG Balance'!E23*(1+Growth!$K24) -> 0 | F157: =+'GHG Balance'!F23*(1+Growth!$K24) -> 0 | G157: =+'GHG Balance'!G23*(1+Growth!$K24) -> 5208.57852 | H157: =+'GHG Balance'!H23*(1+Growth!$K24) -> 0 | I157: =+'GHG Balance'!I23*(1+Growth!$K24) -> 0 | J157: 5208.57852 | K157: =+'GHG Balance'!K23*(1+Growth!$K24) -> 193.6462986 | L157: =+'GHG Balance'!L23*(1+Growth!$K24) -> 751.4140955 | M157: =+'GHG Balance'!M23*(1+Growth!$K24) -> 1227.695608 | N157: =+'GHG Balance'!N23*(1+Growth!$K24) -> 0 | O157: =+'GHG Balance'!O23*(1+Growth!$K24) -> 0 | P157: 7381.334522
B158: Industry - machinery | D158: =+'GHG Balance'!D24*(1+Growth!$K25) -> 64.37998989 | E158: =+'GHG Balance'!E24*(1+Growth!$K25) -> 0 | F158: =+'GHG Balance'!F24*(1+Growth!$K25) -> 0 | G158: =+'GHG Balance'!G24*(1+Growth!$K25) -> 41.55780734 | H158: =+'GHG Balance'!H24*(1+Growth!$K25) -> 0 | I158: =+'GHG Balance'!I24*(1+Growth!$K25) -> 0 | J158: 105.9377972 | K158: =+'GHG Balance'!K24*(1+Growth!$K25) -> 30.57573135 | L158: =+'GHG Balance'!L24*(1+Growth!$K25) -> 135.8940385 | M158: =+'GHG Balance'!M24*(1+Growth!$K25) -> 651.6230537 | N158: =+'GHG Balance'!N24*(1+Growth!$K25) -> 0 | O158: =+'GHG Balance'!O24*(1+Growth!$K25) -> 0 | P158: 924.0306208
B159: Industry - non ferrous metals | D159: =+'GHG Balance'!D25*(1+Growth!$K26) -> 476.4119252 | E159: =+'GHG Balance'!E25*(1+Growth!$K26) -> 0 | F159: =+'GHG Balance'!F25*(1+Growth!$K26) -> 0 | G159: =+'GHG Balance'!G25*(1+Growth!$K26) -> 180.0838318 | H159: =+'GHG Balance'!H25*(1+Growth!$K26) -> 0 | I159: =+'GHG Balance'!I25*(1+Growth!$K26) -> 0 | J159: 656.495757 | K159: =+'GHG Balance'!K25*(1+Growth!$K26) -> 11068.41475 | L159: =+'GHG Balance'!L25*(1+Growth!$K26) -> 543.5761542 | M159: =+'GHG Balance'!M25*(1+Growth!$K26) -> 19425.92205 | N159: =+'GHG Balance'!N25*(1+Growth!$K26) -> 63266.09627 | O159: =+'GHG Balance'!O25*(1+Growth!$K26) -> 0 | P159: 94960.50498
B160: Industry - paper and pulp | D160: =+'GHG Balance'!D26*(1+Growth!$K27) -> 12.87599798 | E160: =+'GHG Balance'!E26*(1+Growth!$K27) -> 0 | F160: =+'GHG Balance'!F26*(1+Growth!$K27) -> 0 | G160: =+'GHG Balance'!G26*(1+Growth!$K27) -> 138.5260245 | H160: =+'GHG Balance'!H26*(1+Growth!$K27) -> 0 | I160: =+'GHG Balance'!I26*(1+Growth!$K27) -> 0 | J160: 151.4020224 | K160: =+'GHG Balance'!K26*(1+Growth!$K27) -> 438.2521494 | L160: =+'GHG Balance'!L26*(1+Growth!$K27) -> 1614.740929 | M160: =+'GHG Balance'!M26*(1+Growth!$K27) -> 2096.526347 | N160: =+'GHG Balance'!N26*(1+Growth!$K27) -> 0 | O160: =+'GHG Balance'!O26*(1+Growth!$K27) -> 0 | P160: 4300.921447
B161: Industry - transport equipment | D161: =+'GHG Balance'!D27*(1+Growth!$K28) -> 296.1479535 | E161: =+'GHG Balance'!E27*(1+Growth!$K28) -> 0 | F161: =+'GHG Balance'!F27*(1+Growth!$K28) -> 0 | G161: =+'GHG Balance'!G27*(1+Growth!$K28) -> 96.96821712 | H161: =+'GHG Balance'!H27*(1+Growth!$K28) -> 0 | I161: =+'GHG Balance'!I27*(1+Growth!$K28) -> 0 | J161: 393.1161706 | K161: =+'GHG Balance'!K27*(1+Growth!$K28) -> 0 | L161: =+'GHG Balance'!L27*(1+Growth!$K28) -> 63.95013578 | M161: =+'GHG Balance'!M27*(1+Growth!$K28) -> 1680.998602 | N161: =+'GHG Balance'!N27*(1+Growth!$K28) -> 0 | O161: =+'GHG Balance'!O27*(1+Growth!$K28) -> 0 | P161: 2138.064909
B162: Industry - textile and leather | D162: =+'GHG Balance'!D28*(1+Growth!$K29) -> 154.5119757 | E162: =+'GHG Balance'!E28*(1+Growth!$K29) -> 0 | F162: =+'GHG Balance'!F28*(1+Growth!$K29) -> 0 | G162: =+'GHG Balance'!G28*(1+Growth!$K29) -> 83.11561468 | H162: =+'GHG Balance'!H28*(1+Growth!$K29) -> 0 | I162: =+'GHG Balance'!I28*(1+Growth!$K29) -> 0 | J162: 237.6275904 | K162: =+'GHG Balance'!K28*(1+Growth!$K29) -> 3618.12821 | L162: =+'GHG Balance'!L28*(1+Growth!$K29) -> 8681.230933 | M162: =+'GHG Balance'!M28*(1+Growth!$K29) -> 11313.68722 | N162: =+'GHG Balance'!N28*(1+Growth!$K29) -> 0 | O162: =+'GHG Balance'!O28*(1+Growth!$K29) -> 0 | P162: 23850.67395
B163: Industry - miscellaneous | D163: =+'GHG Balance'!D29*(1+Growth!$K30) -> 0 | E163: =+'GHG Balance'!E29*(1+Growth!$K30) -> 0 | F163: =+'GHG Balance'!F29*(1+Growth!$K30) -> 0 | G163: =+'GHG Balance'!G29*(1+Growth!$K30) -> 0 | H163: =+'GHG Balance'!H29*(1+Growth!$K30) -> 0 | I163: =+'GHG Balance'!I29*(1+Growth!$K30) -> 0 | J163: 0 | K163: =+'GHG Balance'!K29*(1+Growth!$K30) -> 0 | L163: =+'GHG Balance'!L29*(1+Growth!$K30) -> 7.993766973 | M163: =+'GHG Balance'!M29*(1+Growth!$K30) -> 5864.607483 | N163: =+'GHG Balance'!N29*(1+Growth!$K30) -> 0 | O163: =+'GHG Balance'!O29*(1+Growth!$K30) -> 0 | P163: 5872.60125
B164: Transport - road | D164: =+'GHG Balance'!D30*(1+Growth!$K34) -> 39516.43779 | E164: =+'GHG Balance'!E30*(1+Growth!$K34) -> 27176.84773 | F164: =+'GHG Balance'!F30*(1+Growth!$K34) -> 0 | G164: =+'GHG Balance'!G30*(1+Growth!$K34) -> 227570.553 | H164: =+'GHG Balance'!H30*(1+Growth!$K34) -> 0 | I164: =+'GHG Balance'!I30*(1+Growth!$K34) -> 0 | J164: 294263.8385 | K164: =+'GHG Balance'!K30*(1+Growth!$K34) -> 0 | L164: =+'GHG Balance'!L30*(1+Growth!$K34) -> 0 | M164: =+'GHG Balance'!M30*(1+Growth!$K34) -> 812.167864 | N164: =+'GHG Balance'!N30*(1+Growth!$K34) -> 0 | O164: =+'GHG Balance'!O30*(1+Growth!$K34) -> 0 | P164: 295076.0064
B165: Transport - rail | D165: =+'GHG Balance'!D31*(1+Growth!$K35) -> 0 | E165: =+'GHG Balance'!E31*(1+Growth!$K35) -> 0 | F165: =+'GHG Balance'!F31*(1+Growth!$K35) -> 0 | G165: =+'GHG Balance'!G31*(1+Growth!$K35) -> 1870.10133 | H165: =+'GHG Balance'!H31*(1+Growth!$K35) -> 0 | I165: =+'GHG Balance'!I31*(1+Growth!$K35) -> 0 | J165: 1870.10133 | K165: =+'GHG Balance'!K31*(1+Growth!$K35) -> 0 | L165: =+'GHG Balance'!L31*(1+Growth!$K35) -> 0 | M165: =+'GHG Balance'!M31*(1+Growth!$K35) -> 0 | N165: =+'GHG Balance'!N31*(1+Growth!$K35) -> 0 | O165: =+'GHG Balance'!O31*(1+Growth!$K35) -> 0 | P165: 1870.10133
B166: Transport - domestic air | D166: =+'GHG Balance'!D32*(1+Growth!$K36) -> 0 | E166: =+'GHG Balance'!E32*(1+Growth!$K36) -> 0 | F166: =+'GHG Balance'!F32*(1+Growth!$K36) -> 18151.31909 | G166: =+'GHG Balance'!G32*(1+Growth!$K36) -> 0 | H166: =+'GHG Balance'!H32*(1+Growth!$K36) -> 0 | I166: =+'GHG Balance'!I32*(1+Growth!$K36) -> 0 | J166: 18151.31909 | K166: =+'GHG Balance'!K32*(1+Growth!$K36) -> 0 | L166: =+'GHG Balance'!L32*(1+Growth!$K36) -> 0 | M166: =+'GHG Balance'!M32*(1+Growth!$K36) -> 0 | N166: =+'GHG Balance'!N32*(1+Growth!$K36) -> 0 | O166: =+'GHG Balance'!O32*(1+Growth!$K36) -> 0 | P166: 18151.31909
B167: Transport - navigation | D167: =+'GHG Balance'!D33*(1+Growth!$K37) -> 0 | E167: =+'GHG Balance'!E33*(1+Growth!$K37) -> 0 | F167: =+'GHG Balance'!F33*(1+Growth!$K37) -> 0 | G167: =+'GHG Balance'!G33*(1+Growth!$K37) -> 0 | H167: =+'GHG Balance'!H33*(1+Growth!$K37) -> 2456.082006 | I167: =+'GHG Balance'!I33*(1+Growth!$K37) -> 0 | J167: 2456.082006 | K167: =+'GHG Balance'!K33*(1+Growth!$K37) -> 0 | L167: =+'GHG Balance'!L33*(1+Growth!$K37) -> 0 | M167: =+'GHG Balance'!M33*(1+Growth!$K37) -> 0 | N167: =+'GHG Balance'!N33*(1+Growth!$K37) -> 0 | O167: =+'GHG Balance'!O33*(1+Growth!$K37) -> 0 | P167: 2456.082006
B168: Households | D168: =+'GHG Balance'!D34*(1+Growth!$K40) -> 3154.619505 | E168: =+'GHG Balance'!E34*(1+Growth!$K40) -> 0 | F168: =+'GHG Balance'!F34*(1+Growth!$K40) -> 0 | G168: =+'GHG Balance'!G34*(1+Growth!$K40) -> 0 | H168: =+'GHG Balance'!H34*(1+Growth!$K40) -> 0 | I168: =+'GHG Balance'!I34*(1+Growth!$K41) -> 805.1344633 | J168: 3959.753968 | K168: =+'GHG Balance'!K34*(1+Growth!$K40) -> 15450.93624 | L168: =+'GHG Balance'!L34*(1+Growth!$K40) -> 18593.50198 | M168: =+'GHG Balance'!M34*(1+Growth!$K40) -> 103881.9361 | N168: =+'GHG Balance'!N34*(1+Growth!$K40) -> 0 | O168: =+'GHG Balance'!O34*(1+Growth!$K40) -> 0 | P168: 141886.1283
B169: Services | D169: =+'GHG Balance'!D35*(1+Growth!$K44) -> 7352.194845 | E169: =+'GHG Balance'!E35*(1+Growth!$K44) -> 0 | F169: =+'GHG Balance'!F35*(1+Growth!$K44) -> 0 | G169: =+'GHG Balance'!G35*(1+Growth!$K44) -> 0 | H169: =+'GHG Balance'!H35*(1+Growth!$K44) -> 0 | I169: =+'GHG Balance'!I35*(1+Growth!$K44) -> 0 | J169: 7352.194845 | K169: =+'GHG Balance'!K35*(1+Growth!$K44) -> 53232.34828 | L169: =+'GHG Balance'!L35*(1+Growth!$K44) -> 6474.951248 | M169: =+'GHG Balance'!M35*(1+Growth!$K44) -> 29851.89091 | N169: =+'GHG Balance'!N35*(1+Growth!$K44) -> 627.6917365 | O169: =+'GHG Balance'!O35*(1+Growth!$K44) -> 0 | P169: 97539.07702
B170: Agriculture & Fishery | D170: =+'GHG Balance'!D36*(1+Growth!$K47) -> 0 | E170: =+'GHG Balance'!E36*(1+Growth!$K47) -> 0 | F170: =+'GHG Balance'!F36*(1+Growth!$K47) -> 0 | G170: =+'GHG Balance'!G36*(1+Growth!$K47) -> 37637.52085 | H170: =+'GHG Balance'!H36*(1+Growth!$K47) -> 0 | I170: =+'GHG Balance'!I36*(1+Growth!$K47) -> 0 | J170: 37637.52085 | K170: =+'GHG Balance'!K36*(1+Growth!$K47) -> 0 | L170: =+'GHG Balance'!L36*(1+Growth!$K47) -> 0 | M170: =+'GHG Balance'!M36*(1+Growth!$K47) -> 1256.027045 | N170: =+'GHG Balance'!N36*(1+Growth!$K47) -> 0 | O170: =+'GHG Balance'!O36*(1+Growth!$K47) -> 0 | P170: 38893.54789
B171: Non energy uses | D171: =+'GHG Balance'!D37*(1+Growth!$K49) -> 0 | E171: =+'GHG Balance'!E37*(1+Growth!$K49) -> 0 | F171: =+'GHG Balance'!F37*(1+Growth!$K49) -> 0 | G171: =+'GHG Balance'!G37*(1+Growth!$K49) -> 0 | H171: =+'GHG Balance'!H37*(1+Growth!$K49) -> 0 | I171: =+'GHG Balance'!I37*(1+Growth!$K49) -> 0 | J171: 0 | K171: =+'GHG Balance'!K37*(1+Growth!$K49) -> 0 | L171: =+'GHG Balance'!L37*(1+Growth!$K49) -> 0 | M171: =+'GHG Balance'!M37*(1+Growth!$K49) -> 0 | N171: =+'GHG Balance'!N37*(1+Growth!$K49) -> 0 | O171: =+'GHG Balance'!O37*(1+Growth!$K49) -> 0 | P171: 0
B173: Non-CO2 emissions, non-fuel combustion sectors | D173: ktCO2e
B174: CH4 from energy combustion | D174: =IF(P149=0,0,+'GHG Balance'!D41*'BAU projected GHG Balances'!P151/'GHG Balance'!P17) -> 21845.20975
B175: N2O from energy combustion | D175: =IF(P150=0,0,+'GHG Balance'!D42*'BAU projected GHG Balances'!P152/'GHG Balance'!P18) -> 16725.98059
B176: Total Agriculture | D176: =SUM(D177:D181) -> 118706.2536
B177: Enteric fermentation | D177: =+'GHG Balance'!D44*(1+Growth!K$50) -> 56379.80901
B178: Manure management | D178: =+'GHG Balance'!D45*(1+Growth!K$50) -> 13218.47352
B179: Rice cultivation | D179: =+'GHG Balance'!D46*(1+Growth!K$51) -> 419.3678147
B180: N2O from agricultural soils | D180: =+'GHG Balance'!D47*(1+Growth!K$52) -> 47971.48432
B181: Burning of agricultural residues | D181: =+'GHG Balance'!D48*(1+Growth!K$53) -> 717.1189631
B182: Fugitive (CH4) | D182: =IF('GHG Balance'!M15=0,0,'GHG Balance'!D49*'BAU projected GHG Balances'!M149/'GHG Balance'!M15) -> 17830.97441
B183: Forestry | D183: =+'GHG Balance'!D50*(1+Growth!K$54) -> -64020
B184: Waste - solid | D184: =+'GHG Balance'!D51*(1+Growth!K56) -> 16880
B185: Waste - liquid | D185: =+'GHG Balance'!D52*(1+Growth!K57) -> 0
B186: Industrial processes | D186: =+'GHG Balance'!D53*(1+Growth!K32) -> 60720
B187: Total Non-CO2 emissions, non-fuel combustion sectors | D187: =D174+D175+D176+D182+D183+D184+D185+D186 -> 188688.4184
B188: Total GHG emission | D188: =+D174+D175+D176+D182+D183+D184+D185+D186+P149 -> 1850137.774

Sheet coordinates (hidden)
A1: xSum: | B1: Sorted values (All values) | H1: xSum (included) | I1: Sorted values (meeting thresholds) | L1: X-coordinates (reduction of CO2) | Q1: Y-coordinates (Cost of reduction option) | X1: Options omitted from graph
A2: =SUM(D3:D100) -> 246822.7015 | B2: Reduction option | C2: US$/tonCO2 | D2: Emission reduction in 2020 per option kt/year | H2: =SUM(K3:K100) -> 219330.6739 | I2: Reduction option | J2: US$/tonCO2 | K2: Emission reduction in 2020 per option kt/year | L2: Point 1 | M2: Point 2 | N2: halfway | O2: Point 3 | P2: Point 4 | Q2: Point 1 | R2: Point 2 | S2: Point 3 | T2: halfway | U2: Point 4 | X2: Reduction option | Y2: US$/tonCO2 | Z2: Emission reduction in 2020 per option kt/year
B3: Hydro power connected to main grid | C3: 358.2033739 | D3: 144229.9125 | F3: count(included) | G3: =COUNTA(I3:I300) -> 8 | I3: Hydro power connected to main grid | J3: 358.2033739 | K3: 144229.9125 | L3: 0 | M3: 0 | N3: 72114.95625 | O3: 144229.9125 | P3: 144229.9125 | Q3: 0 | R3: 358.2033739 | S3: 358.2033739 | T3: 358.2033739 | U3: 0 | X3: 20% Biodiesel blend in all diesel | Y3: -341.3842808 | Z3: 25478.18375
B4: Wind turbines, on-shore | C4: 353.3632118 | D4: 19420 | F4: count(excluded) | G4: =COUNTA(X3:X300) -> 3 | I4: Wind turbines, on-shore | J4: 353.3632118 | K4: 19420 | L4: 144229.9125 | M4: 144229.9125 | N4: 153939.9125 | O4: 163649.9125 | P4: 163649.9125 | Q4: 0 | R4: 353.3632118 | S4: 353.3632118 | T4: 353.3632118 | U4: 0 | X4: 15% Bioethanol blend in all gasoline | Y4: -438.2590844 | Z4: 2013.780074
B5: Solar PVs, large grid | C5: 235.2164681 | D5: 8860.375 | I5: Solar PVs, large grid | J5: 235.2164681 | K5: 8860.375 | L5: 163649.9125 | M5: 163649.9125 | N5: 168080.1 | O5: 172510.2875 | P5: 172510.2875 | Q5: 0 | R5: 235.2164681 | S5: 235.2164681 | T5: 235.2164681 | U5: 0 | X5: Efficient hotel washing machine | Y5: -38248.88709 | Z5: 0.06378414057
B6: New bicycle lanes | C6: 175.207761 | D6: 68.65827118 | I6: New bicycle lanes | J6: 175.207761 | K6: 68.65827118 | L6: 172510.2875 | M6: 172510.2875 | N6: 172544.6166 | O6: 172578.9458 | P6: 172578.9458 | Q6: 0 | R6: 175.207761 | S6: 175.207761 | T6: 175.207761 | U6: 0
B7: Electric cars | C7: 64.33692392 | D7: 753.315 | I7: Electric cars | J7: 64.33692392 | K7: 753.315 | L7: 172578.9458 | M7: 172578.9458 | N7: 172955.6033 | O7: 173332.2608 | P7: 173332.2608 | Q7: 0 | R7: 64.33692392 | S7: 64.33692392 | T7: 64.33692392 | U7: 0
B8: Energy efficiency in industry | C8: -0.9439292574 | D8: 24884.96297 | I8: Energy efficiency in industry | J8: -0.9439292574 | K8: 24884.96297 | L8: 173332.2608 | M8: 173332.2608 | N8: 185774.7423 | O8: 198217.2237 | P8: 198217.2237 | Q8: 0 | R8: -0.9439292574 | S8: -0.9439292574 | T8: -0.9439292574 | U8: 0
B9: Energy efficiency in service | C9: -0.9439292574 | D9: 8004.950146 | I9: Energy efficiency in service | J9: -0.9439292574 | K9: 8004.950146 | L9: 198217.2237 | M9: 198217.2237 | N9: 202219.6988 | O9: 206222.1739 | P9: 206222.1739 | Q9: 0 | R9: -0.9439292574 | S9: -0.9439292574 | T9: -0.9439292574 | U9: 0
B10: Efficient electric grids | C10: -145.23996 | D10: 13108.5 | I10: Efficient electric grids | J10: -145.23996 | K10: 13108.5 | L10: 206222.1739 | M10: 206222.1739 | N10: 212776.4239 | O10: 219330.6739 | P10: 219330.6739 | Q10: 0 | R10: -145.23996 | S10: -145.23996 | T10: -145.23996 | U10: 0
B11: 20% Biodiesel blend in all diesel | C11: -341.3842808 | D11: 25478.18375
B12: 15% Bioethanol blend in all gasoline | C12: -438.2590844 | D12: 2013.780074
B13: Efficient hotel washing machine | C13: -38248.88709 | D13: 0.06378414057

Sheet Mitigation options (hidden)
AJ1: Year: | AK1: 2025 | AL1: =COUNTA(AL2:AL31) -> 25 | AM1: 2025 | AO1: 2030 | AQ1: 2035 | AS1: 2050
B2: Step 7 - Selection of the mitigation options for year 2025, 2030, 2035 and 2050 | AK2: Selected | AL2: Select sector/type of emission reduction here | AM2: Start row | AN2: End row | AO2: Start row | AP2: End row | AQ2: Start row | AR2: End row | AS2: Start row | AT2: End row
AJ3: =AN3-AM3+1 -> 7 | AK3: 1 | AL3: Agriculture | AM3: =INDEX($A$18:$A$136,MATCH($AL3,$B$18:$B$136,0)) -> 18 | AN3: =AM4-1 -> 24 | AO3: =INDEX($A$164:$A$282,MATCH($AL3,$B$164:$B$282,0)) -> 164 | AP3: =AO4-1 -> 170 | AQ3: =INDEX($A$310:$A$428,MATCH($AL3,$B$310:$B$428,0)) -> 310 | AR3: =AQ4-1 -> 316 | AS3: =INDEX($A$456:$A$574,MATCH($AL3,$B$456:$B$574,0)) -> 456 | AT3: =AS4-1 -> 462
AJ4: =AN4-AM4+1 -> 3 | AK4: 1 | AL4: Biomass energy | AM4: =INDEX($A$18:$A$136,MATCH($AL4,$B$18:$B$136,0)) -> 25 | AN4: =AM5-1 -> 27 | AO4: =INDEX($A$164:$A$282,MATCH($AL4,$B$164:$B$282,0)) -> 171 | AP4: =AO5-1 -> 173 | AQ4: =INDEX($A$310:$A$428,MATCH($AL4,$B$310:$B$428,0)) -> 317 | AR4: =AQ5-1 -> 319 | AS4: 463 | AT4: =AS5-1 -> 465
AJ5: 1 | AK5: 1 | AL5: CCS | AM5: 28 | AN5: =AM6-1 -> 28 | AO5: 174 | AP5: 174 | AQ5: 320 | AR5: =AQ6-1 -> 320 | AS5: 466 | AT5: 466
AJ6: 1 | AK6: 1 | AL6: Cement | AM6: 29 | AN6: 29 | AO6: 175 | AP6: 175 | AQ6: 321 | AR6: 321 | AS6: 467 | AT6: 467
AJ7: 1 | AK7: 1 | AL7: Coal bed mine methane | AM7: 30 | AN7: 30 | AO7: 176 | AP7: 176 | AQ7: 322 | AR7: 322 | AS7: 468 | AT7: 468
AJ8: 11 | AK8: 1 | AL8: EE households | AM8: 31 | AN8: 41 | AO8: 177 | AP8: 187 | AQ8: 323 | AR8: 333 | AS8: 469 | AT8: 479
AJ9: 3 | AK9: 1 | AL9: EE industry | AM9: =INDEX($A$18:$A$136,MATCH($AL9,$B$18:$B$136,0)) -> 42 | AN9: 44 | AO9: 188 | AP9: 190 | AQ9: 334 | AR9: 336 | AS9: 480 | AT9: 482
AJ10: 2 | AK10: 1 | AL10: EE own generation | AM10: 45 | AN10: 46 | AO10: 191 | AP10: 192 | AQ10: 337 | AR10: 338 | AS10: 483 | AT10: 484
AJ11: 14 | AK11: 1 | AL11: EE service | AM11: 47 | AN11: =AM12-2 -> 60 | AO11: 193 | AP11: =AO12-2 -> 206 | AQ11: 339 | AR11: =AQ12-2 -> 352 | AS11: 485 | AT11: =AS12-2 -> 498
B12: Selected year: | C12: 2025 | AJ12: =AN12-AM12+1 -> 5 | AK12: 1 | AL12: EE supply side | AM12: =INDEX($A$18:$A$136,MATCH($AL12,$B$18:$B$136,0))+1 -> 62 | AN12: 66 | AO12: =INDEX($A$164:$A$282,MATCH($AL12,$B$164:$B$282,0))+1 -> 208 | AP12: 212 | AQ12: =INDEX($A$310:$A$428,MATCH($AL12,$B$310:$B$428,0))+1 -> 354 | AR12: 358 | AS12: =INDEX($A$456:$A$574,MATCH($AL12,$B$456:$B$574,0))+1 -> 500 | AT12: 504
R13: How should this be used: DELETE!!!!! | AJ13: 5 | AK13: 1 | AL13: Energy distribution | AM13: 67 | AN13: 71 | AO13: 213 | AP13: 217 | AQ13: 359 | AR13: 363 | AS13: 505 | AT13: 509
B14: Total GHG mitigation in | C14: =+Assumptions!$C$9 -> Country X | R14: Sorted Values - according to revenue potential | AJ14: 5 | AK14: 1 | AL14: Forestry | AM14: 72 | AN14: 76 | AO14: 218 | AP14: 222 | AQ14: 364 | AR14: =AQ15-1 -> 368 | AS14: 510 | AT14: =AS15-1 -> 514
F15: Emission | G15: Investment | H15: Annual | I15: Units | J15: Emission reduction in 2025 | M15: Diesel | N15: Gasoline | O15: Electricity | P15: Electricity | R15: Reduction option | S15: US$/ktCO2 (Revenue) | T15: Emission reduction in 2020 per option (ktCO2/yr) | AJ15: 2 | AK15: 1 | AL15: Fossil fuel switch | AM15: 77 | AN15: 78 | AO15: 223 | AP15: 224 | AQ15: 369 | AR15: =AQ16-1 -> 370 | AS15: 515 | AT15: 516
F16: reduction | H16: costs | I16: penetrating | J16: Per option | K16: Added | M16: saved | N16: saved | O16: saved | P16: produced | AJ16: 4 | AK16: 1 | AL16: Fugitive | AM16: 79 | AN16: 82 | AO16: 225 | AP16: 228 | AQ16: 371 | AR16: 374 | AS16: 517 | AT16: 520
B17: Type | C17: Reduction option | D17: US$/tCO2e | E17: Sub-type unit | F17: tCO2e/unit | G17: Million US$ | H17: MUS$/year | I17: in 2025 | J17: ktCO2e/year | K17: ktCO2e/year | L17: Frac.of total | M17: ktoe | N17: ktoe | O17: GWh | P17: GWh | AJ17: 2 | AK17: 1 | AL17: Geothermal | AM17: 83 | AN17: 84 | AO17: 229 | AP17: 230 | AQ17: 375 | AR17: 376 | AS17: 521 | AT17: 522
A18: =ROW(B18) -> 18 | B18: Agriculture | C18: Rice crop CH4 reduction | D18: =Agriculture!E30 -> 1.2 | E18: Rice crop CH4 red.(1000 ha) | F18: =Agriculture!E27 -> 3421.6 | G18: =Agriculture!$E$17*I18/1000000 -> 0 | H18: =Agriculture!$E$22*I18/1000000 -> 0 | J18: =F18*I18/1000 -> 0 | K18: =OFFSET(K18,-1,0)+J18 -> 0 | L18: =K18/TotalEmis2025 -> 0 | R18: Cogeneration in industry | S18: 846.9416952 | T18: 22.25798031 | AJ18: 1 | AK18: 1 | AL18: HFCs, PFCs, SF6 | AM18: 85 | AN18: 85 | AO18: 231 | AP18: 231 | AQ18: 377 | AR18: 377 | AS18: 523 | AT18: 523
C19: Zero tillage | D19: =+Agriculture!E194 -> -166.3918768 | E19: 1000 ha | F19: =+Agriculture!E192 -> 85.7270531 | G19: =Agriculture!$E$182*I19/1000000 -> 0 | H19: =Agriculture!$E$187*I19/1000000 -> 0 | J19: 0 | K19: 0 | L19: 0 | R19: Efficient domestic lighting with LEDs | S19: 376.5026462 | T19: 12.00598894 | AJ19: 3 | AK19: 1 | AL19: Hydro | AM19: 86 | AN19: 88 | AO19: 232 | AP19: 234 | AQ19: 378 | AR19: 380 | AS19: 524 | AT19: 526
C20: Cover crops | D20: =+Agriculture!E89 -> 81.04026846 | E20: 1000 ha | F20: =+Agriculture!E87 -> 1490 | G20: =Agriculture!$E$77*I20/1000000 -> 0 | H20: =Agriculture!$E$82*I20/1000000 -> 0 | J20: 0 | K20: 0 | L20: 0 | AJ20: 7 | AK20: 1 | AL20: Landfills | AM20: 89 | AN20: 95 | AO20: 235 | AP20: 241 | AQ20: 381 | AR20: 387 | AS20: 527 | AT20: 533
C21: Nitrification inhibitors (1000 ha) | D21: =+Agriculture!E117 -> 67.68987342 | E21: 1000 ha | F21: =+Agriculture!E115 -> 790 | G21: =Agriculture!$E$105*I21/1000000 -> 0 | H21: =Agriculture!$E$110*I21/1000000 -> 5.3475 | I21: 100 | J21: 79 | K21: 79 | L21: 9.84557728e-05 | AJ21: 2 | AK21: 1 | AL21: Marine | AM21: 96 | AN21: 97 | AO21: 242 | AP21: 243 | AQ21: 388 | AR21: 389 | AS21: 534 | AT21: 535
C22: Covering slurry stores (1 slurry store) | D22: =+Agriculture!E143 -> 937.8333407 | E22: 1 slurry store | F22: =+Agriculture!E141 -> 0.2013 | G22: =Agriculture!$E$131*I22/1000000 -> 0 | H22: =Agriculture!$E$136*I22/1000000 -> 0 | J22: 0 | K22: 79 | L22: 9.84557728e-05 | AJ22: 4 | AK22: 1 | AL22: Methane avoidance | AM22: 98 | AN22: 101 | AO22: 244 | AP22: 247 | AQ22: 390 | AR22: 393 | AS22: 536 | AT22: 539
C23: Fat supplementation in ruminants diets (%DM fat added) | D23: =+Agriculture!E168 -> 80.5 | E23: %DM fat added | F23: =+Agriculture!E166 -> 4336.226833 | G23: =Agriculture!$E$156*I23/1000000 -> 0 | H23: =Agriculture!$N$161*I23/1000000 -> 0 | J23: 0 | K23: 79 | L23: 9.84557728e-05 | AJ23: 1 | AK23: 1 | AL23: N2O | AM23: 102 | AN23: 102 | AO23: 248 | AP23: 248 | AQ23: 394 | AR23: 394 | AS23: 540 | AT23: 540
C24: Tobacco curing | D24: =+Agriculture!E62 -> -20.8017392 | E24: 100 t tobacco/yr | F24: =+Agriculture!E60 -> 561.969408 | G24: =Agriculture!$E$50*I24/1000000 -> 0 | H24: =Agriculture!$E$55*I24/1000000 -> 0 | J24: 0 | K24: 79 | L24: 9.84557728e-05 | R24: Efficient domestic lighting with LEDs | S24: 376.5026462 | T24: 60.02994472 | AJ24: 12 | AK24: 1 | AL24: Solar | AM24: 103 | AN24: 114 | AO24: 249 | AP24: 260 | AQ24: 395 | AR24: 406 | AS24: 541 | AT24: 552
A25: =ROW(B25) -> 25 | B25: Biomass energy | C25: Rice husk cogeneration plants | D25: =+'Biomass energy'!E24 -> -87.68471234 | E25: 1 MW cogeneration | F25: =+'Biomass energy'!E22 -> 9719.024743 | G25: =+'Biomass energy'!$E$12*I25/1000000 -> 0 | H25: =+'Biomass energy'!$E$17*I25/1000000 -> 0 | J25: =F25*I25/1000 -> 0 | K25: 79 | L25: 9.84557728e-05 | P25: =+'Biomass energy'!$H$22/'Biomass energy'!$H$19*I25/1000 -> 0 | R25: Geothermal power | S25: 356.5429719 | T25: 131.25 | AJ25: 19 | AK25: 1 | AL25: Transport | AM25: 115 | AN25: 133 | AO25: 261 | AP25: 279 | AQ25: 407 | AR25: 425 | AS25: 553 | AT25: 571
C26: Biomass power from biomass residues | D26: =+'Biomass energy'!E57 -> -184.6008877 | E26: 1 MW CHP plant | F26: =+'Biomass energy'!E55 -> 2427.5 | G26: =+'Biomass energy'!$E$45*I26/1000000 -> 0 | H26: =+'Biomass energy'!$E$50*I26/1000000 -> 0 | J26: 0 | K26: 79 | L26: 9.84557728e-05 | P26: =+'Biomass energy'!$H$53*I26/1000 -> 0 | R26: Wind turbines, on-shore | S26: 351.7034642 | T26: 48.4375 | AJ26: 3 | AK26: 1 | AL26: Wind | AM26: 134 | AN26: =AM26+2 -> 136 | AO26: 280 | AP26: =AO26+2 -> 282 | AQ26: 426 | AR26: =AQ26+2 -> 428 | AS26: 572 | AT26: =AS26+2 -> 574 | AU26: NB!! The end rows on the last Sector need to be adjusted manually!
C27: Bagasse power | D27: ='Biomass energy'!E88 -> -341.7429484 | E27: 100 kt sugar cane/year | F27: ='Biomass energy'!E86 -> 6791.451429 | G27: ='Biomass energy'!$E$76*I27/1000000 -> 0 | H27: ='Biomass energy'!$E$81*I27/1000000 -> 0 | J27: 0 | K27: 79 | L27: 9.84557728e-05 | P27: ='Biomass energy'!$H$87/'Biomass energy'!$H$81*100*I27/1000 -> 0 | R27: Efficient residential airconditioning | S27: 343.000921 | T27: 84.33436629 | AJ27: =SUM(AJ3:AJ26) -> 118
A28: =ROW(B28) -> 28 | B28: CCS | C28: CCS plant | D28: =+CCS!E22 -> 203.8168012 | E28: 1 MW | F28: =+CCS!E20 -> 5412.371134 | G28: =CCS!$E$10*I28/1000000 -> 0 | H28: =CCS!$E$15*I28/1000000 -> 0 | J28: =F28*I28/1000 -> 0 | K28: 79 | L28: 9.84557728e-05 | P28: =+CCS!H16/CCS!$H$13*I28/1000 -> 0 | R28: Efficient street lights | S28: 331.5529212 | T28: 6.053439803
A29: =ROW(B29) -> 29 | B29: Cement | C29: Clinker replacement | D29: =+Cement!E23 -> 7.552571263 | E29: 1000 tonnes cement/day | F29: =+Cement!E21 -> 166583.5619 | G29: =Cement!$E$10*I29/1000000 -> 0 | H29: =Cement!$E$16*I29/1000000 -> 0 | J29: 0 | K29: 79 | L29: 9.84557728e-05 | R29: Efficient electric stoves | S29: 320.0969047 | T29: 4.791154791
A30: =ROW(B30) -> 30 | B30: Coal bed mine methane | C30: Coal mine methane | D30: =+'Coal bed mine methane'!E24 -> -30.71210762 | E30: 10 Mm3 CMM/year | F30: =+'Coal bed mine methane'!E22 -> 37352.84 | G30: =+'Coal bed mine methane'!$E$12/1000000*I30 -> 0 | H30: =+'Coal bed mine methane'!$E$22/1000000*I30 -> 0 | J30: 0 | K30: 79 | L30: 9.84557728e-05 | P30: =+'Coal bed mine methane'!$H$27/'Coal bed mine methane'!$H$22*10*I30/1000 -> 0 | R30: Solar PVs, large grid | S30: 298.3034805 | T30: 76.37625
A31: =ROW(B31) -> 31 | B31: EE households | C31: Efficient residential airconditioning | D31: =+'EE households'!E30 -> -313.1205443 | E31: 1000 Airconditioners | F31: =+'EE households'!E28 -> 765.6669267 | G31: =+'EE households'!$E$18*I31/1000000 -> 0 | H31: =+'EE households'!$E$23*I31/1000000 -> 0 | J31: 0 | K31: 79 | L31: 9.84557728e-05 | O31: =+'EE households'!$H$42*I31/1000 -> 0 | R31: Efficient refrigerators | S31: 259.1416914 | T31: 26.36609337
C32: Efficient lighting with CFLs | D32: =+'EE households'!E64 -> -327.0326794 | E32: 1000 Bulps | F32: =+'EE households'!E62 -> 37.40254152 | G32: =+'EE households'!$E$52*I32/1000000 -> 308.3495146 | H32: =+'EE households'!$E$57*I32/1000000 -> -2446.370674 | I32: 200000 | J32: 7480.508305 | K32: 7559.508305 | L32: 0.009421230787 | O32: ='EE households'!$H$65*I32/1000 -> 12775 | R32: Assisted forest regeneration | S32: 14.61993428 | T32: 261.25
C33: Efficient lighting with LEDs | D33: =+'EE households'!E96 -> -361.2712309 | E33: 1000 Bulps | F33: =+'EE households'!E94 -> 76.30118471 | G33: =+'EE households'!$E$84*I33/1000000 -> 0 | H33: =+'EE households'!$E$89*I33/1000000 -> 0 | J33: 0 | K33: 7559.508305 | L33: 0.009421230787 | O33: =+'EE households'!$H$101*I33/1000 -> 0 | R33: Biogas at big farms | S33: 9.944730478 | T33: 28.09570149
C34: Efficient lighting with LEDs replacing CFL | D34: =+'EE households'!E122 -> -217.8175312 | E34: 1000 Bulps | F34: =+'EE households'!E120 -> 8.976609966 | G34: ='EE households'!$E$110*I34/1000000 -> 0 | H34: ='EE households'!$E$115*I34/1000000 -> 0 | J34: 0 | K34: 7559.508305 | L34: 0.009421230787 | O34: =+'EE households'!$H4102*I34/1000 -> 0
C35: Efficient wood stoves | D35: =+'EE households'!E178 -> -933.2500415 | E35: 1000 stoves | F35: =+'EE households'!E176 -> 1338.333333 | G35: =+'EE households'!$E$166*I35/1000000 -> 0 | H35: =+'EE households'!$E$171*I35/1000000 -> 0 | J35: 0 | K35: 7559.508305 | L35: 0.009421230787 | R35: Composting of Municipal Solid Waste | S35: 7.176657819 | T35: 7.271019
C36: Efficient charcoal stoves | D36: =+'EE households'!E206 -> -62.01052922 | E36: 1000 stoves | F36: =+'EE households'!E204 -> 292.9169187 | G36: =+'EE households'!$E$194*I36/1000000 -> 600 | H36: =+'EE households'!$E$199*I36/1000000 -> -181.6393315 | I36: 10000 | J36: 2929.169187 | K36: 10488.67749 | L36: 0.01307178289
C37: LPG stoves replacing wood stoves | D37: =+'EE households'!E238 -> 74.16714372 | E37: 1000 stoves | F37: =+'EE households'!E236 -> 2054.943917 | G37: ='EE households'!$E$226*I37/1000000 -> 0 | H37: ='EE households'!$E$231*I37/1000000 -> 0 | J37: 0 | K37: 10488.67749 | L37: 0.01307178289 | R37: Biodiesel from MSW | S37: 0.1374728882 | T37: 64.26690086
C38: Efficient electric stoves | D38: =+'EE households'!E267 -> -278.8968928 | E38: 1000 stoves | F38: =+'EE households'!E265 -> 152.2451788 | G38: ='EE households'!$E$255*I38/1000000 -> 0 | H38: ='EE households'!$E$260*I38/1000000 -> 0 | J38: 0 | K38: 10488.67749 | L38: 0.01307178289 | O38: ='EE households'!$H$274*I38/1000 -> 0 | R38: Biogas at rural farms | S38: -1.210737512 | T38: 11.27412
C39: Induction based cooking | D39: =+'EE households'!E293 -> 514.2822121 | E39: 1000 stoves | F39: =+'EE households'!E291 -> 11.09070839 | G39: ='EE households'!$E$281*I39/1000000 -> 0 | H39: ='EE households'!$E$286*I39/1000000 -> 0 | J39: 0 | K39: 10488.67749 | L39: 0.01307178289 | O39: ='EE households'!$H$301*I39/1000 -> 0
C40: New passive home | D40: =+'EE households'!$E$321 -> -143.8123494 | E40: 1000 new homes | F40: =+'EE households'!$E$319 -> 8344.206915 | G40: ='EE households'!$E$309*I40/1000000 -> 0 | H40: =+I40*'EE households'!$E$314/1000000 -> 0 | J40: 0 | K40: 10488.67749 | L40: 0.01307178289 | O40: ='EE households'!$H$326*I40/1000 -> 0
C41: Efficient refrigerators | D41: =+'EE households'!E148 -> -37.37508982 | E41: 1000 refrigerators | F41: =+'EE households'!E146 -> 1199.376266 | G41: =+'EE households'!$E$136*I41/1000000 -> 0 | H41: =+'EE households'!$E$141*I41/1000000 -> 0 | J41: 0 | K41: 10488.67749 | L41: 0.01307178289 | O41: =+'EE households'!$H$159*I41/1000 -> 0 | R41: Charcoal production | S41: -1.733595543 | T41: 21.15072072
